Workbook

Sheet Forsíða
A2: Mót: | D2: Meistaramót
D3: E:\Nýársmót2016.mdb
A4: Braut: | D4: 25m
A5: Raðir per grein: | D5: 70

Sheet Keppendur
B5: Númer | C5: Nafn | D5: Aldur | E5: Lið | F5: S | G5: SB | H5: SM
B6: 23 | C6: Baldur E Traustason | D6: 11 | E6: ÍFR | F6: 14 | G6: 14 | H6: 14 | J6: Baldur E Traustason S14
B7: 27 | C7: Bergdís Ó Vilhjálmsdótt | D7: 11 | E7: ÍFR | F7: 7 | G7: 6 | H7: 7 | J7: Bergdís Ó Vilhjálmsdótt S7 Sb6
B8: 15 | C8: Björn Axel Agnarsson | D8: 13 | E8: ÍFR | F8: 20 | G8: 20 | H8: 20 | J8: Björn Axel Agnarsson S20
B9: 25 | C9: Elís F Stephen | D9: 10 | E9: ÍFR | J9: Elís F Stephen
B10: 16 | C10: Haukur H Loftsson | D10: 15 | E10: ÍFR | F10: 4 | G10: 4 | H10: 4 | J10: Haukur H Loftsson S4
B11: 26 | C11: Heiður B Egilsdóttir | D11: 11 | E11: ÍFR | F11: 8 | G11: 8 | H11: 8 | J11: Heiður B Egilsdóttir S8
B12: 24 | C12: Hilmar L Davíðsson | D12: 10 | E12: ÍFR | F12: 10 | G12: 9 | H12: 10 | J12: Hilmar L Davíðsson S10 SB9
B13: 22 | C13: Hlynur B Steingrímsson | D13: 12 | E13: ÍFR | J13: Hlynur B Steingrímsson
B14: 19 | C14: Ingi B Torsteinsson | D14: 11 | E14: ÍFR | J14: Ingi B Torsteinsson
B15: 17 | C15: Ólafur Helgason | D15: 14 | E15: ÍFR | F15: 9 | G15: 8 | H15: 9 | J15: Ólafur Helgason S9 SB8
B16: 29 | C16: Ólafur F Jónasson | D16: 14 | E16: ÍFR | F16: 14 | G16: 14 | H16: 14 | J16: Ólafur F Jónasson S14
B17: 18 | C17: Reynir A Magnússon | D17: 14 | E17: ÍFR | F17: 14 | G17: 14 | H17: 14 | J17: Reynir A Magnússon S14
B18: 28 | C18: Snævar Örn Kristmannsson | D18: 9 | E18: ÍFR | F18: 14 | G18: 14 | H18: 14 | J18: Snævar Örn Kristmannsson S14
B19: 20 | C19: Thórey Í Magnúsdóttir | D19: 16 | E19: ÍFR | F19: 14 | G19: 14 | H19: 14 | J19: Thórey Í Magnúsdóttir S14
B20: 21 | C20: Torbjörn Helgason | D20: 12 | E20: ÍFR | J20: Torbjörn Helgason
B21: 53 | C21: Ágústa H Snorradóttir | D21: 0 | E21: Íþróttafélagið Fjörður | F21: 14 | G21: 14 | H21: 14 | J21: Ágústa H Snorradóttir S14
B22: 56 | C22: Aníta R Elíasdóttir | D22: 0 | E22: Íþróttafélagið Fjörður | F22: 14 | G22: 14 | H22: 14 | J22: Aníta R Elíasdóttir S14
B23: 5 | C23: Anna R Þrastardóttir | D23: 10 | E23: Íþróttafélagið Fjörður | F23: 14 | G23: 14 | H23: 14 | J23: Anna R Þrastardóttir S14
B24: 9 | C24: Baldur M Kristinsson | D24: 10 | E24: Íþróttafélagið Fjörður | F24: 14 | G24: 14 | H24: 14 | J24: Baldur M Kristinsson S14
B25: 49 | C25: Birnir S Jökulsson | D25: 0 | E25: Íþróttafélagið Fjörður | F25: 14 | G25: 14 | H25: 14 | J25: Birnir S Jökulsson S14
B26: 48 | C26: Brynjar I | D26: 0 | E26: Íþróttafélagið Fjörður | F26: 14 | G26: 14 | H26: 14 | J26: Brynjar I S14
B27: 47 | C27: Elsa R Sigmundsdóttir | D27: 0 | E27: Íþróttafélagið Fjörður | F27: 14 | G27: 14 | H27: 14 | J27: Elsa R Sigmundsdóttir S14
B28: 13 | C28: Emelía Ý Gunnarsdóttir | D28: 9 | E28: Íþróttafélagið Fjörður | F28: 14 | G28: 14 | H28: 14 | J28: Emelía Ý Gunnarsdóttir S14
B29: 14 | C29: Guðbjörg S Sigfúsdóttir | D29: 15 | E29: Íþróttafélagið Fjörður | F29: 14 | G29: 14 | H29: 14 | J29: Guðbjörg S Sigfúsdóttir S14
B30: 4 | C30: Guðmundur A Sigurðsson | D30: 10 | E30: Íþróttafélagið Fjörður | F30: 10 | G30: 10 | H30: 10 | J30: Guðmundur A Sigurðsson S10
B31: 51 | C31: Gustas E Poskus | D31: 0 | E31: Íþróttafélagið Fjörður | F31: 14 | G31: 14 | H31: 14 | J31: Gustas E Poskus S14
B32: 1 | C32: Hallgrímur A Heimisson | D32: 14 | E32: Íþróttafélagið Fjörður | F32: 14 | G32: 14 | H32: 14 | J32: Hallgrímur A Heimisson S14
B33: 54 | C33: Hólmar I Kristinsson | D33: 0 | E33: Íþróttafélagið Fjörður | F33: 14 | G33: 14 | H33: 14 | J33: Hólmar I Kristinsson S14
B34: 8 | C34: Katrín E Kristjánsdóttir | D34: 11 | E34: Íþróttafélagið Fjörður | F34: 14 | G34: 14 | H34: 14 | J34: Katrín E Kristjánsdóttir S14
B35: 10 | C35: Kristjana L Albertsdóttir | D35: 0 | E35: Íþróttafélagið Fjörður | F35: 14 | G35: 14 | H35: 14 | J35: Kristjana L Albertsdóttir S14
B36: 50 | C36: Lea K Friðbjörnsdóttir | D36: 0 | E36: Íþróttafélagið Fjörður | F36: 14 | G36: 14 | H36: 14 | J36: Lea K Friðbjörnsdóttir S14
B37: 6 | C37: Nevena Cupovic | D37: 15 | E37: Íþróttafélagið Fjörður | F37: 14 | G37: 14 | H37: 14 | J37: Nevena Cupovic S14
B38: 3 | C38: Róbert Í Jónsson | D38: 14 | E38: Íþróttafélagið Fjörður | F38: 14 | G38: 14 | H38: 14 | J38: Róbert Í Jónsson S14
B39: 55 | C39: Sara A Elíasdóttir | D39: 0 | E39: Íþróttafélagið Fjörður | F39: 14 | G39: 14 | H39: 14 | J39: Sara A Elíasdóttir S14
B40: 7 | C40: Sigríður Aníta Rögnvaldsóttir | D40: 13 | E40: Íþróttafélagið Fjörður | F40: 14 | G40: 14 | H40: 14 | J40: Sigríður Aníta Rögnvaldsóttir S14
B41: 12 | C41: Sigrún Kjartansdóttir | D41: 0 | E41: Íþróttafélagið Fjörður | F41: 14 | G41: 14 | H41: 14 | J41: Sigrún Kjartansdóttir S14
B42: 52 | C42: Steinunn E Sigurðardóttir | D42: 0 | E42: Íþróttafélagið Fjörður | F42: 14 | G42: 14 | H42: 14 | J42: Steinunn E Sigurðardóttir S14
B43: 2 | C43: Unnar I Ingason | D43: 14 | E43: Íþróttafélagið Fjörður | F43: 14 | G43: 14 | H43: 14 | J43: Unnar I Ingason S14
B44: 11 | C44: Victoria L Karenardóttir | D44: 0 | E44: Íþróttafélagið Fjörður | F44: 14 | G44: 14 | H44: 14 | J44: Victoria L Karenardóttir S14
B45: 83 | C45: Ævar Kristjánsson | D45: 11 | E45: Íþróttafélagið Ösp | F45: 14 | G45: 14 | H45: 14 | J45: Ævar Kristjánsson S14
B46: 73 | C46: Ágúst S Sigmarsson | D46: 6 | E46: Íþróttafélagið Ösp | F46: 14 | G46: 14 | H46: 14 | J46: Ágúst S Sigmarsson S14
B47: 82 | C47: Bjarki H Erlingsson | D47: 9 | E47: Íþróttafélagið Ösp | F47: 14 | G47: 14 | H47: 14 | J47: Bjarki H Erlingsson S14
B48: 74 | C48: Breki Björnsson | D48: 11 | E48: Íþróttafélagið Ösp | F48: 14 | G48: 14 | H48: 14 | J48: Breki Björnsson S14
B49: 79 | C49: Bríana O Hjálmarsdóttir | D49: 11 | E49: Íþróttafélagið Ösp | F49: 14 | G49: 14 | H49: 14 | J49: Bríana O Hjálmarsdóttir S14
B50: 77 | C50: Dagmar Hákonardóttir | D50: 12 | E50: Íþróttafélagið Ösp | F50: 14 | G50: 14 | H50: 14 | J50: Dagmar Hákonardóttir S14
B51: 72 | C51: Daníel S Hafþórsson | D51: 12 | E51: Íþróttafélagið Ösp | F51: 14 | G51: 14 | H51: 14 | J51: Daníel S Hafþórsson S14
B52: 71 | C52: Gísli K Árnason | D52: 10 | E52: Íþróttafélagið Ösp | F52: 14 | G52: 14 | H52: 14 | J52: Gísli K Árnason S14
B53: 81 | C53: Gunnhildur M Baldursdóttir | D53: 7 | E53: Íþróttafélagið Ösp | F53: 14 | G53: 14 | H53: 14 | J53: Gunnhildur M Baldursdóttir S14
B54: 32 | C54: Gunnhildur Brynja Be | D54: 14 | E54: Íþróttafélagið Ösp | F54: 14 | G54: 14 | H54: 14 | J54: Gunnhildur Brynja Be s14
B55: 69 | C55: Hjalti G Guðmundsson | D55: 0 | E55: Íþróttafélagið Ösp | F55: 14 | G55: 14 | H55: 14 | J55: Hjalti G Guðmundsson S14
B56: 30 | C56: Jóhann Stígur Eiríksson | D56: 15 | E56: Íþróttafélagið Ösp | F56: 14 | G56: 14 | H56: 14 | J56: Jóhann Stígur Eiríksson s14
B57: 31 | C57: Magnús Aron Ceesay Aron Ceesay | D57: 14 | E57: Íþróttafélagið Ösp | F57: 14 | G57: 14 | H57: 14 | J57: Magnús Aron Ceesay Aron Ceesay s14
B58: 75 | C58: Ólafur Jónsson | D58: 11 | E58: Íþróttafélagið Ösp | F58: 14 | G58: 14 | H58: 14 | J58: Ólafur Jónsson S14
B59: 70 | C59: Pétur M Helgason | D59: 12 | E59: Íþróttafélagið Ösp | F59: 14 | G59: 14 | H59: 14 | J59: Pétur M Helgason S14
B60: 76 | C60: Sigrún B Pálsdóttir | D60: 13 | E60: Íþróttafélagið Ösp | F60: 14 | G60: 14 | H60: 14 | J60: Sigrún B Pálsdóttir S14
B61: 33 | C61: Þorleifur Pálmi Páls | D61: 12 | E61: Íþróttafélagið Ösp | F61: 14 | G61: 14 | H61: 14 | J61: Þorleifur Pálmi Páls s14
B62: 78 | C62: Þráinn Ásbjarnarson | D62: 13 | E62: Íþróttafélagið Ösp | F62: 14 | G62: 14 | H62: 14 | J62: Þráinn Ásbjarnarson S14
B63: 80 | C63: Védís K Vilhjálmsdóttir | D63: 12 | E63: Íþróttafélagið Ösp | F63: 14 | G63: 14 | H63: 14 | J63: Védís K Vilhjálmsdóttir S14
B64: 39 | C64: Alexander Guðmundsson | D64: 12 | E64: NES | F64: 14 | G64: 14 | H64: 14 | J64: Alexander Guðmundsson S14
B65: 34 | C65: Andri F Ágústsson | D65: 11 | E65: NES | F65: 18 | G65: 18 | H65: 18 | J65: Andri F Ágústsson S18
B66: 46 | C66: Ástmar Steingrímsson | D66: 7 | E66: NES | F66: 14 | G66: 14 | H66: 14 | J66: Ástmar Steingrímsson S14
B67: 36 | C67: Ástrós M Bjarnadóttir | D67: 16 | E67: NES | F67: 18 | G67: 18 | H67: 18 | J67: Ástrós M Bjarnadóttir S18
B68: 84 | C68: Birta Bjarnadóttir | D68: 12 | E68: NES | F68: 14 | G68: 14 | H68: 14 | J68: Birta Bjarnadóttir
B69: 44 | C69: Guðrún Aðalbergsdóttir | D69: 4 | E69: NES | F69: 14 | G69: 14 | H69: 14 | J69: Guðrún Aðalbergsdóttir S14
B70: 41 | C70: Ingibjörg F Margeirsdóttir | D70: 16 | E70: NES | F70: 14 | G70: 14 | H70: 14 | J70: Ingibjörg F Margeirsdóttir S14
B71: 37 | C71: Ingólfur M Bjarnason | D71: 15 | E71: NES | F71: 10 | G71: 10 | H71: 10 | J71: Ingólfur M Bjarnason S10
B72: 35 | C72: Leó Baldurrson | D72: 10 | E72: NES | F72: 14 | G72: 14 | H72: 14 | J72: Leó Baldurrson S14
B73: 40 | C73: Már Gunnarsson | D73: 16 | E73: NES | F73: 12 | G73: 12 | H73: 12 | J73: Már Gunnarsson S12
B74: 43 | C74: Matthildur E Sigurðardóttir | D74: 10 | E74: NES | F74: 10 | G74: 10 | H74: 10 | J74: Matthildur E Sigurðardóttir S10
B75: 38 | C75: Óskar F Björnsson | D75: 10 | E75: NES | F75: 14 | G75: 14 | H75: 14 | J75: Óskar F Björnsson S14
B76: 42 | C76: Róbert Salvar Reynisson | D76: 16 | E76: NES | F76: 9 | G76: 9 | H76: 9 | J76: Róbert Salvar Reynisson S9
B77: 45 | C77: Þórunn L Sigurðardóttir | D77: 8 | E77: NES | F77: 8 | G77: 8 | H77: 8 | J77: Þórunn L Sigurðardóttir S8
B78: 66 | C78: Ævar O Einarsson | D78: 11 | E78: Suðri | F78: 14 | G78: 14 | H78: 14 | J78: Ævar O Einarsson S14
B79: 63 | C79: Katla S Ægisdóttir | D79: 15 | E79: Suðri | F79: 14 | G79: 14 | H79: 14 | J79: Katla S Ægisdóttir S14
B80: 64 | C80: Matthías M Elíasson | D80: 10 | E80: Suðri | F80: 14 | G80: 14 | H80: 14 | J80: Matthías M Elíasson S14
B81: 65 | C81: Skúli Bárðarson | D81: 11 | E81: Suðri | F81: 14 | G81: 14 | H81: 14 | J81: Skúli Bárðarson S14
B82: 67 | C82: Sandra S Gunnarsdóttir | D82: 16 | E82: Sunddeild Fjölnis | F82: 12 | G82: 12 | H82: 12 | J82: Sandra S Gunnarsdóttir S-12
B83: 68 | C83: Sigurður I Sigurðsson | D83: 11 | E83: Sunddeild Fjölnis | F83: 10 | G83: 10 | H83: 10 | J83: Sigurður I Sigurðsson S10
B84: 57 | C84: Arndís Atladóttir | D84: 15 | E84: Sundfélagið Óðinn | F84: 14 | G84: 14 | H84: 14 | J84: Arndís Atladóttir S14
B85: 58 | C85: Fannar Logi Jóhannesson | D85: 15 | E85: Sundfélagið Óðinn | F85: 14 | G85: 14 | H85: 14 | J85: Fannar Logi Jóhannesson
B86: 60 | C86: Íris Anna Jóhannesdóttir | D86: 6 | E86: Sundfélagið Óðinn | J86: Íris Anna Jóhannesdóttir
B87: 61 | C87: Kristín Erna Jakopsdóttir | D87: 10 | E87: Sundfélagið Óðinn | J87: Kristín Erna Jakopsdóttir
B88: 62 | C88: Logi Ingólfsson | D88: 9 | E88: Sundfélagið Óðinn | F88: 20 | G88: 20 | H88: 20 | J88: Logi Ingólfsson
B89: 59 | C89: Tinna Rut Andrésdóttir | D89: 16 | E89: Sundfélagið Óðinn | F89: 14 | G89: 14 | H89: 14 | J89: Tinna Rut Andrésdóttir S14

Sheet Úrslit
B7: 1. Grein: Drengir 50m Baksund
B9: 0 | C9: =VLOOKUP(42,Keppendur!B6:C1000,2,FALSE) -> Róbert Salvar Reynisson | D9: =VLOOKUP(42,Keppendur!B6:D1000,3,FALSE) -> 16 | E9: =VLOOKUP(42,Keppendur!B6:E1000,4,FALSE) -> NES | F9: =CONCATENATE("S",INDEX(Keppendur!F6:H1000,MATCH(42,Keppendur!B6:B1000,0),MATCH("S",Keppendur!F5:H5,0))) -> S9 | G9: 00:00:52 | H9: =INDEX(Viðmið!$B$23:$T$39,MATCH(F9,Viðmið!$A$23:$A$39, 0),MATCH("50 bak",Viðmið!$B$22:$T$22,0)) -> 00:00:28.877
B10: Riðill #1 | D10: Aldur | G10: Besti tími | H10: Viðmið | I10: Loka Tími | J10: Stig | K10: Met
B11: 3 | C11: =VLOOKUP(35,Keppendur!B6:C1000,2,FALSE) -> Leó Baldurrson | D11: =VLOOKUP(35,Keppendur!B6:D1000,3,FALSE) -> 10 | E11: =VLOOKUP(35,Keppendur!B6:E1000,4,FALSE) -> NES | F11: =CONCATENATE("S",INDEX(Keppendur!F6:H1000,MATCH(35,Keppendur!B6:B1000,0),MATCH("S",Keppendur!F5:H5,0))) -> S14 | G11: 00:00:00 | H11: =INDEX(Viðmið!$B$23:$T$39,MATCH(F11,Viðmið!$A$23:$A$39, 0),MATCH("50 bak",Viðmið!$B$22:$T$22,0)) -> 00:00:27.428 | I11: 00:01:20.820 | J11: =POWER((10*H:H/I:I),3) -> 39.08642565 | K11: =IF(I11 < INDEX('Met25'!$B$23:$T$39,MATCH(F11,'Met25'!$A$23:$A$39, 0),MATCH("50 bak",'Met25'!$B$22:$T$22,0)), "X", "") -> 
B12: 5 | C12: =VLOOKUP(62,Keppendur!B6:C1000,2,FALSE) -> Logi Ingólfsson | D12: =VLOOKUP(62,Keppendur!B6:D1000,3,FALSE) -> 9 | E12: =VLOOKUP(62,Keppendur!B6:E1000,4,FALSE) -> Sundfélagið Óðinn | F12: =CONCATENATE("S",INDEX(Keppendur!F6:H1000,MATCH(62,Keppendur!B6:B1000,0),MATCH("S",Keppendur!F5:H5,0))) -> S20 | G12: 00:00:00 | H12: =INDEX(Viðmið!$B$23:$T$39,MATCH(F12,Viðmið!$A$23:$A$39, 0),MATCH("50 bak",Viðmið!$B$22:$T$22,0)) -> 00:00:24.040 | I12: DQ
B13: 6 | C13: =VLOOKUP(69,Keppendur!B6:C1000,2,FALSE) -> Hjalti G Guðmundsson | D13: =VLOOKUP(69,Keppendur!B6:D1000,3,FALSE) -> 0 | E13: =VLOOKUP(69,Keppendur!B6:E1000,4,FALSE) -> Íþróttafélagið Ösp | F13: =CONCATENATE("S",INDEX(Keppendur!F6:H1000,MATCH(69,Keppendur!B6:B1000,0),MATCH("S",Keppendur!F5:H5,0))) -> S14 | G13: NT | H13: =INDEX(Viðmið!$B$23:$T$39,MATCH(F13,Viðmið!$A$23:$A$39, 0),MATCH("50 bak",Viðmið!$B$22:$T$22,0)) -> 00:00:27.428 | I13: 00:01:06.760 | J13: =POWER((10*H:H/I:I),3) -> 69.3479315 | K13: =IF(I13 < INDEX('Met25'!$B$23:$T$39,MATCH(F13,'Met25'!$A$23:$A$39, 0),MATCH("50 bak",'Met25'!$B$22:$T$22,0)), "X", "") -> 
B14: Riðill #2 | D14: Aldur | G14: Besti tími | H14: Viðmið | I14: Loka Tími | J14: Stig | K14: Met
B15: 3 | C15: =VLOOKUP(9,Keppendur!B6:C1000,2,FALSE) -> Baldur M Kristinsson | D15: =VLOOKUP(9,Keppendur!B6:D1000,3,FALSE) -> 10 | E15: =VLOOKUP(9,Keppendur!B6:E1000,4,FALSE) -> Íþróttafélagið Fjörður | F15: =CONCATENATE("S",INDEX(Keppendur!F6:H1000,MATCH(9,Keppendur!B6:B1000,0),MATCH("S",Keppendur!F5:H5,0))) -> S14 | G15: 00:01:21.600 | H15: =INDEX(Viðmið!$B$23:$T$39,MATCH(F15,Viðmið!$A$23:$A$39, 0),MATCH("50 bak",Viðmið!$B$22:$T$22,0)) -> 00:00:27.428 | I15: 00:01:01.890 | J15: =POWER((10*H:H/I:I),3) -> 87.04043393 | K15: =IF(I15 < INDEX('Met25'!$B$23:$T$39,MATCH(F15,'Met25'!$A$23:$A$39, 0),MATCH("50 bak",'Met25'!$B$22:$T$22,0)), "X", "") -> 
B16: 4 | C16: =VLOOKUP(2,Keppendur!B6:C1000,2,FALSE) -> Unnar I Ingason | D16: =VLOOKUP(2,Keppendur!B6:D1000,3,FALSE) -> 14 | E16: =VLOOKUP(2,Keppendur!B6:E1000,4,FALSE) -> Íþróttafélagið Fjörður | F16: =CONCATENATE("S",INDEX(Keppendur!F6:H1000,MATCH(2,Keppendur!B6:B1000,0),MATCH("S",Keppendur!F5:H5,0))) -> S14 | G16: 00:01:03.390 | H16: =INDEX(Viðmið!$B$23:$T$39,MATCH(F16,Viðmið!$A$23:$A$39, 0),MATCH("50 bak",Viðmið!$B$22:$T$22,0)) -> 00:00:27.428 | I16: DQ
B17: 5 | C17: =VLOOKUP(28,Keppendur!B6:C1000,2,FALSE) -> Snævar Örn Kristmannsson | D17: =VLOOKUP(28,Keppendur!B6:D1000,3,FALSE) -> 9 | E17: =VLOOKUP(28,Keppendur!B6:E1000,4,FALSE) -> ÍFR | F17: =CONCATENATE("S",INDEX(Keppendur!F6:H1000,MATCH(28,Keppendur!B6:B1000,0),MATCH("S",Keppendur!F5:H5,0))) -> S14 | G17: 00:01:11.080 | H17: =INDEX(Viðmið!$B$23:$T$39,MATCH(F17,Viðmið!$A$23:$A$39, 0),MATCH("50 bak",Viðmið!$B$22:$T$22,0)) -> 00:00:27.428 | I17: 00:01:00.080 | J17: =POWER((10*H:H/I:I),3) -> 95.14647948 | K17: =IF(I17 < INDEX('Met25'!$B$23:$T$39,MATCH(F17,'Met25'!$A$23:$A$39, 0),MATCH("50 bak",'Met25'!$B$22:$T$22,0)), "X", "") -> 
B18: 6 | C18: =VLOOKUP(33,Keppendur!B6:C1000,2,FALSE) -> Þorleifur Pálmi Páls | D18: =VLOOKUP(33,Keppendur!B6:D1000,3,FALSE) -> 12 | E18: =VLOOKUP(33,Keppendur!B6:E1000,4,FALSE) -> Íþróttafélagið Ösp | F18: =CONCATENATE("S",INDEX(Keppendur!F6:H1000,MATCH(33,Keppendur!B6:B1000,0),MATCH("S",Keppendur!F5:H5,0))) -> S14 | G18: 00:01:24.660 | H18: =INDEX(Viðmið!$B$23:$T$39,MATCH(F18,Viðmið!$A$23:$A$39, 0),MATCH("50 bak",Viðmið!$B$22:$T$22,0)) -> 00:00:27.428 | I18: 00:01:37.990 | J18: =POWER((10*H:H/I:I),3) -> 21.92992884 | K18: =IF(I18 < INDEX('Met25'!$B$23:$T$39,MATCH(F18,'Met25'!$A$23:$A$39, 0),MATCH("50 bak",'Met25'!$B$22:$T$22,0)), "X", "") -> 
B19: 7 | C19: =VLOOKUP(30,Keppendur!B6:C1000,2,FALSE) -> Jóhann Stígur Eiríksson | D19: =VLOOKUP(30,Keppendur!B6:D1000,3,FALSE) -> 15 | E19: =VLOOKUP(30,Keppendur!B6:E1000,4,FALSE) -> Íþróttafélagið Ösp | F19: =CONCATENATE("S",INDEX(Keppendur!F6:H1000,MATCH(30,Keppendur!B6:B1000,0),MATCH("S",Keppendur!F5:H5,0))) -> S14 | G19: 00:01:29.560 | H19: =INDEX(Viðmið!$B$23:$T$39,MATCH(F19,Viðmið!$A$23:$A$39, 0),MATCH("50 bak",Viðmið!$B$22:$T$22,0)) -> 00:00:27.428 | I19: 00:01:22.040 | J19: =POWER((10*H:H/I:I),3) -> 37.36848926 | K19: =IF(I19 < INDEX('Met25'!$B$23:$T$39,MATCH(F19,'Met25'!$A$23:$A$39, 0),MATCH("50 bak",'Met25'!$B$22:$T$22,0)), "X", "") -> 
B20: Riðill #3 | D20: Aldur | G20: Besti tími | H20: Viðmið | I20: Loka Tími | J20: Stig | K20: Met
B21: 2 | C21: =VLOOKUP(58,Keppendur!B6:C1000,2,FALSE) -> Fannar Logi Jóhannesson | D21: =VLOOKUP(58,Keppendur!B6:D1000,3,FALSE) -> 15 | E21: =VLOOKUP(58,Keppendur!B6:E1000,4,FALSE) -> Sundfélagið Óðinn | F21: S14 | G21: 00:00:46.550 | H21: =INDEX(Viðmið!$B$23:$T$39,MATCH(F21,Viðmið!$A$23:$A$39, 0),MATCH("50 bak",Viðmið!$B$22:$T$22,0)) -> 00:00:27.428 | I21: 00:00:44.170 | J21: =POWER((10*H:H/I:I),3) -> 239.4419815 | K21: =IF(I21 < INDEX('Met25'!$B$23:$T$39,MATCH(F21,'Met25'!$A$23:$A$39, 0),MATCH("50 bak",'Met25'!$B$22:$T$22,0)), "X", "") -> 
B22: 3 | C22: =VLOOKUP(15,Keppendur!B6:C1000,2,FALSE) -> Björn Axel Agnarsson | D22: =VLOOKUP(15,Keppendur!B6:D1000,3,FALSE) -> 13 | E22: =VLOOKUP(15,Keppendur!B6:E1000,4,FALSE) -> ÍFR | F22: =CONCATENATE("S",INDEX(Keppendur!F6:H1000,MATCH(15,Keppendur!B6:B1000,0),MATCH("S",Keppendur!F5:H5,0))) -> S20 | G22: 00:00:39.020 | H22: =INDEX(Viðmið!$B$23:$T$39,MATCH(F22,Viðmið!$A$23:$A$39, 0),MATCH("50 bak",Viðmið!$B$22:$T$22,0)) -> 00:00:24.040 | I22: 00:00:34.160 | J22: =POWER((10*H:H/I:I),3) -> 348.5377345 | K22: =IF(I22 < INDEX('Met25'!$B$23:$T$39,MATCH(F22,'Met25'!$A$23:$A$39, 0),MATCH("50 bak",'Met25'!$B$22:$T$22,0)), "X", "") -> 
B23: 4 | C23: =VLOOKUP(3,Keppendur!B6:C1000,2,FALSE) -> Róbert Í Jónsson | D23: =VLOOKUP(3,Keppendur!B6:D1000,3,FALSE) -> 14 | E23: =VLOOKUP(3,Keppendur!B6:E1000,4,FALSE) -> Íþróttafélagið Fjörður | F23: =CONCATENATE("S",INDEX(Keppendur!F6:H1000,MATCH(3,Keppendur!B6:B1000,0),MATCH("S",Keppendur!F5:H5,0))) -> S14 | G23: 00:00:36.540 | H23: =INDEX(Viðmið!$B$23:$T$39,MATCH(F23,Viðmið!$A$23:$A$39, 0),MATCH("50 bak",Viðmið!$B$22:$T$22,0)) -> 00:00:27.428 | I23: 00:00:33.060 | J23: =POWER((10*H:H/I:I),3) -> 571.0497528 | K23: =IF(I23 < INDEX('Met25'!$B$23:$T$39,MATCH(F23,'Met25'!$A$23:$A$39, 0),MATCH("50 bak",'Met25'!$B$22:$T$22,0)), "X", "") -> 
B24: 5 | C24: =VLOOKUP(40,Keppendur!B6:C1000,2,FALSE) -> Már Gunnarsson | D24: =VLOOKUP(40,Keppendur!B6:D1000,3,FALSE) -> 16 | E24: =VLOOKUP(40,Keppendur!B6:E1000,4,FALSE) -> NES | F24: =CONCATENATE("S",INDEX(Keppendur!F6:H1000,MATCH(40,Keppendur!B6:B1000,0),MATCH("S",Keppendur!F5:H5,0))) -> S12 | G24: 00:00:37 | H24: =INDEX(Viðmið!$B$23:$T$39,MATCH(F24,Viðmið!$A$23:$A$39, 0),MATCH("50 bak",Viðmið!$B$22:$T$22,0)) -> 00:00:27.470 | I24: 00:00:36.780 | J24: =POWER((10*H:H/I:I),3) -> 416.6050684 | K24: =IF(I24 < INDEX('Met25'!$B$23:$T$39,MATCH(F24,'Met25'!$A$23:$A$39, 0),MATCH("50 bak",'Met25'!$B$22:$T$22,0)), "X", "") -> 
B25: 6 | C25: =VLOOKUP(37,Keppendur!B6:C1000,2,FALSE) -> Ingólfur M Bjarnason | D25: =VLOOKUP(37,Keppendur!B6:D1000,3,FALSE) -> 15 | E25: =VLOOKUP(37,Keppendur!B6:E1000,4,FALSE) -> NES | F25: =CONCATENATE("S",INDEX(Keppendur!F6:H1000,MATCH(37,Keppendur!B6:B1000,0),MATCH("S",Keppendur!F5:H5,0))) -> S10 | G25: 00:00:46 | H25: =INDEX(Viðmið!$B$23:$T$39,MATCH(F25,Viðmið!$A$23:$A$39, 0),MATCH("50 bak",Viðmið!$B$22:$T$22,0)) -> 00:00:27.567 | I25: 00:00:58.450 | J25: =POWER((10*H:H/I:I),3) -> 104.9078713 | K25: =IF(I25 < INDEX('Met25'!$B$23:$T$39,MATCH(F25,'Met25'!$A$23:$A$39, 0),MATCH("50 bak",'Met25'!$B$22:$T$22,0)), "X", "") -> 
B26: 7 | C26: =VLOOKUP(39,Keppendur!B6:C1000,2,FALSE) -> Alexander Guðmundsson | D26: =VLOOKUP(39,Keppendur!B6:D1000,3,FALSE) -> 12 | E26: =VLOOKUP(39,Keppendur!B6:E1000,4,FALSE) -> NES | F26: =CONCATENATE("S",INDEX(Keppendur!F6:H1000,MATCH(39,Keppendur!B6:B1000,0),MATCH("S",Keppendur!F5:H5,0))) -> S14 | G26: 00:00:48 | H26: =INDEX(Viðmið!$B$23:$T$39,MATCH(F26,Viðmið!$A$23:$A$39, 0),MATCH("50 bak",Viðmið!$B$22:$T$22,0)) -> 00:00:27.428 | I26: DQ
B27: 8 | C27: =VLOOKUP(1,Keppendur!B6:C1000,2,FALSE) -> Hallgrímur A Heimisson | D27: =VLOOKUP(1,Keppendur!B6:D1000,3,FALSE) -> 14 | E27: =VLOOKUP(1,Keppendur!B6:E1000,4,FALSE) -> Íþróttafélagið Fjörður | F27: =CONCATENATE("S",INDEX(Keppendur!F6:H1000,MATCH(1,Keppendur!B6:B1000,0),MATCH("S",Keppendur!F5:H5,0))) -> S14 | G27: 00:01:00.910 | H27: =INDEX(Viðmið!$B$23:$T$39,MATCH(F27,Viðmið!$A$23:$A$39, 0),MATCH("50 bak",Viðmið!$B$22:$T$22,0)) -> 00:00:27.428
B77: 2. Grein: Stúlkur 50m Baksund
B79: 0 | C79: =VLOOKUP(41,Keppendur!B6:C1000,2,FALSE) -> Ingibjörg F Margeirsdóttir | D79: =VLOOKUP(41,Keppendur!B6:D1000,3,FALSE) -> 16 | E79: =VLOOKUP(41,Keppendur!B6:E1000,4,FALSE) -> NES | F79: =CONCATENATE("S",INDEX(Keppendur!F6:H1000,MATCH(41,Keppendur!B6:B1000,0),MATCH("S",Keppendur!F5:H5,0))) -> S14 | G79: 00:00:44 | H79: =INDEX(Viðmið!$B$3:$T$19,MATCH(F79,Viðmið!$A$3:$A$19, 0),MATCH("50 bak",Viðmið!$B$2:$T$2,0)) -> 00:00:30.124
B80: Riðill #1 | D80: Aldur | G80: Besti tími | H80: Viðmið | I80: Loka Tími | J80: Stig | K80: Met
B81: 4 | C81: =VLOOKUP(13,Keppendur!B6:C1000,2,FALSE) -> Emelía Ý Gunnarsdóttir | D81: =VLOOKUP(13,Keppendur!B6:D1000,3,FALSE) -> 9 | E81: =VLOOKUP(13,Keppendur!B6:E1000,4,FALSE) -> Íþróttafélagið Fjörður | F81: =CONCATENATE("S",INDEX(Keppendur!F6:H1000,MATCH(13,Keppendur!B6:B1000,0),MATCH("S",Keppendur!F5:H5,0))) -> S14 | G81: 00:02:02.700 | H81: =INDEX(Viðmið!$B$3:$T$19,MATCH(F81,Viðmið!$A$3:$A$19, 0),MATCH("50 bak",Viðmið!$B$2:$T$2,0)) -> 00:00:30.124 | I81: DQ
B82: 5 | C82: =VLOOKUP(10,Keppendur!B6:C1000,2,FALSE) -> Kristjana L Albertsdóttir | D82: =VLOOKUP(10,Keppendur!B6:D1000,3,FALSE) -> 0 | E82: =VLOOKUP(10,Keppendur!B6:E1000,4,FALSE) -> Íþróttafélagið Fjörður | F82: =CONCATENATE("S",INDEX(Keppendur!F6:H1000,MATCH(10,Keppendur!B6:B1000,0),MATCH("S",Keppendur!F5:H5,0))) -> S14 | G82: 00:02:13.550 | H82: =INDEX(Viðmið!$B$3:$T$19,MATCH(F82,Viðmið!$A$3:$A$19, 0),MATCH("50 bak",Viðmið!$B$2:$T$2,0)) -> 00:00:30.124 | I82: DQ
B83: 6 | C83: =VLOOKUP(57,Keppendur!B6:C1000,2,FALSE) -> Arndís Atladóttir | D83: =VLOOKUP(57,Keppendur!B6:D1000,3,FALSE) -> 15 | E83: =VLOOKUP(57,Keppendur!B6:E1000,4,FALSE) -> Sundfélagið Óðinn | F83: =CONCATENATE("S",INDEX(Keppendur!F6:H1000,MATCH(57,Keppendur!B6:B1000,0),MATCH("S",Keppendur!F5:H5,0))) -> S14 | G83: 00:02:00.530 | H83: =INDEX(Viðmið!$B$3:$T$19,MATCH(F83,Viðmið!$A$3:$A$19, 0),MATCH("50 bak",Viðmið!$B$2:$T$2,0)) -> 00:00:30.124 | I83: 00:01:32.560 | J83: =POWER((10*H:H/I:I),3) -> 34.47064137 | K83: =IF(I83 < INDEX('Met25'!$B$3:$T$19,MATCH(F83,'Met25'!$A$3:$A$19, 0),MATCH("50 bak",'Met25'!$B$2:$T$2,0)), "X", "") -> 
B84: Riðill #2 | D84: Aldur | G84: Besti tími | H84: Viðmið | I84: Loka Tími | J84: Stig | K84: Met
B85: 1 | C85: =VLOOKUP(14,Keppendur!B6:C1000,2,FALSE) -> Guðbjörg S Sigfúsdóttir | D85: =VLOOKUP(14,Keppendur!B6:D1000,3,FALSE) -> 15 | E85: =VLOOKUP(14,Keppendur!B6:E1000,4,FALSE) -> Íþróttafélagið Fjörður | F85: =CONCATENATE("S",INDEX(Keppendur!F6:H1000,MATCH(14,Keppendur!B6:B1000,0),MATCH("S",Keppendur!F5:H5,0))) -> S14 | G85: 00:01:37.980 | H85: =INDEX(Viðmið!$B$3:$T$19,MATCH(F85,Viðmið!$A$3:$A$19, 0),MATCH("50 bak",Viðmið!$B$2:$T$2,0)) -> 00:00:30.124
B86: 2 | C86: =VLOOKUP(8,Keppendur!B6:C1000,2,FALSE) -> Katrín E Kristjánsdóttir | D86: =VLOOKUP(8,Keppendur!B6:D1000,3,FALSE) -> 11 | E86: =VLOOKUP(8,Keppendur!B6:E1000,4,FALSE) -> Íþróttafélagið Fjörður | F86: =CONCATENATE("S",INDEX(Keppendur!F6:H1000,MATCH(8,Keppendur!B6:B1000,0),MATCH("S",Keppendur!F5:H5,0))) -> S14 | G86: 00:01:13.480 | H86: =INDEX(Viðmið!$B$3:$T$19,MATCH(F86,Viðmið!$A$3:$A$19, 0),MATCH("50 bak",Viðmið!$B$2:$T$2,0)) -> 00:00:30.124 | I86: 00:01:05.270 | J86: =POWER((10*H:H/I:I),3) -> 98.30566918 | K86: =IF(I86 < INDEX('Met25'!$B$3:$T$19,MATCH(F86,'Met25'!$A$3:$A$19, 0),MATCH("50 bak",'Met25'!$B$2:$T$2,0)), "X", "") -> 
B87: 3 | C87: =VLOOKUP(26,Keppendur!B6:C1000,2,FALSE) -> Heiður B Egilsdóttir | D87: =VLOOKUP(26,Keppendur!B6:D1000,3,FALSE) -> 11 | E87: =VLOOKUP(26,Keppendur!B6:E1000,4,FALSE) -> ÍFR | F87: =CONCATENATE("S",INDEX(Keppendur!F6:H1000,MATCH(26,Keppendur!B6:B1000,0),MATCH("S",Keppendur!F5:H5,0))) -> S8 | G87: 00:01:09.430 | H87: =INDEX(Viðmið!$B$3:$T$19,MATCH(F87,Viðmið!$A$3:$A$19, 0),MATCH("50 bak",Viðmið!$B$2:$T$2,0)) -> 00:00:36.046 | I87: DQ
B88: 4 | C88: =VLOOKUP(5,Keppendur!B6:C1000,2,FALSE) -> Anna R Þrastardóttir | D88: =VLOOKUP(5,Keppendur!B6:D1000,3,FALSE) -> 10 | E88: =VLOOKUP(5,Keppendur!B6:E1000,4,FALSE) -> Íþróttafélagið Fjörður | F88: =CONCATENATE("S",INDEX(Keppendur!F6:H1000,MATCH(5,Keppendur!B6:B1000,0),MATCH("S",Keppendur!F5:H5,0))) -> S14 | G88: 00:01:04.560 | H88: =INDEX(Viðmið!$B$3:$T$19,MATCH(F88,Viðmið!$A$3:$A$19, 0),MATCH("50 bak",Viðmið!$B$2:$T$2,0)) -> 00:00:30.124 | I88: 00:01:05.560 | J88: =POWER((10*H:H/I:I),3) -> 97.00688681 | K88: =IF(I88 < INDEX('Met25'!$B$3:$T$19,MATCH(F88,'Met25'!$A$3:$A$19, 0),MATCH("50 bak",'Met25'!$B$2:$T$2,0)), "X", "") -> 
B89: 5 | C89: =VLOOKUP(11,Keppendur!B6:C1000,2,FALSE) -> Victoria L Karenardóttir | D89: =VLOOKUP(11,Keppendur!B6:D1000,3,FALSE) -> 0 | E89: =VLOOKUP(11,Keppendur!B6:E1000,4,FALSE) -> Íþróttafélagið Fjörður | F89: =CONCATENATE("S",INDEX(Keppendur!F6:H1000,MATCH(11,Keppendur!B6:B1000,0),MATCH("S",Keppendur!F5:H5,0))) -> S14 | G89: 00:01:09.070 | H89: =INDEX(Viðmið!$B$3:$T$19,MATCH(F89,Viðmið!$A$3:$A$19, 0),MATCH("50 bak",Viðmið!$B$2:$T$2,0)) -> 00:00:30.124 | I89: 00:01:06.070 | J89: =POWER((10*H:H/I:I),3) -> 94.777769 | K89: =IF(I89 < INDEX('Met25'!$B$3:$T$19,MATCH(F89,'Met25'!$A$3:$A$19, 0),MATCH("50 bak",'Met25'!$B$2:$T$2,0)), "X", "") -> 
B90: 6 | C90: =VLOOKUP(12,Keppendur!B6:C1000,2,FALSE) -> Sigrún Kjartansdóttir | D90: =VLOOKUP(12,Keppendur!B6:D1000,3,FALSE) -> 0 | E90: =VLOOKUP(12,Keppendur!B6:E1000,4,FALSE) -> Íþróttafélagið Fjörður | F90: =CONCATENATE("S",INDEX(Keppendur!F6:H1000,MATCH(12,Keppendur!B6:B1000,0),MATCH("S",Keppendur!F5:H5,0))) -> S14 | G90: 00:01:10.570 | H90: =INDEX(Viðmið!$B$3:$T$19,MATCH(F90,Viðmið!$A$3:$A$19, 0),MATCH("50 bak",Viðmið!$B$2:$T$2,0)) -> 00:00:30.124 | I90: 00:01:23.190 | J90: =POWER((10*H:H/I:I),3) -> 47.47948822 | K90: =IF(I90 < INDEX('Met25'!$B$3:$T$19,MATCH(F90,'Met25'!$A$3:$A$19, 0),MATCH("50 bak",'Met25'!$B$2:$T$2,0)), "X", "") -> 
B91: 7 | C91: =VLOOKUP(6,Keppendur!B6:C1000,2,FALSE) -> Nevena Cupovic | D91: =VLOOKUP(6,Keppendur!B6:D1000,3,FALSE) -> 15 | E91: =VLOOKUP(6,Keppendur!B6:E1000,4,FALSE) -> Íþróttafélagið Fjörður | F91: =CONCATENATE("S",INDEX(Keppendur!F6:H1000,MATCH(6,Keppendur!B6:B1000,0),MATCH("S",Keppendur!F5:H5,0))) -> S14 | G91: 00:01:19.450 | H91: =INDEX(Viðmið!$B$3:$T$19,MATCH(F91,Viðmið!$A$3:$A$19, 0),MATCH("50 bak",Viðmið!$B$2:$T$2,0)) -> 00:00:30.124
B92: Riðill #3 | D92: Aldur | G92: Besti tími | H92: Viðmið | I92: Loka Tími | J92: Stig | K92: Met
B93: 1 | C93: =VLOOKUP(59,Keppendur!B6:C1000,2,FALSE) -> Tinna Rut Andrésdóttir | D93: =VLOOKUP(59,Keppendur!B6:D1000,3,FALSE) -> 16 | E93: =VLOOKUP(59,Keppendur!B6:E1000,4,FALSE) -> Sundfélagið Óðinn | F93: =CONCATENATE("S",INDEX(Keppendur!F6:H1000,MATCH(59,Keppendur!B6:B1000,0),MATCH("S",Keppendur!F5:H5,0))) -> S14 | G93: 00:00:53.300 | H93: =INDEX(Viðmið!$B$3:$T$19,MATCH(F93,Viðmið!$A$3:$A$19, 0),MATCH("50 bak",Viðmið!$B$2:$T$2,0)) -> 00:00:30.124 | I93: 00:00:44.570 | J93: =POWER((10*H:H/I:I),3) -> 308.7390046 | K93: =IF(I93 < INDEX('Met25'!$B$3:$T$19,MATCH(F93,'Met25'!$A$3:$A$19, 0),MATCH("50 bak",'Met25'!$B$2:$T$2,0)), "X", "") -> 
B94: 2 | C94: =VLOOKUP(67,Keppendur!B6:C1000,2,FALSE) -> Sandra S Gunnarsdóttir | D94: =VLOOKUP(67,Keppendur!B6:D1000,3,FALSE) -> 16 | E94: =VLOOKUP(67,Keppendur!B6:E1000,4,FALSE) -> Sunddeild Fjölnis | F94: =CONCATENATE("S",INDEX(Keppendur!F6:H1000,MATCH(67,Keppendur!B6:B1000,0),MATCH("S",Keppendur!F5:H5,0))) -> S12 | G94: 00:00:46.070 | H94: =INDEX(Viðmið!$B$3:$T$19,MATCH(F94,Viðmið!$A$3:$A$19, 0),MATCH("50 bak",Viðmið!$B$2:$T$2,0)) -> 00:00:30.799 | I94: 00:00:45.420 | J94: =POWER((10*H:H/I:I),3) -> 311.7846399 | K94: =IF(I94 < INDEX('Met25'!$B$3:$T$19,MATCH(F94,'Met25'!$A$3:$A$19, 0),MATCH("50 bak",'Met25'!$B$2:$T$2,0)), "X", "") ->  | L94: =IF(I94<K94,"x","") -> x | M94: =I94 -> 00:00:45.420
B95: 4 | C95: =VLOOKUP(20,Keppendur!B6:C1000,2,FALSE) -> Thórey Í Magnúsdóttir | D95: =VLOOKUP(20,Keppendur!B6:D1000,3,FALSE) -> 16 | E95: =VLOOKUP(20,Keppendur!B6:E1000,4,FALSE) -> ÍFR | F95: =CONCATENATE("S",INDEX(Keppendur!F6:H1000,MATCH(20,Keppendur!B6:B1000,0),MATCH("S",Keppendur!F5:H5,0))) -> S14 | G95: 00:00:40.360 | H95: =INDEX(Viðmið!$B$3:$T$19,MATCH(F95,Viðmið!$A$3:$A$19, 0),MATCH("50 bak",Viðmið!$B$2:$T$2,0)) -> 00:00:30.124 | I95: 00:00:40.840 | J95: =POWER((10*H:H/I:I),3) -> 401.2935706 | K95: =IF(I95 < INDEX('Met25'!$B$3:$T$19,MATCH(F95,'Met25'!$A$3:$A$19, 0),MATCH("50 bak",'Met25'!$B$2:$T$2,0)), "X", "") ->  | M95: =K94 -> 
B96: 5 | C96: =VLOOKUP(36,Keppendur!B6:C1000,2,FALSE) -> Ástrós M Bjarnadóttir | D96: =VLOOKUP(36,Keppendur!B6:D1000,3,FALSE) -> 16 | E96: =VLOOKUP(36,Keppendur!B6:E1000,4,FALSE) -> NES | F96: =CONCATENATE("S",INDEX(Keppendur!F6:H1000,MATCH(36,Keppendur!B6:B1000,0),MATCH("S",Keppendur!F5:H5,0))) -> S18 | G96: 00:00:42 | H96: =INDEX(Viðmið!$B$3:$T$19,MATCH(F96,Viðmið!$A$3:$A$19, 0),MATCH("50 bak",Viðmið!$B$2:$T$2,0)) -> 00:00:30.600 | I96: 00:00:46.490 | J96: =POWER((10*H:H/I:I),3) -> 285.1580531 | K96: =IF(I96 < INDEX('Met25'!$B$3:$T$19,MATCH(F96,'Met25'!$A$3:$A$19, 0),MATCH("50 bak",'Met25'!$B$2:$T$2,0)), "X", "") -> 
B97: 6 | C97: =VLOOKUP(7,Keppendur!B6:C1000,2,FALSE) -> Sigríður Aníta Rögnvaldsóttir | D97: =VLOOKUP(7,Keppendur!B6:D1000,3,FALSE) -> 13 | E97: =VLOOKUP(7,Keppendur!B6:E1000,4,FALSE) -> Íþróttafélagið Fjörður | F97: =CONCATENATE("S",INDEX(Keppendur!F6:H1000,MATCH(7,Keppendur!B6:B1000,0),MATCH("S",Keppendur!F5:H5,0))) -> S14 | G97: 00:00:44.330 | H97: =INDEX(Viðmið!$B$3:$T$19,MATCH(F97,Viðmið!$A$3:$A$19, 0),MATCH("50 bak",Viðmið!$B$2:$T$2,0)) -> 00:00:30.124
B98: 7 | C98: =VLOOKUP(43,Keppendur!B6:C1000,2,FALSE) -> Matthildur E Sigurðardóttir | D98: =VLOOKUP(43,Keppendur!B6:D1000,3,FALSE) -> 10 | E98: =VLOOKUP(43,Keppendur!B6:E1000,4,FALSE) -> NES | F98: =CONCATENATE("S",INDEX(Keppendur!F6:H1000,MATCH(43,Keppendur!B6:B1000,0),MATCH("S",Keppendur!F5:H5,0))) -> S10 | G98: 00:00:52 | H98: =INDEX(Viðmið!$B$3:$T$19,MATCH(F98,Viðmið!$A$3:$A$19, 0),MATCH("50 bak",Viðmið!$B$2:$T$2,0)) -> 00:00:30.664
B99: 8 | C99: =VLOOKUP(32,Keppendur!B6:C1000,2,FALSE) -> Gunnhildur Brynja Be | D99: =VLOOKUP(32,Keppendur!B6:D1000,3,FALSE) -> 14 | E99: =VLOOKUP(32,Keppendur!B6:E1000,4,FALSE) -> Íþróttafélagið Ösp | F99: =CONCATENATE("S",INDEX(Keppendur!F6:H1000,MATCH(32,Keppendur!B6:B1000,0),MATCH("S",Keppendur!F5:H5,0))) -> S14 | G99: 00:00:53.930 | H99: =INDEX(Viðmið!$B$3:$T$19,MATCH(F99,Viðmið!$A$3:$A$19, 0),MATCH("50 bak",Viðmið!$B$2:$T$2,0)) -> 00:00:30.124 | I99: 00:01:10.570 | J99: =POWER((10*H:H/I:I),3) -> 77.778408 | K99: =IF(I99 < INDEX('Met25'!$B$3:$T$19,MATCH(F99,'Met25'!$A$3:$A$19, 0),MATCH("50 bak",'Met25'!$B$2:$T$2,0)), "X", "") -> 
B147: 3. Grein: Drengir 50m Bringusund
B149: 0 | C149: =VLOOKUP(42,Keppendur!B6:C1000,2,FALSE) -> Róbert Salvar Reynisson | D149: =VLOOKUP(42,Keppendur!B6:D1000,3,FALSE) -> 16 | E149: =VLOOKUP(42,Keppendur!B6:E1000,4,FALSE) -> NES | F149: =CONCATENATE("S",INDEX(Keppendur!F6:H1000,MATCH(42,Keppendur!B6:B1000,0),MATCH("SB",Keppendur!F5:H5,0))) -> S9 | G149: 00:00:53 | H149: =INDEX(Viðmið!$B$23:$T$39,MATCH(F149,Viðmið!$A$23:$A$39, 0),MATCH("50 bringa",Viðmið!$B$22:$T$22,0)) -> 00:00:29.202
B150: Riðill #1 | D150: Aldur | G150: Besti tími | H150: Viðmið | I150: Loka Tími | J150: Stig | K150: Met
B151: 4 | C151: =VLOOKUP(35,Keppendur!B6:C1000,2,FALSE) -> Leó Baldurrson | D151: =VLOOKUP(35,Keppendur!B6:D1000,3,FALSE) -> 10 | E151: =VLOOKUP(35,Keppendur!B6:E1000,4,FALSE) -> NES | F151: =CONCATENATE("S",INDEX(Keppendur!F6:H1000,MATCH(35,Keppendur!B6:B1000,0),MATCH("SB",Keppendur!F5:H5,0))) -> S14 | G151: 00:00:00 | H151: =INDEX(Viðmið!$B$23:$T$39,MATCH(F151,Viðmið!$A$23:$A$39, 0),MATCH("50 bringa",Viðmið!$B$22:$T$22,0)) -> 00:00:30.420 | I151: 00:01:19.380 | J151: =POWER((10*H:H/I:I),3) -> 56.28097971 | K151: =IF(I151 < INDEX('Met25'!$B$23:$T$39,MATCH(F151,'Met25'!$A$23:$A$39, 0),MATCH("50 bringa",'Met25'!$B$22:$T$22,0)), "X", "") -> 
B152: 5 | C152: =VLOOKUP(28,Keppendur!B6:C1000,2,FALSE) -> Snævar Örn Kristmannsson | D152: =VLOOKUP(28,Keppendur!B6:D1000,3,FALSE) -> 9 | E152: =VLOOKUP(28,Keppendur!B6:E1000,4,FALSE) -> ÍFR | F152: =CONCATENATE("S",INDEX(Keppendur!F6:H1000,MATCH(28,Keppendur!B6:B1000,0),MATCH("SB",Keppendur!F5:H5,0))) -> S14 | G152: 00:00:00 | H152: =INDEX(Viðmið!$B$23:$T$39,MATCH(F152,Viðmið!$A$23:$A$39, 0),MATCH("50 bringa",Viðmið!$B$22:$T$22,0)) -> 00:00:30.420 | I152: 00:01:18.540 | J152: =POWER((10*H:H/I:I),3) -> 58.10616884 | K152: =IF(I152 < INDEX('Met25'!$B$23:$T$39,MATCH(F152,'Met25'!$A$23:$A$39, 0),MATCH("50 bringa",'Met25'!$B$22:$T$22,0)), "X", "") -> 
B153: 6 | C153: =VLOOKUP(2,Keppendur!B6:C1000,2,FALSE) -> Unnar I Ingason | D153: =VLOOKUP(2,Keppendur!B6:D1000,3,FALSE) -> 14 | E153: =VLOOKUP(2,Keppendur!B6:E1000,4,FALSE) -> Íþróttafélagið Fjörður | F153: =CONCATENATE("S",INDEX(Keppendur!F6:H1000,MATCH(2,Keppendur!B6:B1000,0),MATCH("SB",Keppendur!F5:H5,0))) -> S14 | G153: 00:00:00 | H153: =INDEX(Viðmið!$B$23:$T$39,MATCH(F153,Viðmið!$A$23:$A$39, 0),MATCH("50 bringa",Viðmið!$B$22:$T$22,0)) -> 00:00:30.420 | I153: DQ
B154: Riðill #2 | D154: Aldur | G154: Besti tími | H154: Viðmið | I154: Loka Tími | J154: Stig | K154: Met
B155: 1 | C155: =VLOOKUP(16,Keppendur!B6:C1000,2,FALSE) -> Haukur H Loftsson | D155: =VLOOKUP(16,Keppendur!B6:D1000,3,FALSE) -> 15 | E155: =VLOOKUP(16,Keppendur!B6:E1000,4,FALSE) -> ÍFR | F155: =CONCATENATE("S",INDEX(Keppendur!F6:H1000,MATCH(16,Keppendur!B6:B1000,0),MATCH("SB",Keppendur!F5:H5,0))) -> S4 | G155: 00:02:36.020 | H155: =INDEX(Viðmið!$B$23:$T$39,MATCH(F155,Viðmið!$A$23:$A$39, 0),MATCH("50 bringa",Viðmið!$B$22:$T$22,0)) -> 00:00:42.089 | I155: DQ
B156: 2 | C156: =VLOOKUP(30,Keppendur!B6:C1000,2,FALSE) -> Jóhann Stígur Eiríksson | D156: =VLOOKUP(30,Keppendur!B6:D1000,3,FALSE) -> 15 | E156: =VLOOKUP(30,Keppendur!B6:E1000,4,FALSE) -> Íþróttafélagið Ösp | F156: =CONCATENATE("S",INDEX(Keppendur!F6:H1000,MATCH(30,Keppendur!B6:B1000,0),MATCH("SB",Keppendur!F5:H5,0))) -> S14 | G156: 00:01:40.560 | H156: =INDEX(Viðmið!$B$23:$T$39,MATCH(F156,Viðmið!$A$23:$A$39, 0),MATCH("50 bringa",Viðmið!$B$22:$T$22,0)) -> 00:00:30.420 | I156: 00:01:49.990 | J156: =POWER((10*H:H/I:I),3) -> 21.15608613 | K156: =IF(I156 < INDEX('Met25'!$B$23:$T$39,MATCH(F156,'Met25'!$A$23:$A$39, 0),MATCH("50 bringa",'Met25'!$B$22:$T$22,0)), "X", "") -> 
B157: 3 | C157: =VLOOKUP(69,Keppendur!B6:C1000,2,FALSE) -> Hjalti G Guðmundsson | D157: =VLOOKUP(69,Keppendur!B6:D1000,3,FALSE) -> 0 | E157: =VLOOKUP(69,Keppendur!B6:E1000,4,FALSE) -> Íþróttafélagið Ösp | F157: =CONCATENATE("S",INDEX(Keppendur!F6:H1000,MATCH(69,Keppendur!B6:B1000,0),MATCH("SB",Keppendur!F5:H5,0))) -> S14 | G157: NT | H157: =INDEX(Viðmið!$B$23:$T$39,MATCH(F157,Viðmið!$A$23:$A$39, 0),MATCH("50 bringa",Viðmið!$B$22:$T$22,0)) -> 00:00:30.420 | I157: DQ
B158: 5 | C158: =VLOOKUP(18,Keppendur!B6:C1000,2,FALSE) -> Reynir A Magnússon | D158: =VLOOKUP(18,Keppendur!B6:D1000,3,FALSE) -> 14 | E158: =VLOOKUP(18,Keppendur!B6:E1000,4,FALSE) -> ÍFR | F158: =CONCATENATE("S",INDEX(Keppendur!F6:H1000,MATCH(18,Keppendur!B6:B1000,0),MATCH("SB",Keppendur!F5:H5,0))) -> S14 | G158: 00:00:54.570 | H158: =INDEX(Viðmið!$B$23:$T$39,MATCH(F158,Viðmið!$A$23:$A$39, 0),MATCH("50 bringa",Viðmið!$B$22:$T$22,0)) -> 00:00:30.420 | I158: 00:00:54.490 | J158: =POWER((10*H:H/I:I),3) -> 173.9981011 | K158: =IF(I158 < INDEX('Met25'!$B$23:$T$39,MATCH(F158,'Met25'!$A$23:$A$39, 0),MATCH("50 bringa",'Met25'!$B$22:$T$22,0)), "X", "") -> 
B159: 6 | C159: =VLOOKUP(38,Keppendur!B6:C1000,2,FALSE) -> Óskar F Björnsson | D159: =VLOOKUP(38,Keppendur!B6:D1000,3,FALSE) -> 10 | E159: =VLOOKUP(38,Keppendur!B6:E1000,4,FALSE) -> NES | F159: =CONCATENATE("S",INDEX(Keppendur!F6:H1000,MATCH(38,Keppendur!B6:B1000,0),MATCH("SB",Keppendur!F5:H5,0))) -> S14 | G159: 00:01:35 | H159: =INDEX(Viðmið!$B$23:$T$39,MATCH(F159,Viðmið!$A$23:$A$39, 0),MATCH("50 bringa",Viðmið!$B$22:$T$22,0)) -> 00:00:30.420 | I159: DQ
B160: Riðill #3 | D160: Aldur | G160: Besti tími | H160: Viðmið | I160: Loka Tími | J160: Stig | K160: Met
B161: 1 | C161: =VLOOKUP(39,Keppendur!B6:C1000,2,FALSE) -> Alexander Guðmundsson | D161: =VLOOKUP(39,Keppendur!B6:D1000,3,FALSE) -> 12 | E161: =VLOOKUP(39,Keppendur!B6:E1000,4,FALSE) -> NES | F161: =CONCATENATE("S",INDEX(Keppendur!F6:H1000,MATCH(39,Keppendur!B6:B1000,0),MATCH("SB",Keppendur!F5:H5,0))) -> S14 | G161: 00:00:51 | H161: =INDEX(Viðmið!$B$23:$T$39,MATCH(F161,Viðmið!$A$23:$A$39, 0),MATCH("50 bringa",Viðmið!$B$22:$T$22,0)) -> 00:00:30.420 | I161: 00:01:08.040 | J161: =POWER((10*H:H/I:I),3) -> 89.3721113 | K161: =IF(I161 < INDEX('Met25'!$B$23:$T$39,MATCH(F161,'Met25'!$A$23:$A$39, 0),MATCH("50 bringa",'Met25'!$B$22:$T$22,0)), "X", "") -> 
B162: 2 | C162: =VLOOKUP(1,Keppendur!B6:C1000,2,FALSE) -> Hallgrímur A Heimisson | D162: =VLOOKUP(1,Keppendur!B6:D1000,3,FALSE) -> 14 | E162: =VLOOKUP(1,Keppendur!B6:E1000,4,FALSE) -> Íþróttafélagið Fjörður | F162: =CONCATENATE("S",INDEX(Keppendur!F6:H1000,MATCH(1,Keppendur!B6:B1000,0),MATCH("SB",Keppendur!F5:H5,0))) -> S14 | G162: 00:00:46.940 | H162: =INDEX(Viðmið!$B$23:$T$39,MATCH(F162,Viðmið!$A$23:$A$39, 0),MATCH("50 bringa",Viðmið!$B$22:$T$22,0)) -> 00:00:30.420
B163: 3 | C163: =VLOOKUP(40,Keppendur!B6:C1000,2,FALSE) -> Már Gunnarsson | D163: =VLOOKUP(40,Keppendur!B6:D1000,3,FALSE) -> 16 | E163: =VLOOKUP(40,Keppendur!B6:E1000,4,FALSE) -> NES | F163: =CONCATENATE("S",INDEX(Keppendur!F6:H1000,MATCH(40,Keppendur!B6:B1000,0),MATCH("SB",Keppendur!F5:H5,0))) -> S12 | G163: 00:00:42 | H163: =INDEX(Viðmið!$B$23:$T$39,MATCH(F163,Viðmið!$A$23:$A$39, 0),MATCH("50 bringa",Viðmið!$B$22:$T$22,0)) -> 00:00:29.225 | I163: 00:00:43.030 | J163: =POWER((10*H:H/I:I),3) -> 313.3018173 | K163: =IF(I163 < INDEX('Met25'!$B$23:$T$39,MATCH(F163,'Met25'!$A$23:$A$39, 0),MATCH("50 bringa",'Met25'!$B$22:$T$22,0)), "X", "") -> 
B164: 4 | C164: =VLOOKUP(15,Keppendur!B6:C1000,2,FALSE) -> Björn Axel Agnarsson | D164: =VLOOKUP(15,Keppendur!B6:D1000,3,FALSE) -> 13 | E164: =VLOOKUP(15,Keppendur!B6:E1000,4,FALSE) -> ÍFR | F164: =CONCATENATE("S",INDEX(Keppendur!F6:H1000,MATCH(15,Keppendur!B6:B1000,0),MATCH("SB",Keppendur!F5:H5,0))) -> S20 | G164: 00:00:38.970 | H164: =INDEX(Viðmið!$B$23:$T$39,MATCH(F164,Viðmið!$A$23:$A$39, 0),MATCH("50 bringa",Viðmið!$B$22:$T$22,0)) -> 00:00:26.420 | I164: 00:00:38.610 | J164: =POWER((10*H:H/I:I),3) -> 320.4048157 | K164: =IF(I164 < INDEX('Met25'!$B$23:$T$39,MATCH(F164,'Met25'!$A$23:$A$39, 0),MATCH("50 bringa",'Met25'!$B$22:$T$22,0)), "X", "") -> 
B165: 5 | C165: =VLOOKUP(3,Keppendur!B6:C1000,2,FALSE) -> Róbert Í Jónsson | D165: =VLOOKUP(3,Keppendur!B6:D1000,3,FALSE) -> 14 | E165: =VLOOKUP(3,Keppendur!B6:E1000,4,FALSE) -> Íþróttafélagið Fjörður | F165: =CONCATENATE("S",INDEX(Keppendur!F6:H1000,MATCH(3,Keppendur!B6:B1000,0),MATCH("SB",Keppendur!F5:H5,0))) -> S14 | G165: 00:00:39.430 | H165: =INDEX(Viðmið!$B$23:$T$39,MATCH(F165,Viðmið!$A$23:$A$39, 0),MATCH("50 bringa",Viðmið!$B$22:$T$22,0)) -> 00:00:30.420 | I165: 00:00:36.690 | J165: =POWER((10*H:H/I:I),3) -> 569.9697372 | K165: =IF(I165 < INDEX('Met25'!$B$23:$T$39,MATCH(F165,'Met25'!$A$23:$A$39, 0),MATCH("50 bringa",'Met25'!$B$22:$T$22,0)), "X", "") -> 
B166: 6 | C166: =VLOOKUP(58,Keppendur!B6:C1000,2,FALSE) -> Fannar Logi Jóhannesson | D166: =VLOOKUP(58,Keppendur!B6:D1000,3,FALSE) -> 15 | E166: =VLOOKUP(58,Keppendur!B6:E1000,4,FALSE) -> Sundfélagið Óðinn | F166: S14 | G166: 00:00:43.690 | H166: =INDEX(Viðmið!$B$23:$T$39,MATCH(F166,Viðmið!$A$23:$A$39, 0),MATCH("50 bringa",Viðmið!$B$22:$T$22,0)) -> 00:00:30.420 | I166: 00:00:42.920 | J166: =POWER((10*H:H/I:I),3) -> 356.0539373 | K166: =IF(I166 < INDEX('Met25'!$B$23:$T$39,MATCH(F166,'Met25'!$A$23:$A$39, 0),MATCH("50 bringa",'Met25'!$B$22:$T$22,0)), "X", "") -> 
B167: 7 | C167: =VLOOKUP(37,Keppendur!B6:C1000,2,FALSE) -> Ingólfur M Bjarnason | D167: =VLOOKUP(37,Keppendur!B6:D1000,3,FALSE) -> 15 | E167: =VLOOKUP(37,Keppendur!B6:E1000,4,FALSE) -> NES | F167: =CONCATENATE("S",INDEX(Keppendur!F6:H1000,MATCH(37,Keppendur!B6:B1000,0),MATCH("SB",Keppendur!F5:H5,0))) -> S10 | G167: 00:00:50 | H167: =INDEX(Viðmið!$B$23:$T$39,MATCH(F167,Viðmið!$A$23:$A$39, 0),MATCH("50 bringa",Viðmið!$B$22:$T$22,0)) -> 00:00:00 | I167: 00:01:02.240 | J167: =POWER((10*H:H/I:I),3) -> 0 | K167: =IF(I167 < INDEX('Met25'!$B$23:$T$39,MATCH(F167,'Met25'!$A$23:$A$39, 0),MATCH("50 bringa",'Met25'!$B$22:$T$22,0)), "X", "") -> 
B217: 4. Grein: Stúlkur 50m Bringusund
B219: 0 | C219: =VLOOKUP(41,Keppendur!B6:C1000,2,FALSE) -> Ingibjörg F Margeirsdóttir | D219: =VLOOKUP(41,Keppendur!B6:D1000,3,FALSE) -> 16 | E219: =VLOOKUP(41,Keppendur!B6:E1000,4,FALSE) -> NES | F219: =CONCATENATE("S",INDEX(Keppendur!F6:H1000,MATCH(41,Keppendur!B6:B1000,0),MATCH("SB",Keppendur!F5:H5,0))) -> S14 | G219: 00:00:47 | H219: =INDEX(Viðmið!$B$3:$T$19,MATCH(F219,Viðmið!$A$3:$A$19, 0),MATCH("50 bringa",Viðmið!$B$2:$T$2,0)) -> 00:00:34.084
B220: Riðill #1 | D220: Aldur | G220: Besti tími | H220: Viðmið | I220: Loka Tími | J220: Stig | K220: Met
B221: 1 | C221: =VLOOKUP(13,Keppendur!B6:C1000,2,FALSE) -> Emelía Ý Gunnarsdóttir | D221: =VLOOKUP(13,Keppendur!B6:D1000,3,FALSE) -> 9 | E221: =VLOOKUP(13,Keppendur!B6:E1000,4,FALSE) -> Íþróttafélagið Fjörður | F221: =CONCATENATE("S",INDEX(Keppendur!F6:H1000,MATCH(13,Keppendur!B6:B1000,0),MATCH("SB",Keppendur!F5:H5,0))) -> S14 | G221: 00:00:00 | H221: =INDEX(Viðmið!$B$3:$T$19,MATCH(F221,Viðmið!$A$3:$A$19, 0),MATCH("50 bringa",Viðmið!$B$2:$T$2,0)) -> 00:00:34.084 | I221: 00:01:26.550 | J221: =POWER((10*H:H/I:I),3) -> 61.07372002 | K221: =IF(I221 < INDEX('Met25'!$B$3:$T$19,MATCH(F221,'Met25'!$A$3:$A$19, 0),MATCH("50 bringa",'Met25'!$B$2:$T$2,0)), "X", "") -> 
B222: 2 | C222: =VLOOKUP(14,Keppendur!B6:C1000,2,FALSE) -> Guðbjörg S Sigfúsdóttir | D222: =VLOOKUP(14,Keppendur!B6:D1000,3,FALSE) -> 15 | E222: =VLOOKUP(14,Keppendur!B6:E1000,4,FALSE) -> Íþróttafélagið Fjörður | F222: =CONCATENATE("S",INDEX(Keppendur!F6:H1000,MATCH(14,Keppendur!B6:B1000,0),MATCH("SB",Keppendur!F5:H5,0))) -> S14 | G222: 00:00:00 | H222: =INDEX(Viðmið!$B$3:$T$19,MATCH(F222,Viðmið!$A$3:$A$19, 0),MATCH("50 bringa",Viðmið!$B$2:$T$2,0)) -> 00:00:34.084
B223: 3 | C223: =VLOOKUP(11,Keppendur!B6:C1000,2,FALSE) -> Victoria L Karenardóttir | D223: =VLOOKUP(11,Keppendur!B6:D1000,3,FALSE) -> 0 | E223: =VLOOKUP(11,Keppendur!B6:E1000,4,FALSE) -> Íþróttafélagið Fjörður | F223: =CONCATENATE("S",INDEX(Keppendur!F6:H1000,MATCH(11,Keppendur!B6:B1000,0),MATCH("SB",Keppendur!F5:H5,0))) -> S14 | G223: 00:01:36.400 | H223: =INDEX(Viðmið!$B$3:$T$19,MATCH(F223,Viðmið!$A$3:$A$19, 0),MATCH("50 bringa",Viðmið!$B$2:$T$2,0)) -> 00:00:34.084 | I223: DQ
B224: 4 | C224: =VLOOKUP(6,Keppendur!B6:C1000,2,FALSE) -> Nevena Cupovic | D224: =VLOOKUP(6,Keppendur!B6:D1000,3,FALSE) -> 15 | E224: =VLOOKUP(6,Keppendur!B6:E1000,4,FALSE) -> Íþróttafélagið Fjörður | F224: =CONCATENATE("S",INDEX(Keppendur!F6:H1000,MATCH(6,Keppendur!B6:B1000,0),MATCH("SB",Keppendur!F5:H5,0))) -> S14 | G224: 00:01:32.310 | H224: =INDEX(Viðmið!$B$3:$T$19,MATCH(F224,Viðmið!$A$3:$A$19, 0),MATCH("50 bringa",Viðmið!$B$2:$T$2,0)) -> 00:00:34.084
B225: 5 | C225: =VLOOKUP(57,Keppendur!B6:C1000,2,FALSE) -> Arndís Atladóttir | D225: =VLOOKUP(57,Keppendur!B6:D1000,3,FALSE) -> 15 | E225: =VLOOKUP(57,Keppendur!B6:E1000,4,FALSE) -> Sundfélagið Óðinn | F225: =CONCATENATE("S",INDEX(Keppendur!F6:H1000,MATCH(57,Keppendur!B6:B1000,0),MATCH("SB",Keppendur!F5:H5,0))) -> S14 | G225: 00:01:33.600 | H225: =INDEX(Viðmið!$B$3:$T$19,MATCH(F225,Viðmið!$A$3:$A$19, 0),MATCH("50 bringa",Viðmið!$B$2:$T$2,0)) -> 00:00:34.084 | I225: DQ
B226: 6 | C226: =VLOOKUP(84,Keppendur!B6:C1000,2,FALSE) -> Birta Bjarnadóttir | D226: =VLOOKUP(84,Keppendur!B6:D1000,3,FALSE) -> 12 | E226: =VLOOKUP(84,Keppendur!B6:E1000,4,FALSE) -> NES | F226: S14 | G226: 00:01:01 | H226: =INDEX(Viðmið!$B$3:$T$19,MATCH(F226,Viðmið!$A$3:$A$19, 0),MATCH("50 bringa",Viðmið!$B$2:$T$2,0)) -> 00:00:34.084 | I226: 00:00:57.600 | J226: =POWER((10*H:H/I:I),3) -> 207.1992315 | K226: =IF(I226 < INDEX('Met25'!$B$3:$T$19,MATCH(F226,'Met25'!$A$3:$A$19, 0),MATCH("50 bringa",'Met25'!$B$2:$T$2,0)), "X", "") -> 
B227: 7 | C227: =VLOOKUP(26,Keppendur!B6:C1000,2,FALSE) -> Heiður B Egilsdóttir | D227: =VLOOKUP(26,Keppendur!B6:D1000,3,FALSE) -> 11 | E227: =VLOOKUP(26,Keppendur!B6:E1000,4,FALSE) -> ÍFR | F227: =CONCATENATE("S",INDEX(Keppendur!F6:H1000,MATCH(26,Keppendur!B6:B1000,0),MATCH("SB",Keppendur!F5:H5,0))) -> S8 | G227: 00:00:00 | H227: =INDEX(Viðmið!$B$3:$T$19,MATCH(F227,Viðmið!$A$3:$A$19, 0),MATCH("50 bringa",Viðmið!$B$2:$T$2,0)) -> 00:00:35.353 | I227: 00:01:27.730 | J227: =1000*POWER((H:H/I:I),2.8) -> 78.48416403 | K227: =IF(I227 < INDEX('Met25'!$B$3:$T$19,MATCH(F227,'Met25'!$A$3:$A$19, 0),MATCH("50 bringa",'Met25'!$B$2:$T$2,0)), "X", "") -> 
B228: 8 | C228: =VLOOKUP(12,Keppendur!B6:C1000,2,FALSE) -> Sigrún Kjartansdóttir | D228: =VLOOKUP(12,Keppendur!B6:D1000,3,FALSE) -> 0 | E228: =VLOOKUP(12,Keppendur!B6:E1000,4,FALSE) -> Íþróttafélagið Fjörður | F228: =CONCATENATE("S",INDEX(Keppendur!F6:H1000,MATCH(12,Keppendur!B6:B1000,0),MATCH("SB",Keppendur!F5:H5,0))) -> S14 | G228: 00:00:00 | H228: =INDEX(Viðmið!$B$3:$T$19,MATCH(F228,Viðmið!$A$3:$A$19, 0),MATCH("50 bringa",Viðmið!$B$2:$T$2,0)) -> 00:00:34.084 | I228: DQ
B229: Riðill #2 | D229: Aldur | G229: Besti tími | H229: Viðmið | I229: Loka Tími | J229: Stig | K229: Met
B230: 1 | C230: =VLOOKUP(8,Keppendur!B6:C1000,2,FALSE) -> Katrín E Kristjánsdóttir | D230: =VLOOKUP(8,Keppendur!B6:D1000,3,FALSE) -> 11 | E230: =VLOOKUP(8,Keppendur!B6:E1000,4,FALSE) -> Íþróttafélagið Fjörður | F230: =CONCATENATE("S",INDEX(Keppendur!F6:H1000,MATCH(8,Keppendur!B6:B1000,0),MATCH("SB",Keppendur!F5:H5,0))) -> S14 | G230: 00:01:10.600 | H230: =INDEX(Viðmið!$B$3:$T$19,MATCH(F230,Viðmið!$A$3:$A$19, 0),MATCH("50 bringa",Viðmið!$B$2:$T$2,0)) -> 00:00:34.084 | I230: 00:01:18.320 | J230: =POWER((10*H:H/I:I),3) -> 82.42093825 | K230: =IF(I230 < INDEX('Met25'!$B$3:$T$19,MATCH(F230,'Met25'!$A$3:$A$19, 0),MATCH("50 bringa",'Met25'!$B$2:$T$2,0)), "X", "") -> 
B231: 2 | C231: =VLOOKUP(7,Keppendur!B6:C1000,2,FALSE) -> Sigríður Aníta Rögnvaldsóttir | D231: =VLOOKUP(7,Keppendur!B6:D1000,3,FALSE) -> 13 | E231: =VLOOKUP(7,Keppendur!B6:E1000,4,FALSE) -> Íþróttafélagið Fjörður | F231: =CONCATENATE("S",INDEX(Keppendur!F6:H1000,MATCH(7,Keppendur!B6:B1000,0),MATCH("SB",Keppendur!F5:H5,0))) -> S14 | G231: 00:00:58.150 | H231: =INDEX(Viðmið!$B$3:$T$19,MATCH(F231,Viðmið!$A$3:$A$19, 0),MATCH("50 bringa",Viðmið!$B$2:$T$2,0)) -> 00:00:34.084
B232: 3 | C232: =VLOOKUP(36,Keppendur!B6:C1000,2,FALSE) -> Ástrós M Bjarnadóttir | D232: =VLOOKUP(36,Keppendur!B6:D1000,3,FALSE) -> 16 | E232: =VLOOKUP(36,Keppendur!B6:E1000,4,FALSE) -> NES | F232: =CONCATENATE("S",INDEX(Keppendur!F6:H1000,MATCH(36,Keppendur!B6:B1000,0),MATCH("SB",Keppendur!F5:H5,0))) -> S18 | G232: 00:00:48 | H232: =INDEX(Viðmið!$B$3:$T$19,MATCH(F232,Viðmið!$A$3:$A$19, 0),MATCH("50 bringa",Viðmið!$B$2:$T$2,0)) -> 00:00:32.850 | I232: 00:00:52.090 | J232: =POWER((10*H:H/I:I),3) -> 250.8089612 | K232: =IF(I232 < INDEX('Met25'!$B$3:$T$19,MATCH(F232,'Met25'!$A$3:$A$19, 0),MATCH("50 bringa",'Met25'!$B$2:$T$2,0)), "X", "") -> 
B233: 4 | C233: =VLOOKUP(20,Keppendur!B6:C1000,2,FALSE) -> Thórey Í Magnúsdóttir | D233: =VLOOKUP(20,Keppendur!B6:D1000,3,FALSE) -> 16 | E233: =VLOOKUP(20,Keppendur!B6:E1000,4,FALSE) -> ÍFR | F233: =CONCATENATE("S",INDEX(Keppendur!F6:H1000,MATCH(20,Keppendur!B6:B1000,0),MATCH("SB",Keppendur!F5:H5,0))) -> S14 | G233: 00:00:40.980 | H233: =INDEX(Viðmið!$B$3:$T$19,MATCH(F233,Viðmið!$A$3:$A$19, 0),MATCH("50 bringa",Viðmið!$B$2:$T$2,0)) -> 00:00:34.084 | I233: 00:00:41.550 | J233: =POWER((10*H:H/I:I),3) -> 552.0043576 | K233: =IF(I233 < INDEX('Met25'!$B$3:$T$19,MATCH(F233,'Met25'!$A$3:$A$19, 0),MATCH("50 bringa",'Met25'!$B$2:$T$2,0)), "X", "") -> 
B234: 6 | C234: =VLOOKUP(59,Keppendur!B6:C1000,2,FALSE) -> Tinna Rut Andrésdóttir | D234: =VLOOKUP(59,Keppendur!B6:D1000,3,FALSE) -> 16 | E234: =VLOOKUP(59,Keppendur!B6:E1000,4,FALSE) -> Sundfélagið Óðinn | F234: =CONCATENATE("S",INDEX(Keppendur!F6:H1000,MATCH(59,Keppendur!B6:B1000,0),MATCH("SB",Keppendur!F5:H5,0))) -> S14 | G234: 00:00:52.230 | H234: =INDEX(Viðmið!$B$3:$T$19,MATCH(F234,Viðmið!$A$3:$A$19, 0),MATCH("50 bringa",Viðmið!$B$2:$T$2,0)) -> 00:00:34.084 | I234: 00:00:50.840 | J234: =POWER((10*H:H/I:I),3) -> 301.3276363 | K234: =IF(I234 < INDEX('Met25'!$B$3:$T$19,MATCH(F234,'Met25'!$A$3:$A$19, 0),MATCH("50 bringa",'Met25'!$B$2:$T$2,0)), "X", "") -> 
B235: 7 | C235: =VLOOKUP(67,Keppendur!B6:C1000,2,FALSE) -> Sandra S Gunnarsdóttir | D235: =VLOOKUP(67,Keppendur!B6:D1000,3,FALSE) -> 16 | E235: =VLOOKUP(67,Keppendur!B6:E1000,4,FALSE) -> Sunddeild Fjölnis | F235: =CONCATENATE("S",INDEX(Keppendur!F6:H1000,MATCH(67,Keppendur!B6:B1000,0),MATCH("SB",Keppendur!F5:H5,0))) -> S12 | G235: 00:01:04.470 | H235: =INDEX(Viðmið!$B$3:$T$19,MATCH(F235,Viðmið!$A$3:$A$19, 0),MATCH("50 bringa",Viðmið!$B$2:$T$2,0)) -> 00:00:34.863 | I235: 00:00:54.600 | J235: =POWER((10*H:H/I:I),3) -> 260.3231712 | K235: =IF(I235 < INDEX('Met25'!$B$3:$T$19,MATCH(F235,'Met25'!$A$3:$A$19, 0),MATCH("50 bringa",'Met25'!$B$2:$T$2,0)), "X", "") -> 
B236: 8 | C236: =VLOOKUP(5,Keppendur!B6:C1000,2,FALSE) -> Anna R Þrastardóttir | D236: =VLOOKUP(5,Keppendur!B6:D1000,3,FALSE) -> 10 | E236: =VLOOKUP(5,Keppendur!B6:E1000,4,FALSE) -> Íþróttafélagið Fjörður | F236: =CONCATENATE("S",INDEX(Keppendur!F6:H1000,MATCH(5,Keppendur!B6:B1000,0),MATCH("SB",Keppendur!F5:H5,0))) -> S14 | G236: 00:01:13.080 | H236: =INDEX(Viðmið!$B$3:$T$19,MATCH(F236,Viðmið!$A$3:$A$19, 0),MATCH("50 bringa",Viðmið!$B$2:$T$2,0)) -> 00:00:34.084 | I236: 00:01:15.620 | J236: =POWER((10*H:H/I:I),3) -> 91.56838855 | K236: =IF(I236 < INDEX('Met25'!$B$3:$T$19,MATCH(F236,'Met25'!$A$3:$A$19, 0),MATCH("50 bringa",'Met25'!$B$2:$T$2,0)), "X", "") -> 
B287: 5. Grein: Drengir 25m Skriðsund
B357: 6. Grein: Stúlkur 25m Skriðsund
L378: 660
L380: 488
B427: 7. Grein: Drengir 50m Skriðsund
B429: 0 | C429: =VLOOKUP(42,Keppendur!B6:C1000,2,FALSE) -> Róbert Salvar Reynisson | D429: =VLOOKUP(42,Keppendur!B6:D1000,3,FALSE) -> 16 | E429: =VLOOKUP(42,Keppendur!B6:E1000,4,FALSE) -> NES | F429: =CONCATENATE("S",INDEX(Keppendur!F6:H1000,MATCH(42,Keppendur!B6:B1000,0),MATCH("S",Keppendur!F5:H5,0))) -> S9 | G429: 00:00:37 | H429: =INDEX(Viðmið!$B$23:$T$39,MATCH(F429,Viðmið!$A$23:$A$39, 0),MATCH("50 skrið",Viðmið!$B$22:$T$22,0)) -> 00:00:25.130
B430: Riðill #1 | D430: Aldur | G430: Besti tími | H430: Viðmið | I430: Loka Tími | J430: Stig | K430: Met
B431: 3 | C431: =VLOOKUP(62,Keppendur!B6:C1000,2,FALSE) -> Logi Ingólfsson | D431: =VLOOKUP(62,Keppendur!B6:D1000,3,FALSE) -> 9 | E431: =VLOOKUP(62,Keppendur!B6:E1000,4,FALSE) -> Sundfélagið Óðinn | F431: =CONCATENATE("S",INDEX(Keppendur!F6:H1000,MATCH(62,Keppendur!B6:B1000,0),MATCH("S",Keppendur!F5:H5,0))) -> S20 | G431: 00:00:00 | H431: =INDEX(Viðmið!$B$23:$T$39,MATCH(F431,Viðmið!$A$23:$A$39, 0),MATCH("50 skrið",Viðmið!$B$22:$T$22,0)) -> 00:00:20.910 | I431: 00:01:53.600 | J431: =POWER((10*H:H/I:I),3) -> 6.236301513 | K431: =IF(I431 < INDEX('Met25'!$B$23:$T$39,MATCH(F431,'Met25'!$A$23:$A$39, 0),MATCH("50 skrið",'Met25'!$B$22:$T$22,0)), "X", "") -> 
B432: 4 | C432: =VLOOKUP(16,Keppendur!B6:C1000,2,FALSE) -> Haukur H Loftsson | D432: =VLOOKUP(16,Keppendur!B6:D1000,3,FALSE) -> 15 | E432: =VLOOKUP(16,Keppendur!B6:E1000,4,FALSE) -> ÍFR | F432: =CONCATENATE("S",INDEX(Keppendur!F6:H1000,MATCH(16,Keppendur!B6:B1000,0),MATCH("S",Keppendur!F5:H5,0))) -> S4 | G432: 00:02:12.360 | H432: =INDEX(Viðmið!$B$23:$T$39,MATCH(F432,Viðmið!$A$23:$A$39, 0),MATCH("50 skrið",Viðmið!$B$22:$T$22,0)) -> 00:00:37.850 | I432: 00:02:40.810 | J432: =1000*POWER((H:H/I:I),2.4) -> 31.06038228 | K432: =IF(I432 < INDEX('Met25'!$B$23:$T$39,MATCH(F432,'Met25'!$A$23:$A$39, 0),MATCH("50 skrið",'Met25'!$B$22:$T$22,0)), "X", "") -> 
B433: Riðill #2 | D433: Aldur | G433: Besti tími | H433: Viðmið | I433: Loka Tími | J433: Stig | K433: Met
B434: 2 | C434: =VLOOKUP(38,Keppendur!B6:C1000,2,FALSE) -> Óskar F Björnsson | D434: =VLOOKUP(38,Keppendur!B6:D1000,3,FALSE) -> 10 | E434: =VLOOKUP(38,Keppendur!B6:E1000,4,FALSE) -> NES | F434: =CONCATENATE("S",INDEX(Keppendur!F6:H1000,MATCH(38,Keppendur!B6:B1000,0),MATCH("S",Keppendur!F5:H5,0))) -> S14 | G434: 00:01:25 | H434: =INDEX(Viðmið!$B$23:$T$39,MATCH(F434,Viðmið!$A$23:$A$39, 0),MATCH("50 skrið",Viðmið!$B$22:$T$22,0)) -> 00:00:23.835 | I434: 00:01:42.550 | J434: =POWER((10*H:H/I:I),3) -> 12.55618213 | K434: =IF(I434 < INDEX('Met25'!$B$23:$T$39,MATCH(F434,'Met25'!$A$23:$A$39, 0),MATCH("50 skrið",'Met25'!$B$22:$T$22,0)), "X", "") -> 
B435: 3 | C435: =VLOOKUP(9,Keppendur!B6:C1000,2,FALSE) -> Baldur M Kristinsson | D435: =VLOOKUP(9,Keppendur!B6:D1000,3,FALSE) -> 10 | E435: =VLOOKUP(9,Keppendur!B6:E1000,4,FALSE) -> Íþróttafélagið Fjörður | F435: =CONCATENATE("S",INDEX(Keppendur!F6:H1000,MATCH(9,Keppendur!B6:B1000,0),MATCH("S",Keppendur!F5:H5,0))) -> S14 | G435: 00:01:17.730 | H435: =INDEX(Viðmið!$B$23:$T$39,MATCH(F435,Viðmið!$A$23:$A$39, 0),MATCH("50 skrið",Viðmið!$B$22:$T$22,0)) -> 00:00:23.835 | I435: 00:01:02.580 | J435: =POWER((10*H:H/I:I),3) -> 55.25326219 | K435: =IF(I435 < INDEX('Met25'!$B$23:$T$39,MATCH(F435,'Met25'!$A$23:$A$39, 0),MATCH("50 skrið",'Met25'!$B$22:$T$22,0)), "X", "") -> 
B436: 4 | C436: =VLOOKUP(33,Keppendur!B6:C1000,2,FALSE) -> Þorleifur Pálmi Páls | D436: =VLOOKUP(33,Keppendur!B6:D1000,3,FALSE) -> 12 | E436: =VLOOKUP(33,Keppendur!B6:E1000,4,FALSE) -> Íþróttafélagið Ösp | F436: =CONCATENATE("S",INDEX(Keppendur!F6:H1000,MATCH(33,Keppendur!B6:B1000,0),MATCH("S",Keppendur!F5:H5,0))) -> S14 | G436: 00:01:17.250 | H436: =INDEX(Viðmið!$B$23:$T$39,MATCH(F436,Viðmið!$A$23:$A$39, 0),MATCH("50 skrið",Viðmið!$B$22:$T$22,0)) -> 00:00:23.835 | I436: 00:01:23.690 | J436: =POWER((10*H:H/I:I),3) -> 23.10169772 | K436: =IF(I436 < INDEX('Met25'!$B$23:$T$39,MATCH(F436,'Met25'!$A$23:$A$39, 0),MATCH("50 skrið",'Met25'!$B$22:$T$22,0)), "X", "") -> 
B437: 5 | C437: =VLOOKUP(69,Keppendur!B6:C1000,2,FALSE) -> Hjalti G Guðmundsson | D437: =VLOOKUP(69,Keppendur!B6:D1000,3,FALSE) -> 0 | E437: =VLOOKUP(69,Keppendur!B6:E1000,4,FALSE) -> Íþróttafélagið Ösp | F437: =CONCATENATE("S",INDEX(Keppendur!F6:H1000,MATCH(69,Keppendur!B6:B1000,0),MATCH("S",Keppendur!F5:H5,0))) -> S14 | G437: NT | H437: =INDEX(Viðmið!$B$23:$T$39,MATCH(F437,Viðmið!$A$23:$A$39, 0),MATCH("50 skrið",Viðmið!$B$22:$T$22,0)) -> 00:00:23.835 | I437: 00:00:56.940 | J437: =POWER((10*H:H/I:I),3) -> 73.35204263 | K437: =IF(I437 < INDEX('Met25'!$B$23:$T$39,MATCH(F437,'Met25'!$A$23:$A$39, 0),MATCH("50 skrið",'Met25'!$B$22:$T$22,0)), "X", "") -> 
B438: 7 | C438: =VLOOKUP(4,Keppendur!B6:C1000,2,FALSE) -> Guðmundur A Sigurðsson | D438: =VLOOKUP(4,Keppendur!B6:D1000,3,FALSE) -> 10 | E438: =VLOOKUP(4,Keppendur!B6:E1000,4,FALSE) -> Íþróttafélagið Fjörður | F438: =CONCATENATE("S",INDEX(Keppendur!F6:H1000,MATCH(4,Keppendur!B6:B1000,0),MATCH("S",Keppendur!F5:H5,0))) -> S10 | G438: 00:01:43.750 | H438: =INDEX(Viðmið!$B$23:$T$39,MATCH(F438,Viðmið!$A$23:$A$39, 0),MATCH("50 skrið",Viðmið!$B$22:$T$22,0)) -> 00:00:23.160
B439: 8 | C439: =VLOOKUP(35,Keppendur!B6:C1000,2,FALSE) -> Leó Baldurrson | D439: =VLOOKUP(35,Keppendur!B6:D1000,3,FALSE) -> 10 | E439: =VLOOKUP(35,Keppendur!B6:E1000,4,FALSE) -> NES | F439: =CONCATENATE("S",INDEX(Keppendur!F6:H1000,MATCH(35,Keppendur!B6:B1000,0),MATCH("S",Keppendur!F5:H5,0))) -> S14 | G439: 00:01:15 | H439: =INDEX(Viðmið!$B$23:$T$39,MATCH(F439,Viðmið!$A$23:$A$39, 0),MATCH("50 skrið",Viðmið!$B$22:$T$22,0)) -> 00:00:23.835 | I439: 00:01:04.500 | J439: =POWER((10*H:H/I:I),3) -> 50.46443981 | K439: =IF(I439 < INDEX('Met25'!$B$23:$T$39,MATCH(F439,'Met25'!$A$23:$A$39, 0),MATCH("50 skrið",'Met25'!$B$22:$T$22,0)), "X", "") -> 
B440: Riðill #3 | D440: Aldur | G440: Besti tími | H440: Viðmið | I440: Loka Tími | J440: Stig | K440: Met
B441: 2 | C441: =VLOOKUP(2,Keppendur!B6:C1000,2,FALSE) -> Unnar I Ingason | D441: =VLOOKUP(2,Keppendur!B6:D1000,3,FALSE) -> 14 | E441: =VLOOKUP(2,Keppendur!B6:E1000,4,FALSE) -> Íþróttafélagið Fjörður | F441: =CONCATENATE("S",INDEX(Keppendur!F6:H1000,MATCH(2,Keppendur!B6:B1000,0),MATCH("S",Keppendur!F5:H5,0))) -> S14 | G441: 00:00:59.420 | H441: =INDEX(Viðmið!$B$23:$T$39,MATCH(F441,Viðmið!$A$23:$A$39, 0),MATCH("50 skrið",Viðmið!$B$22:$T$22,0)) -> 00:00:23.835 | I441: 00:00:48.010 | J441: =POWER((10*H:H/I:I),3) -> 122.3684567 | K441: =IF(I441 < INDEX('Met25'!$B$23:$T$39,MATCH(F441,'Met25'!$A$23:$A$39, 0),MATCH("50 skrið",'Met25'!$B$22:$T$22,0)), "X", "") -> 
B442: 3 | C442: =VLOOKUP(28,Keppendur!B6:C1000,2,FALSE) -> Snævar Örn Kristmannsson | D442: =VLOOKUP(28,Keppendur!B6:D1000,3,FALSE) -> 9 | E442: =VLOOKUP(28,Keppendur!B6:E1000,4,FALSE) -> ÍFR | F442: =CONCATENATE("S",INDEX(Keppendur!F6:H1000,MATCH(28,Keppendur!B6:B1000,0),MATCH("S",Keppendur!F5:H5,0))) -> S14 | G442: 00:00:51.320 | H442: =INDEX(Viðmið!$B$23:$T$39,MATCH(F442,Viðmið!$A$23:$A$39, 0),MATCH("50 skrið",Viðmið!$B$22:$T$22,0)) -> 00:00:23.835 | I442: 00:00:53.010 | J442: =POWER((10*H:H/I:I),3) -> 90.90571518 | K442: =IF(I442 < INDEX('Met25'!$B$23:$T$39,MATCH(F442,'Met25'!$A$23:$A$39, 0),MATCH("50 skrið",'Met25'!$B$22:$T$22,0)), "X", "") -> 
B443: 4 | C443: =VLOOKUP(18,Keppendur!B6:C1000,2,FALSE) -> Reynir A Magnússon | D443: =VLOOKUP(18,Keppendur!B6:D1000,3,FALSE) -> 14 | E443: =VLOOKUP(18,Keppendur!B6:E1000,4,FALSE) -> ÍFR | F443: =CONCATENATE("S",INDEX(Keppendur!F6:H1000,MATCH(18,Keppendur!B6:B1000,0),MATCH("S",Keppendur!F5:H5,0))) -> S14 | G443: 00:00:50.170 | H443: =INDEX(Viðmið!$B$23:$T$39,MATCH(F443,Viðmið!$A$23:$A$39, 0),MATCH("50 skrið",Viðmið!$B$22:$T$22,0)) -> 00:00:23.835 | I443: 00:00:57.380 | J443: =POWER((10*H:H/I:I),3) -> 71.67751971 | K443: =IF(I443 < INDEX('Met25'!$B$23:$T$39,MATCH(F443,'Met25'!$A$23:$A$39, 0),MATCH("50 skrið",'Met25'!$B$22:$T$22,0)), "X", "") -> 
B444: 6 | C444: =VLOOKUP(30,Keppendur!B6:C1000,2,FALSE) -> Jóhann Stígur Eiríksson | D444: =VLOOKUP(30,Keppendur!B6:D1000,3,FALSE) -> 15 | E444: =VLOOKUP(30,Keppendur!B6:E1000,4,FALSE) -> Íþróttafélagið Ösp | F444: =CONCATENATE("S",INDEX(Keppendur!F6:H1000,MATCH(30,Keppendur!B6:B1000,0),MATCH("S",Keppendur!F5:H5,0))) -> S14 | G444: 00:00:51.320 | H444: =INDEX(Viðmið!$B$23:$T$39,MATCH(F444,Viðmið!$A$23:$A$39, 0),MATCH("50 skrið",Viðmið!$B$22:$T$22,0)) -> 00:00:23.835 | I444: 00:01:12.170 | J444: =POWER((10*H:H/I:I),3) -> 36.02421158 | K444: =IF(I444 < INDEX('Met25'!$B$23:$T$39,MATCH(F444,'Met25'!$A$23:$A$39, 0),MATCH("50 skrið",'Met25'!$B$22:$T$22,0)), "X", "") -> 
B445: Riðill #4 | D445: Aldur | G445: Besti tími | H445: Viðmið | I445: Loka Tími | J445: Stig | K445: Met
B446: 2 | C446: =VLOOKUP(37,Keppendur!B6:C1000,2,FALSE) -> Ingólfur M Bjarnason | D446: =VLOOKUP(37,Keppendur!B6:D1000,3,FALSE) -> 15 | E446: =VLOOKUP(37,Keppendur!B6:E1000,4,FALSE) -> NES | F446: =CONCATENATE("S",INDEX(Keppendur!F6:H1000,MATCH(37,Keppendur!B6:B1000,0),MATCH("S",Keppendur!F5:H5,0))) -> S10 | G446: 00:00:36 | H446: =INDEX(Viðmið!$B$23:$T$39,MATCH(F446,Viðmið!$A$23:$A$39, 0),MATCH("50 skrið",Viðmið!$B$22:$T$22,0)) -> 00:00:23.160 | I446: 00:00:41.880 | J446: =POWER((10*H:H/I:I),3) -> 169.1202633 | K446: =IF(I446 < INDEX('Met25'!$B$23:$T$39,MATCH(F446,'Met25'!$A$23:$A$39, 0),MATCH("50 skrið",'Met25'!$B$22:$T$22,0)), "X", "") -> 
B447: 3 | C447: =VLOOKUP(40,Keppendur!B6:C1000,2,FALSE) -> Már Gunnarsson | D447: =VLOOKUP(40,Keppendur!B6:D1000,3,FALSE) -> 16 | E447: =VLOOKUP(40,Keppendur!B6:E1000,4,FALSE) -> NES | F447: =CONCATENATE("S",INDEX(Keppendur!F6:H1000,MATCH(40,Keppendur!B6:B1000,0),MATCH("S",Keppendur!F5:H5,0))) -> S12 | G447: 00:00:31 | H447: =INDEX(Viðmið!$B$23:$T$39,MATCH(F447,Viðmið!$A$23:$A$39, 0),MATCH("50 skrið",Viðmið!$B$22:$T$22,0)) -> 00:00:23.360 | I447: 00:00:31.940 | J447: =POWER((10*H:H/I:I),3) -> 391.2134522 | K447: =IF(I447 < INDEX('Met25'!$B$23:$T$39,MATCH(F447,'Met25'!$A$23:$A$39, 0),MATCH("50 skrið",'Met25'!$B$22:$T$22,0)), "X", "") -> 
B448: 4 | C448: =VLOOKUP(3,Keppendur!B6:C1000,2,FALSE) -> Róbert Í Jónsson | D448: =VLOOKUP(3,Keppendur!B6:D1000,3,FALSE) -> 14 | E448: =VLOOKUP(3,Keppendur!B6:E1000,4,FALSE) -> Íþróttafélagið Fjörður | F448: =CONCATENATE("S",INDEX(Keppendur!F6:H1000,MATCH(3,Keppendur!B6:B1000,0),MATCH("S",Keppendur!F5:H5,0))) -> S14 | G448: 00:00:28.480 | H448: =INDEX(Viðmið!$B$23:$T$39,MATCH(F448,Viðmið!$A$23:$A$39, 0),MATCH("50 skrið",Viðmið!$B$22:$T$22,0)) -> 00:00:23.835 | I448: 00:00:28.750 | J448: =POWER((10*H:H/I:I),3) -> 569.8375361 | K448: =IF(I448 < INDEX('Met25'!$B$23:$T$39,MATCH(F448,'Met25'!$A$23:$A$39, 0),MATCH("50 skrið",'Met25'!$B$22:$T$22,0)), "X", "") -> 
B449: 5 | C449: =VLOOKUP(15,Keppendur!B6:C1000,2,FALSE) -> Björn Axel Agnarsson | D449: =VLOOKUP(15,Keppendur!B6:D1000,3,FALSE) -> 13 | E449: =VLOOKUP(15,Keppendur!B6:E1000,4,FALSE) -> ÍFR | F449: =CONCATENATE("S",INDEX(Keppendur!F6:H1000,MATCH(15,Keppendur!B6:B1000,0),MATCH("S",Keppendur!F5:H5,0))) -> S20 | G449: 00:00:30.520 | H449: =INDEX(Viðmið!$B$23:$T$39,MATCH(F449,Viðmið!$A$23:$A$39, 0),MATCH("50 skrið",Viðmið!$B$22:$T$22,0)) -> 00:00:20.910 | I449: 00:00:29.720 | J449: =POWER((10*H:H/I:I),3) -> 348.2696931 | K449: =IF(I449 < INDEX('Met25'!$B$23:$T$39,MATCH(F449,'Met25'!$A$23:$A$39, 0),MATCH("50 skrið",'Met25'!$B$22:$T$22,0)), "X", "") -> 
B450: 6 | C450: =VLOOKUP(58,Keppendur!B6:C1000,2,FALSE) -> Fannar Logi Jóhannesson | D450: =VLOOKUP(58,Keppendur!B6:D1000,3,FALSE) -> 15 | E450: =VLOOKUP(58,Keppendur!B6:E1000,4,FALSE) -> Sundfélagið Óðinn | F450: =CONCATENATE("S",INDEX(Keppendur!F6:H1000,MATCH(58,Keppendur!B6:B1000,0),MATCH("S",Keppendur!F5:H5,0))) -> S14 | G450: 00:00:35.840 | H450: =INDEX(Viðmið!$B$23:$T$39,MATCH(F450,Viðmið!$A$23:$A$39, 0),MATCH("50 skrið",Viðmið!$B$22:$T$22,0)) -> 00:00:23.835 | I450: 00:00:36.130 | J450: =POWER((10*H:H/I:I),3) -> 287.1181955 | K450: =IF(I450 < INDEX('Met25'!$B$23:$T$39,MATCH(F450,'Met25'!$A$23:$A$39, 0),MATCH("50 skrið",'Met25'!$B$22:$T$22,0)), "X", "") -> 
B451: 7 | C451: =VLOOKUP(39,Keppendur!B6:C1000,2,FALSE) -> Alexander Guðmundsson | D451: =VLOOKUP(39,Keppendur!B6:D1000,3,FALSE) -> 12 | E451: =VLOOKUP(39,Keppendur!B6:E1000,4,FALSE) -> NES | F451: =CONCATENATE("S",INDEX(Keppendur!F6:H1000,MATCH(39,Keppendur!B6:B1000,0),MATCH("S",Keppendur!F5:H5,0))) -> S14 | G451: 00:00:37 | H451: =INDEX(Viðmið!$B$23:$T$39,MATCH(F451,Viðmið!$A$23:$A$39, 0),MATCH("50 skrið",Viðmið!$B$22:$T$22,0)) -> 00:00:23.835 | I451: 00:00:43.220 | J451: =POWER((10*H:H/I:I),3) -> 167.7298324 | K451: =IF(I451 < INDEX('Met25'!$B$23:$T$39,MATCH(F451,'Met25'!$A$23:$A$39, 0),MATCH("50 skrið",'Met25'!$B$22:$T$22,0)), "X", "") -> 
B452: 8 | C452: =VLOOKUP(1,Keppendur!B6:C1000,2,FALSE) -> Hallgrímur A Heimisson | D452: =VLOOKUP(1,Keppendur!B6:D1000,3,FALSE) -> 14 | E452: =VLOOKUP(1,Keppendur!B6:E1000,4,FALSE) -> Íþróttafélagið Fjörður | F452: =CONCATENATE("S",INDEX(Keppendur!F6:H1000,MATCH(1,Keppendur!B6:B1000,0),MATCH("S",Keppendur!F5:H5,0))) -> S14 | G452: 00:00:47.530 | H452: =INDEX(Viðmið!$B$23:$T$39,MATCH(F452,Viðmið!$A$23:$A$39, 0),MATCH("50 skrið",Viðmið!$B$22:$T$22,0)) -> 00:00:23.835
B497: 8. Grein: Stúlkur 50m Skriðsund
B499: 0 | C499: =VLOOKUP(41,Keppendur!B6:C1000,2,FALSE) -> Ingibjörg F Margeirsdóttir | D499: =VLOOKUP(41,Keppendur!B6:D1000,3,FALSE) -> 16 | E499: =VLOOKUP(41,Keppendur!B6:E1000,4,FALSE) -> NES | F499: =CONCATENATE("S",INDEX(Keppendur!F6:H1000,MATCH(41,Keppendur!B6:B1000,0),MATCH("S",Keppendur!F5:H5,0))) -> S14 | G499: 00:00:36 | H499: =INDEX(Viðmið!$B$3:$T$19,MATCH(F499,Viðmið!$A$3:$A$19, 0),MATCH("50 skrið",Viðmið!$B$2:$T$2,0)) -> 00:00:26.250
B500: Riðill #1 | D500: Aldur | G500: Besti tími | H500: Viðmið | I500: Loka Tími | J500: Stig | K500: Met
B501: 4 | C501: =VLOOKUP(57,Keppendur!B6:C1000,2,FALSE) -> Arndís Atladóttir | D501: =VLOOKUP(57,Keppendur!B6:D1000,3,FALSE) -> 15 | E501: =VLOOKUP(57,Keppendur!B6:E1000,4,FALSE) -> Sundfélagið Óðinn | F501: =CONCATENATE("S",INDEX(Keppendur!F6:H1000,MATCH(57,Keppendur!B6:B1000,0),MATCH("S",Keppendur!F5:H5,0))) -> S14 | G501: 00:01:27.880 | H501: =INDEX(Viðmið!$B$3:$T$19,MATCH(F501,Viðmið!$A$3:$A$19, 0),MATCH("50 skrið",Viðmið!$B$2:$T$2,0)) -> 00:00:26.250 | I501: 00:01:10.840 | J501: =POWER((10*H:H/I:I),3) -> 50.88319894 | K501: =IF(I501 < INDEX('Met25'!$B$3:$T$19,MATCH(F501,'Met25'!$A$3:$A$19, 0),MATCH("50 skrið",'Met25'!$B$2:$T$2,0)), "X", "") -> 
B502: 5 | C502: =VLOOKUP(10,Keppendur!B6:C1000,2,FALSE) -> Kristjana L Albertsdóttir | D502: =VLOOKUP(10,Keppendur!B6:D1000,3,FALSE) -> 0 | E502: =VLOOKUP(10,Keppendur!B6:E1000,4,FALSE) -> Íþróttafélagið Fjörður | F502: =CONCATENATE("S",INDEX(Keppendur!F6:H1000,MATCH(10,Keppendur!B6:B1000,0),MATCH("S",Keppendur!F5:H5,0))) -> S14 | G502: 00:01:57.270 | H502: =INDEX(Viðmið!$B$3:$T$19,MATCH(F502,Viðmið!$A$3:$A$19, 0),MATCH("50 skrið",Viðmið!$B$2:$T$2,0)) -> 00:00:26.250 | I502: 00:01:57.770 | J502: =POWER((10*H:H/I:I),3) -> 11.07403876 | K502: =IF(I502 < INDEX('Met25'!$B$3:$T$19,MATCH(F502,'Met25'!$A$3:$A$19, 0),MATCH("50 skrið",'Met25'!$B$2:$T$2,0)), "X", "") -> 
B503: Riðill #2 | D503: Aldur | G503: Besti tími | H503: Viðmið | I503: Loka Tími | J503: Stig | K503: Met
B504: 1 | C504: =VLOOKUP(14,Keppendur!B6:C1000,2,FALSE) -> Guðbjörg S Sigfúsdóttir | D504: =VLOOKUP(14,Keppendur!B6:D1000,3,FALSE) -> 15 | E504: =VLOOKUP(14,Keppendur!B6:E1000,4,FALSE) -> Íþróttafélagið Fjörður | F504: =CONCATENATE("S",INDEX(Keppendur!F6:H1000,MATCH(14,Keppendur!B6:B1000,0),MATCH("S",Keppendur!F5:H5,0))) -> S14 | G504: 00:01:20.230 | H504: =INDEX(Viðmið!$B$3:$T$19,MATCH(F504,Viðmið!$A$3:$A$19, 0),MATCH("50 skrið",Viðmið!$B$2:$T$2,0)) -> 00:00:26.250
B505: 2 | C505: =VLOOKUP(11,Keppendur!B6:C1000,2,FALSE) -> Victoria L Karenardóttir | D505: =VLOOKUP(11,Keppendur!B6:D1000,3,FALSE) -> 0 | E505: =VLOOKUP(11,Keppendur!B6:E1000,4,FALSE) -> Íþróttafélagið Fjörður | F505: =CONCATENATE("S",INDEX(Keppendur!F6:H1000,MATCH(11,Keppendur!B6:B1000,0),MATCH("S",Keppendur!F5:H5,0))) -> S14 | G505: 00:01:10.330 | H505: =INDEX(Viðmið!$B$3:$T$19,MATCH(F505,Viðmið!$A$3:$A$19, 0),MATCH("50 skrið",Viðmið!$B$2:$T$2,0)) -> 00:00:26.250
B506: 3 | C506: =VLOOKUP(26,Keppendur!B6:C1000,2,FALSE) -> Heiður B Egilsdóttir | D506: =VLOOKUP(26,Keppendur!B6:D1000,3,FALSE) -> 11 | E506: =VLOOKUP(26,Keppendur!B6:E1000,4,FALSE) -> ÍFR | F506: =CONCATENATE("S",INDEX(Keppendur!F6:H1000,MATCH(26,Keppendur!B6:B1000,0),MATCH("S",Keppendur!F5:H5,0))) -> S8 | G506: 00:00:58.800 | H506: =INDEX(Viðmið!$B$3:$T$19,MATCH(F506,Viðmið!$A$3:$A$19, 0),MATCH("50 skrið",Viðmið!$B$2:$T$2,0)) -> 00:00:30.130 | I506: 00:00:53.550 | J506: =1000*POWER((H:H/I:I),2.8) -> 199.8347623 | K506: =IF(I506 < INDEX('Met25'!$B$3:$T$19,MATCH(F506,'Met25'!$A$3:$A$19, 0),MATCH("50 skrið",'Met25'!$B$2:$T$2,0)), "X", "") -> 
B507: 4 | C507: =VLOOKUP(5,Keppendur!B6:C1000,2,FALSE) -> Anna R Þrastardóttir | D507: =VLOOKUP(5,Keppendur!B6:D1000,3,FALSE) -> 10 | E507: =VLOOKUP(5,Keppendur!B6:E1000,4,FALSE) -> Íþróttafélagið Fjörður | F507: =CONCATENATE("S",INDEX(Keppendur!F6:H1000,MATCH(5,Keppendur!B6:B1000,0),MATCH("S",Keppendur!F5:H5,0))) -> S14 | G507: 00:00:52.590 | H507: =INDEX(Viðmið!$B$3:$T$19,MATCH(F507,Viðmið!$A$3:$A$19, 0),MATCH("50 skrið",Viðmið!$B$2:$T$2,0)) -> 00:00:26.250 | I507: 00:00:54.180 | J507: =POWER((10*H:H/I:I),3) -> 113.7347199 | K507: =IF(I507 < INDEX('Met25'!$B$3:$T$19,MATCH(F507,'Met25'!$A$3:$A$19, 0),MATCH("50 skrið",'Met25'!$B$2:$T$2,0)), "X", "") -> 
B508: 5 | C508: =VLOOKUP(8,Keppendur!B6:C1000,2,FALSE) -> Katrín E Kristjánsdóttir | D508: =VLOOKUP(8,Keppendur!B6:D1000,3,FALSE) -> 11 | E508: =VLOOKUP(8,Keppendur!B6:E1000,4,FALSE) -> Íþróttafélagið Fjörður | F508: =CONCATENATE("S",INDEX(Keppendur!F6:H1000,MATCH(8,Keppendur!B6:B1000,0),MATCH("S",Keppendur!F5:H5,0))) -> S14 | G508: 00:00:54.590 | H508: =INDEX(Viðmið!$B$3:$T$19,MATCH(F508,Viðmið!$A$3:$A$19, 0),MATCH("50 skrið",Viðmið!$B$2:$T$2,0)) -> 00:00:26.250 | I508: 00:00:58.730 | J508: =POWER((10*H:H/I:I),3) -> 89.29560044 | K508: =IF(I508 < INDEX('Met25'!$B$3:$T$19,MATCH(F508,'Met25'!$A$3:$A$19, 0),MATCH("50 skrið",'Met25'!$B$2:$T$2,0)), "X", "") -> 
B509: 6 | C509: =VLOOKUP(6,Keppendur!B6:C1000,2,FALSE) -> Nevena Cupovic | D509: =VLOOKUP(6,Keppendur!B6:D1000,3,FALSE) -> 15 | E509: =VLOOKUP(6,Keppendur!B6:E1000,4,FALSE) -> Íþróttafélagið Fjörður | F509: =CONCATENATE("S",INDEX(Keppendur!F6:H1000,MATCH(6,Keppendur!B6:B1000,0),MATCH("S",Keppendur!F5:H5,0))) -> S14 | G509: 00:01:09.460 | H509: =INDEX(Viðmið!$B$3:$T$19,MATCH(F509,Viðmið!$A$3:$A$19, 0),MATCH("50 skrið",Viðmið!$B$2:$T$2,0)) -> 00:00:26.250
B510: 7 | C510: =VLOOKUP(13,Keppendur!B6:C1000,2,FALSE) -> Emelía Ý Gunnarsdóttir | D510: =VLOOKUP(13,Keppendur!B6:D1000,3,FALSE) -> 9 | E510: =VLOOKUP(13,Keppendur!B6:E1000,4,FALSE) -> Íþróttafélagið Fjörður | F510: =CONCATENATE("S",INDEX(Keppendur!F6:H1000,MATCH(13,Keppendur!B6:B1000,0),MATCH("S",Keppendur!F5:H5,0))) -> S14 | G510: 00:01:20.160 | H510: =INDEX(Viðmið!$B$3:$T$19,MATCH(F510,Viðmið!$A$3:$A$19, 0),MATCH("50 skrið",Viðmið!$B$2:$T$2,0)) -> 00:00:26.250 | I510: DQ
B511: 8 | C511: =VLOOKUP(12,Keppendur!B6:C1000,2,FALSE) -> Sigrún Kjartansdóttir | D511: =VLOOKUP(12,Keppendur!B6:D1000,3,FALSE) -> 0 | E511: =VLOOKUP(12,Keppendur!B6:E1000,4,FALSE) -> Íþróttafélagið Fjörður | F511: =CONCATENATE("S",INDEX(Keppendur!F6:H1000,MATCH(12,Keppendur!B6:B1000,0),MATCH("S",Keppendur!F5:H5,0))) -> S14 | G511: 00:01:21.370 | H511: =INDEX(Viðmið!$B$3:$T$19,MATCH(F511,Viðmið!$A$3:$A$19, 0),MATCH("50 skrið",Viðmið!$B$2:$T$2,0)) -> 00:00:26.250 | I511: 00:01:11.400 | J511: =POWER((10*H:H/I:I),3) -> 49.69531286 | K511: =IF(I511 < INDEX('Met25'!$B$3:$T$19,MATCH(F511,'Met25'!$A$3:$A$19, 0),MATCH("50 skrið",'Met25'!$B$2:$T$2,0)), "X", "") -> 
B512: Riðill #3 | D512: Aldur | G512: Besti tími | H512: Viðmið | I512: Loka Tími | J512: Stig | K512: Met
B513: 1 | C513: =VLOOKUP(59,Keppendur!B6:C1000,2,FALSE) -> Tinna Rut Andrésdóttir | D513: =VLOOKUP(59,Keppendur!B6:D1000,3,FALSE) -> 16 | E513: =VLOOKUP(59,Keppendur!B6:E1000,4,FALSE) -> Sundfélagið Óðinn | F513: =CONCATENATE("S",INDEX(Keppendur!F6:H1000,MATCH(59,Keppendur!B6:B1000,0),MATCH("S",Keppendur!F5:H5,0))) -> S14 | G513: 00:00:43.160 | H513: =INDEX(Viðmið!$B$3:$T$19,MATCH(F513,Viðmið!$A$3:$A$19, 0),MATCH("50 skrið",Viðmið!$B$2:$T$2,0)) -> 00:00:26.250 | I513: 00:00:41.630 | J513: =POWER((10*H:H/I:I),3) -> 250.7210696 | K513: =IF(I513 < INDEX('Met25'!$B$3:$T$19,MATCH(F513,'Met25'!$A$3:$A$19, 0),MATCH("50 skrið",'Met25'!$B$2:$T$2,0)), "X", "") -> 
B514: 2 | C514: =VLOOKUP(67,Keppendur!B6:C1000,2,FALSE) -> Sandra S Gunnarsdóttir | D514: =VLOOKUP(67,Keppendur!B6:D1000,3,FALSE) -> 16 | E514: =VLOOKUP(67,Keppendur!B6:E1000,4,FALSE) -> Sunddeild Fjölnis | F514: =CONCATENATE("S",INDEX(Keppendur!F6:H1000,MATCH(67,Keppendur!B6:B1000,0),MATCH("S",Keppendur!F5:H5,0))) -> S12 | G514: 00:00:36.020 | H514: =INDEX(Viðmið!$B$3:$T$19,MATCH(F514,Viðmið!$A$3:$A$19, 0),MATCH("50 skrið",Viðmið!$B$2:$T$2,0)) -> 00:00:26.900 | I514: 00:00:37.310 | J514: =POWER((10*H:H/I:I),3) -> 374.7840439 | K514: =IF(I514 < INDEX('Met25'!$B$3:$T$19,MATCH(F514,'Met25'!$A$3:$A$19, 0),MATCH("50 skrið",'Met25'!$B$2:$T$2,0)), "X", "") -> 
B515: 3 | C515: =VLOOKUP(36,Keppendur!B6:C1000,2,FALSE) -> Ástrós M Bjarnadóttir | D515: =VLOOKUP(36,Keppendur!B6:D1000,3,FALSE) -> 16 | E515: =VLOOKUP(36,Keppendur!B6:E1000,4,FALSE) -> NES | F515: =CONCATENATE("S",INDEX(Keppendur!F6:H1000,MATCH(36,Keppendur!B6:B1000,0),MATCH("S",Keppendur!F5:H5,0))) -> S18 | G515: 00:00:35 | H515: =INDEX(Viðmið!$B$3:$T$19,MATCH(F515,Viðmið!$A$3:$A$19, 0),MATCH("50 skrið",Viðmið!$B$2:$T$2,0)) -> 00:00:26.150 | I515: 00:00:37.400 | J515: =POWER((10*H:H/I:I),3) -> 341.8222063 | K515: =IF(I515 < INDEX('Met25'!$B$3:$T$19,MATCH(F515,'Met25'!$A$3:$A$19, 0),MATCH("50 skrið",'Met25'!$B$2:$T$2,0)), "X", "") -> 
B516: 4 | C516: =VLOOKUP(32,Keppendur!B6:C1000,2,FALSE) -> Gunnhildur Brynja Be | D516: =VLOOKUP(32,Keppendur!B6:D1000,3,FALSE) -> 14 | E516: =VLOOKUP(32,Keppendur!B6:E1000,4,FALSE) -> Íþróttafélagið Ösp | F516: =CONCATENATE("S",INDEX(Keppendur!F6:H1000,MATCH(32,Keppendur!B6:B1000,0),MATCH("S",Keppendur!F5:H5,0))) -> S14 | G516: 00:00:30.820 | H516: =INDEX(Viðmið!$B$3:$T$19,MATCH(F516,Viðmið!$A$3:$A$19, 0),MATCH("50 skrið",Viðmið!$B$2:$T$2,0)) -> 00:00:26.250 | I516: 00:00:48.320 | J516: =POWER((10*H:H/I:I),3) -> 160.3353513 | K516: =IF(I516 < INDEX('Met25'!$B$3:$T$19,MATCH(F516,'Met25'!$A$3:$A$19, 0),MATCH("50 skrið",'Met25'!$B$2:$T$2,0)), "X", "") -> 
B517: 5 | C517: =VLOOKUP(20,Keppendur!B6:C1000,2,FALSE) -> Thórey Í Magnúsdóttir | D517: =VLOOKUP(20,Keppendur!B6:D1000,3,FALSE) -> 16 | E517: =VLOOKUP(20,Keppendur!B6:E1000,4,FALSE) -> ÍFR | F517: =CONCATENATE("S",INDEX(Keppendur!F6:H1000,MATCH(20,Keppendur!B6:B1000,0),MATCH("S",Keppendur!F5:H5,0))) -> S14 | G517: 00:00:32.120 | H517: =INDEX(Viðmið!$B$3:$T$19,MATCH(F517,Viðmið!$A$3:$A$19, 0),MATCH("50 skrið",Viðmið!$B$2:$T$2,0)) -> 00:00:26.250 | I517: 00:00:32.480 | J517: =POWER((10*H:H/I:I),3) -> 527.9125697 | K517: =IF(I517 < INDEX('Met25'!$B$3:$T$19,MATCH(F517,'Met25'!$A$3:$A$19, 0),MATCH("50 skrið",'Met25'!$B$2:$T$2,0)), "X", "") -> 
B518: 6 | C518: =VLOOKUP(84,Keppendur!B6:C1000,2,FALSE) -> Birta Bjarnadóttir | D518: =VLOOKUP(84,Keppendur!B6:D1000,3,FALSE) -> 12 | E518: =VLOOKUP(84,Keppendur!B6:E1000,4,FALSE) -> NES | F518: =CONCATENATE("S",INDEX(Keppendur!F6:H1000,MATCH(84,Keppendur!B6:B1000,0),MATCH("S",Keppendur!F5:H5,0))) -> S14 | G518: 00:00:51 | H518: =INDEX(Viðmið!$B$3:$T$19,MATCH(F518,Viðmið!$A$3:$A$19, 0),MATCH("50 skrið",Viðmið!$B$2:$T$2,0)) -> 00:00:26.250 | I518: 00:00:52.160 | J518: =POWER((10*H:H/I:I),3) -> 127.4668684 | K518: =IF(I518 < INDEX('Met25'!$B$3:$T$19,MATCH(F518,'Met25'!$A$3:$A$19, 0),MATCH("50 skrið",'Met25'!$B$2:$T$2,0)), "X", "") -> 
B519: 7 | C519: =VLOOKUP(7,Keppendur!B6:C1000,2,FALSE) -> Sigríður Aníta Rögnvaldsóttir | D519: =VLOOKUP(7,Keppendur!B6:D1000,3,FALSE) -> 13 | E519: =VLOOKUP(7,Keppendur!B6:E1000,4,FALSE) -> Íþróttafélagið Fjörður | F519: =CONCATENATE("S",INDEX(Keppendur!F6:H1000,MATCH(7,Keppendur!B6:B1000,0),MATCH("S",Keppendur!F5:H5,0))) -> S14 | G519: 00:00:39.600 | H519: =INDEX(Viðmið!$B$3:$T$19,MATCH(F519,Viðmið!$A$3:$A$19, 0),MATCH("50 skrið",Viðmið!$B$2:$T$2,0)) -> 00:00:26.250
B520: 8 | C520: =VLOOKUP(43,Keppendur!B6:C1000,2,FALSE) -> Matthildur E Sigurðardóttir | D520: =VLOOKUP(43,Keppendur!B6:D1000,3,FALSE) -> 10 | E520: =VLOOKUP(43,Keppendur!B6:E1000,4,FALSE) -> NES | F520: =CONCATENATE("S",INDEX(Keppendur!F6:H1000,MATCH(43,Keppendur!B6:B1000,0),MATCH("S",Keppendur!F5:H5,0))) -> S10 | G520: 00:00:46 | H520: =INDEX(Viðmið!$B$3:$T$19,MATCH(F520,Viðmið!$A$3:$A$19, 0),MATCH("50 skrið",Viðmið!$B$2:$T$2,0)) -> 00:00:27.780
B567: 9. Grein: Drengir 50m Flugsund
B569: 0 | C569: =VLOOKUP(42,Keppendur!B6:C1000,2,FALSE) -> Róbert Salvar Reynisson | D569: =VLOOKUP(42,Keppendur!B6:D1000,3,FALSE) -> 16 | E569: =VLOOKUP(42,Keppendur!B6:E1000,4,FALSE) -> NES | F569: =CONCATENATE("S",INDEX(Keppendur!F6:H1000,MATCH(42,Keppendur!B6:B1000,0),MATCH("S",Keppendur!F5:H5,0))) -> S9 | G569: 00:00:47 | H569: =INDEX(Viðmið!$B$23:$T$39,MATCH(F569,Viðmið!$A$23:$A$39, 0),MATCH("50 flug",Viðmið!$B$22:$T$22,0)) -> 00:00:26.523
B570: Riðill #1 | D570: Aldur | G570: Besti tími | H570: Viðmið | I570: Loka Tími | J570: Stig | K570: Met
B571: 2 | C571: =VLOOKUP(39,Keppendur!B6:C1000,2,FALSE) -> Alexander Guðmundsson | D571: =VLOOKUP(39,Keppendur!B6:D1000,3,FALSE) -> 12 | E571: =VLOOKUP(39,Keppendur!B6:E1000,4,FALSE) -> NES | F571: =CONCATENATE("S",INDEX(Keppendur!F6:H1000,MATCH(39,Keppendur!B6:B1000,0),MATCH("S",Keppendur!F5:H5,0))) -> S14 | G571: 00:00:45 | H571: =INDEX(Viðmið!$B$23:$T$39,MATCH(F571,Viðmið!$A$23:$A$39, 0),MATCH("50 flug",Viðmið!$B$22:$T$22,0)) -> 00:00:25.662
B572: 3 | C572: =VLOOKUP(40,Keppendur!B6:C1000,2,FALSE) -> Már Gunnarsson | D572: =VLOOKUP(40,Keppendur!B6:D1000,3,FALSE) -> 16 | E572: =VLOOKUP(40,Keppendur!B6:E1000,4,FALSE) -> NES | F572: =CONCATENATE("S",INDEX(Keppendur!F6:H1000,MATCH(40,Keppendur!B6:B1000,0),MATCH("S",Keppendur!F5:H5,0))) -> S12 | G572: 00:00:36 | H572: =INDEX(Viðmið!$B$23:$T$39,MATCH(F572,Viðmið!$A$23:$A$39, 0),MATCH("50 flug",Viðmið!$B$22:$T$22,0)) -> 00:00:25.591 | I572: 00:00:35.270 | J572: =POWER((10*H:H/I:I),3) -> 381.9640415 | K572: =IF(I572 < INDEX('Met25'!$B$23:$T$39,MATCH(F572,'Met25'!$A$23:$A$39, 0),MATCH("50 flug",'Met25'!$B$22:$T$22,0)), "X", "") -> 
B573: 4 | C573: =VLOOKUP(15,Keppendur!B6:C1000,2,FALSE) -> Björn Axel Agnarsson | D573: =VLOOKUP(15,Keppendur!B6:D1000,3,FALSE) -> 13 | E573: =VLOOKUP(15,Keppendur!B6:E1000,4,FALSE) -> ÍFR | F573: =CONCATENATE("S",INDEX(Keppendur!F6:H1000,MATCH(15,Keppendur!B6:B1000,0),MATCH("S",Keppendur!F5:H5,0))) -> S20 | G573: 00:00:30.340 | H573: =INDEX(Viðmið!$B$23:$T$39,MATCH(F573,Viðmið!$A$23:$A$39, 0),MATCH("50 flug",Viðmið!$B$22:$T$22,0)) -> 00:00:22.430 | I573: 00:00:31.080 | J573: =POWER((10*H:H/I:I),3) -> 375.8761678 | K573: =IF(I573 < INDEX('Met25'!$B$23:$T$39,MATCH(F573,'Met25'!$A$23:$A$39, 0),MATCH("50 flug",'Met25'!$B$22:$T$22,0)), "X", "") -> 
B574: 5 | C574: =VLOOKUP(3,Keppendur!B6:C1000,2,FALSE) -> Róbert Í Jónsson | D574: =VLOOKUP(3,Keppendur!B6:D1000,3,FALSE) -> 14 | E574: =VLOOKUP(3,Keppendur!B6:E1000,4,FALSE) -> Íþróttafélagið Fjörður | F574: =CONCATENATE("S",INDEX(Keppendur!F6:H1000,MATCH(3,Keppendur!B6:B1000,0),MATCH("S",Keppendur!F5:H5,0))) -> S14 | G574: 00:00:31.290 | H574: =INDEX(Viðmið!$B$23:$T$39,MATCH(F574,Viðmið!$A$23:$A$39, 0),MATCH("50 flug",Viðmið!$B$22:$T$22,0)) -> 00:00:25.662 | I574: 00:00:30.600 | J574: =POWER((10*H:H/I:I),3) -> 589.7885647 | K574: =IF(I574 < INDEX('Met25'!$B$23:$T$39,MATCH(F574,'Met25'!$A$23:$A$39, 0),MATCH("50 flug",'Met25'!$B$22:$T$22,0)), "X", "") -> 
B575: 6 | C575: =VLOOKUP(58,Keppendur!B6:C1000,2,FALSE) -> Fannar Logi Jóhannesson | D575: =VLOOKUP(58,Keppendur!B6:D1000,3,FALSE) -> 15 | E575: =VLOOKUP(58,Keppendur!B6:E1000,4,FALSE) -> Sundfélagið Óðinn | F575: =CONCATENATE("S",INDEX(Keppendur!F6:H1000,MATCH(58,Keppendur!B6:B1000,0),MATCH("S",Keppendur!F5:H5,0))) -> S14 | G575: 00:00:42.080 | H575: =INDEX(Viðmið!$B$23:$T$39,MATCH(F575,Viðmið!$A$23:$A$39, 0),MATCH("50 flug",Viðmið!$B$22:$T$22,0)) -> 00:00:25.662 | I575: 00:00:45.380 | J575: =POWER((10*H:H/I:I),3) -> 180.8286136 | K575: =IF(I575 < INDEX('Met25'!$B$23:$T$39,MATCH(F575,'Met25'!$A$23:$A$39, 0),MATCH("50 flug",'Met25'!$B$22:$T$22,0)), "X", "") -> 
B576: 7 | C576: =VLOOKUP(37,Keppendur!B6:C1000,2,FALSE) -> Ingólfur M Bjarnason | D576: =VLOOKUP(37,Keppendur!B6:D1000,3,FALSE) -> 15 | E576: =VLOOKUP(37,Keppendur!B6:E1000,4,FALSE) -> NES | F576: =CONCATENATE("S",INDEX(Keppendur!F6:H1000,MATCH(37,Keppendur!B6:B1000,0),MATCH("S",Keppendur!F5:H5,0))) -> S10 | G576: 00:00:47 | H576: =INDEX(Viðmið!$B$23:$T$39,MATCH(F576,Viðmið!$A$23:$A$39, 0),MATCH("50 flug",Viðmið!$B$22:$T$22,0)) -> 00:00:25.370 | I576: 00:01:08.860 | J576: =POWER((10*H:H/I:I),3) -> 50.01005788 | K576: =IF(I576 < INDEX('Met25'!$B$23:$T$39,MATCH(F576,'Met25'!$A$23:$A$39, 0),MATCH("50 flug",'Met25'!$B$22:$T$22,0)), "X", "") -> 
B637: 10. Grein: Stúlkur 50m Flugsund
B639: 0 | C639: =VLOOKUP(41,Keppendur!B6:C1000,2,FALSE) -> Ingibjörg F Margeirsdóttir | D639: =VLOOKUP(41,Keppendur!B6:D1000,3,FALSE) -> 16 | E639: =VLOOKUP(41,Keppendur!B6:E1000,4,FALSE) -> NES | F639: =CONCATENATE("S",INDEX(Keppendur!F6:H1000,MATCH(41,Keppendur!B6:B1000,0),MATCH("S",Keppendur!F5:H5,0))) -> S14 | G639: 00:00:41 | H639: =INDEX(Viðmið!$B$3:$T$19,MATCH(F639,Viðmið!$A$3:$A$19, 0),MATCH("50 flug",Viðmið!$B$2:$T$2,0)) -> 00:00:27.489
B640: Riðill #1 | D640: Aldur | G640: Besti tími | H640: Viðmið | I640: Loka Tími | J640: Stig | K640: Met
B641: 2 | C641: =VLOOKUP(7,Keppendur!B6:C1000,2,FALSE) -> Sigríður Aníta Rögnvaldsóttir | D641: =VLOOKUP(7,Keppendur!B6:D1000,3,FALSE) -> 13 | E641: =VLOOKUP(7,Keppendur!B6:E1000,4,FALSE) -> Íþróttafélagið Fjörður | F641: =CONCATENATE("S",INDEX(Keppendur!F6:H1000,MATCH(7,Keppendur!B6:B1000,0),MATCH("S",Keppendur!F5:H5,0))) -> S14 | G641: 00:00:55.200 | H641: =INDEX(Viðmið!$B$3:$T$19,MATCH(F641,Viðmið!$A$3:$A$19, 0),MATCH("50 flug",Viðmið!$B$2:$T$2,0)) -> 00:00:27.489
B642: 3 | C642: =VLOOKUP(36,Keppendur!B6:C1000,2,FALSE) -> Ástrós M Bjarnadóttir | D642: =VLOOKUP(36,Keppendur!B6:D1000,3,FALSE) -> 16 | E642: =VLOOKUP(36,Keppendur!B6:E1000,4,FALSE) -> NES | F642: =CONCATENATE("S",INDEX(Keppendur!F6:H1000,MATCH(36,Keppendur!B6:B1000,0),MATCH("S",Keppendur!F5:H5,0))) -> S18 | G642: 00:00:42 | H642: =INDEX(Viðmið!$B$3:$T$19,MATCH(F642,Viðmið!$A$3:$A$19, 0),MATCH("50 flug",Viðmið!$B$2:$T$2,0)) -> 00:00:28.280 | I642: 00:00:51.310 | J642: =POWER((10*H:H/I:I),3) -> 167.4295737 | K642: =IF(I642 < INDEX('Met25'!$B$3:$T$19,MATCH(F642,'Met25'!$A$3:$A$19, 0),MATCH("50 flug",'Met25'!$B$2:$T$2,0)), "X", "") -> 
B643: 4 | C643: =VLOOKUP(20,Keppendur!B6:C1000,2,FALSE) -> Thórey Í Magnúsdóttir | D643: =VLOOKUP(20,Keppendur!B6:D1000,3,FALSE) -> 16 | E643: =VLOOKUP(20,Keppendur!B6:E1000,4,FALSE) -> ÍFR | F643: =CONCATENATE("S",INDEX(Keppendur!F6:H1000,MATCH(20,Keppendur!B6:B1000,0),MATCH("S",Keppendur!F5:H5,0))) -> S14 | G643: 00:00:36.100 | H643: =INDEX(Viðmið!$B$3:$T$19,MATCH(F643,Viðmið!$A$3:$A$19, 0),MATCH("50 flug",Viðmið!$B$2:$T$2,0)) -> 00:00:27.489 | I643: 00:00:37.350 | J643: =POWER((10*H:H/I:I),3) -> 398.647974 | K643: =IF(I643 < INDEX('Met25'!$B$3:$T$19,MATCH(F643,'Met25'!$A$3:$A$19, 0),MATCH("50 flug",'Met25'!$B$2:$T$2,0)), "X", "") -> 
B644: 6 | C644: =VLOOKUP(67,Keppendur!B6:C1000,2,FALSE) -> Sandra S Gunnarsdóttir | D644: =VLOOKUP(67,Keppendur!B6:D1000,3,FALSE) -> 16 | E644: =VLOOKUP(67,Keppendur!B6:E1000,4,FALSE) -> Sunddeild Fjölnis | F644: =CONCATENATE("S",INDEX(Keppendur!F6:H1000,MATCH(67,Keppendur!B6:B1000,0),MATCH("S",Keppendur!F5:H5,0))) -> S12 | G644: 00:00:42.210 | H644: =INDEX(Viðmið!$B$3:$T$19,MATCH(F644,Viðmið!$A$3:$A$19, 0),MATCH("50 flug",Viðmið!$B$2:$T$2,0)) -> 00:00:28.158 | I644: 00:00:44.610 | J644: =POWER((10*H:H/I:I),3) -> 251.4757355 | K644: =IF(I644 < INDEX('Met25'!$B$3:$T$19,MATCH(F644,'Met25'!$A$3:$A$19, 0),MATCH("50 flug",'Met25'!$B$2:$T$2,0)), "X", "") -> 
L1430: 711

Sheet Viðmið
A1: 1000 | B1: stiga tafla fyrir KVK
B2: 50 skrið | C2: 100 skrið | D2: 200 skrið | E2: 400 skrið | F2: 800 skrið | G2: 1500 skrið | H2: 50 flug | I2: 100 flug | J2: 200 flug | K2: 50 bak | L2: 100 bak | M2: 200 bak | N2: 50 bringa | O2: 100 bringa | P2: 200 bringa | Q2: 100 fjór | R2: 150 þrí | S2: 200 fjór | T2: 400 fjór
A3: S1 | U3: S1
A4: S2 | B4: 00:00:55.247 | C4: 00:02:01.227 | D4: 00:04:23.035 | E4: 00:09:14.963 | F4: 00:18:54.722 | G4: 00:35:54.665 | H4: 00:00:56.877 | I4: 00:02:09.539 | J4: 00:04:43.593 | K4: 00:01:03 | L4: 00:02:15.313 | M4: 00:04:48.831 | N4: 00:01:08.634 | O4: 00:02:29.817 | P4: 00:05:23.870 | Q4: 00:02:16.621 | R4: 00:05:00.160 | S4: 00:04:53.627 | T4: 00:10:24.948 | U4: S2
A5: S3 | B5: 00:00:46.400 | C5: 00:01:37.180 | D5: 00:03:35.886 | E5: 00:07:35.485 | F5: 00:15:31.321 | G5: 00:29:28.437 | H5: 00:00:46.682 | I5: 00:01:46.319 | J5: 00:03:52.758 | K5: 00:00:51.707 | L5: 00:01:51.058 | M5: 00:03:57.058 | N5: 00:00:56.331 | O5: 00:02:02.962 | P5: 00:04:25.816 | Q5: 00:01:52.132 | R5: 00:03:08.320 | S5: 00:04:00.994 | T5: 00:08:32.925 | U5: S3
A6: S4 | B6: 00:00:41.290 | C6: 00:01:30.602 | D6: 00:03:16.585 | E6: 00:06:54.763 | F6: 00:14:08.057 | G6: 00:26:50.333 | H6: 00:00:42.508 | I6: 00:01:36.813 | J6: 00:03:31.949 | K6: 00:00:50.490 | L6: 00:01:48.443 | M6: 00:03:51.478 | N6: 00:00:47.585 | O6: 00:01:43.870 | P6: 00:03:44.543 | Q6: 00:01:42.107 | R6: 00:03:05.100 | S6: 00:03:39.448 | T6: 00:07:47.068 | U6: S4
A7: S5 | B7: 00:00:35.880 | C7: 00:01:18.550 | D7: 00:02:49.740 | E7: 00:05:59.378 | F7: 00:12:14.813 | G7: 00:23:15.299 | H7: 00:00:41.760 | I7: 00:01:35.110 | J7: 00:03:28.219 | K7: 00:00:42.089 | L7: 00:01:30.400 | M7: 00:03:12.963 | N7: 00:00:43.535 | O7: 00:01:35.030 | P7: 00:03:25.433 | Q7: 00:01:30.001 | S7: 00:03:13.430 | T7: 00:06:51.691 | U7: S5
A8: S6 | B8: 00:00:34.140 | C8: 00:01:12.210 | D8: 00:02:36.833 | E8: 00:05:19.170 | F8: 00:11:16.569 | G8: 00:21:24.702 | H8: 00:00:36.050 | I8: 00:01:22.105 | J8: 00:02:59.748 | K8: 00:00:39.440 | L8: 00:01:24.710 | M8: 00:03:00.818 | N8: 00:00:43.498 | O8: 00:01:34.950 | P8: 00:03:25.260 | Q8: 00:01:24.226 | S8: 00:03:01.020 | T8: 00:06:25.278 | U8: S6
A9: S7 | B9: 00:00:32.310 | C9: 00:01:08.030 | D9: 00:02:27.722 | E9: 00:04:59.020 | F9: 00:10:37.265 | G9: 00:20:10.070 | H9: 00:00:34.800 | I9: 00:01:19.258 | J9: 00:02:53.516 | K9: 00:00:37.978 | L9: 00:01:21.570 | M9: 00:02:54.115 | N9: 00:00:40.557 | O9: 00:01:28.530 | P9: 00:03:11.382 | Q9: 00:01:21.156 | S9: 00:02:54.420 | T9: 00:06:11.230 | U9: S7
A10: S8 | B10: 00:00:30.130 | C10: 00:01:04.710 | D10: 00:02:18.926 | E10: 00:04:40.440 | F10: 00:09:59.318 | G10: 00:18:58.014 | H10: 00:00:29.945 | I10: 00:01:08.200 | J10: 00:02:29.307 | K10: 00:00:36.046 | L10: 00:01:17.420 | M10: 00:02:45.257 | N10: 00:00:35.353 | O10: 00:01:17.170 | P10: 00:02:46.824 | Q10: 00:01:12.585 | S10: 00:02:36 | T10: 00:05:32.026 | U10: S8
A11: S9 | B11: 00:00:29.040 | C11: 00:01:02.740 | D11: 00:02:14.150 | E11: 00:04:30.180 | F11: 00:09:38.716 | G11: 00:18:18.894 | H11: 00:00:30.314 | I11: 00:01:09.040 | J11: 00:02:31.146 | K11: 00:00:31.972 | L11: 00:01:08.670 | M11: 00:02:26.579 | N11: 00:00:35.353 | O11: 00:01:17.170 | P11: 00:02:46.824 | Q11: 00:01:10.296 | S11: 00:02:31.080 | T11: 00:05:21.554 | U11: S9
A12: S10 | B12: 00:00:27.780 | C12: 00:00:59.170 | D12: 00:02:09.981 | E12: 00:04:32.790 | F12: 00:09:20.730 | G12: 00:17:44.741 | H12: 00:00:27.978 | I12: 00:01:03.720 | J12: 00:02:19.499 | K12: 00:00:30.664 | L12: 00:01:05.860 | M12: 00:02:20.581 | Q12: 00:01:07.932 | S12: 00:02:26 | T12: 00:05:10.742 | U12: S10
A13: S11 | B13: 00:00:30.940 | C13: 00:01:07.290 | D13: 00:02:26.956 | E13: 00:05:11.320 | F13: 00:10:33.960 | G13: 00:20:03.794 | H13: 00:00:32.277 | I13: 00:01:13.512 | J13: 00:02:40.937 | K13: 00:00:36.591 | L13: 00:01:18.590 | M13: 00:02:47.754 | N13: 00:00:39.783 | O13: 00:01:26.840 | P13: 00:03:07.728 | Q13: 00:01:17.661 | S13: 00:02:46.910 | T13: 00:05:55.246 | U13: S11
A14: S12 | B14: 00:00:26.900 | C14: 00:00:58.410 | D14: 00:02:08.722 | E14: 00:04:37.140 | F14: 00:09:15.298 | G14: 00:17:34.428 | H14: 00:00:28.158 | I14: 00:01:04.130 | J14: 00:02:20.397 | K14: 00:00:30.799 | L14: 00:01:06.150 | M14: 00:02:21.200 | N14: 00:00:34.863 | O14: 00:01:16.100 | P14: 00:02:44.511 | Q14: 00:01:07.402 | S14: 00:02:24.860 | T14: 00:05:08.316 | U14: S12
A15: S13 | B15: 00:00:26.900 | C15: 00:00:58.410 | D15: 00:02:07.404 | E15: 00:04:28.803 | F15: 00:09:09.616 | G15: 00:17:23.639 | H15: 00:00:28 | I15: 00:01:03.770 | J15: 00:02:19.609 | K15: 00:00:31.014 | L15: 00:01:06.612 | M15: 00:02:22.187 | N15: 00:00:34.863 | O15: 00:01:16.100 | P15: 00:02:44.511 | Q15: 00:01:07.281 | S15: 00:02:24.600 | T15: 00:05:07.762 | U15: S13
A16: S14 | B16: 00:00:26.250 | C16: 00:00:57.601 | D16: 00:02:04.980 | E16: 00:04:23.688 | F16: 00:08:59.157 | G16: 00:17:03.778 | H16: 00:00:27.489 | I16: 00:01:02.606 | J16: 00:02:17.061 | K16: 00:00:30.124 | L16: 00:01:04.700 | M16: 00:02:18.105 | N16: 00:00:34.084 | O16: 00:01:14.400 | P16: 00:02:40.836 | Q16: 00:01:06.029 | S16: 00:02:21.910 | T16: 00:05:02.038 | U16: S14
A17: S16 | B17: 00:00:34.539 | C17: 00:01:19.273 | D17: 00:02:49.093 | E17: 00:05:49.933 | F17: 00:12:00.893 | G17: 00:23:31.247 | H17: 00:00:35.758 | I17: 00:01:25.830 | J17: 00:03:16.872 | K17: 00:00:40.403 | L17: 00:01:28.370 | M17: 00:03:04.423 | N17: 00:00:44.217 | O17: 00:01:39.295 | P17: 00:03:35.905 | Q17: 00:01:29.045 | S17: 00:03:11.377 | T17: 00:06:53.857 | U17: S16
A18: S18 | B18: 00:00:26.150 | C18: 00:00:57.290 | D18: 00:02:07.130 | E18: 00:04:27.820 | F18: 00:09:09.730 | G18: 00:17:12.637 | H18: 00:00:28.280 | I18: 00:01:03.590 | J18: 00:02:22.460 | K18: 00:00:30.600 | L18: 00:01:01.170 | M18: 00:02:25.180 | N18: 00:00:32.850 | O18: 00:01:11.530 | P18: 00:02:35.650 | Q18: 00:01:06.434 | S18: 00:02:22.780 | T18: 00:05:05.310 | U18: S18
A19: S20 | B19: 00:00:23.730 | C19: 00:00:52.070 | D19: 00:01:52.980 | E19: 00:03:58.370 | F19: 00:08:07.390 | G19: 00:15:25.480 | H19: 00:00:24.430 | I19: 00:00:55.640 | J19: 00:02:01.810 | K19: 00:00:27.060 | L19: 00:00:58.120 | M19: 00:02:04.060 | N19: 00:00:29.480 | O19: 00:01:04.350 | P19: 00:02:19.110 | Q19: 00:00:58.682 | S19: 00:02:06.120 | T19: 00:04:28.430 | U19: S20
A21: 1000 | B21: stiga tafla fyrir KVK
B22: 50 skrið | C22: 100 skrið | D22: 200 skrið | E22: 400 skrið | F22: 800 skrið | G22: 1500 skrið | H22: 50 flug | I22: 100 flug | J22: 200 flug | K22: 50 bak | L22: 100 bak | M22: 200 bak | N22: 50 bringa | O22: 100 bringa | P22: 200 bringa | Q22: 100 fjór | R22: 150 þrí | S22: 200 fjór | T22: 400 fjór
A23: S1 | B23: 00:00:55.919 | C23: 00:02:05.451 | D23: 00:04:32.778 | E23: 00:09:48.532 | F23: 00:20:09.101 | G23: 00:38:49.363 | H23: 00:00:59.984 | I23: 00:02:13.233 | J23: 00:04:58.210 | K23: 00:01:04.290 | L23: 00:02:18.903 | M23: 00:04:59.307 | N23: 00:01:10.655 | O23: 00:02:34.895 | P23: 00:05:39.662 | Q23: 00:02:20.880 | S23: 00:05:04.869 | T23: 00:10:52.100 | U23: S1
A24: S2 | B24: 00:00:58.430 | C24: 00:02:03.710 | D24: 00:04:17.860 | E24: 00:09:43.888 | F24: 00:19:59.561 | G24: 00:38:30.983 | H24: 00:00:56.558 | I24: 00:02:05.623 | J24: 00:04:41.176 | K24: 00:00:59.420 | L24: 00:02:08.381 | M24: 00:04:36.634 | N24: 00:00:57.500 | O24: 00:02:06.056 | P24: 00:04:36.422 | Q24: 00:01:54.650 | R24: 00:04:23.370 | S24: 00:04:08.107 | T24: 00:08:50.689 | U24: S2
A25: S3 | B25: 00:00:37.957 | C25: 00:01:25.154 | D25: 00:03:05.157 | E25: 00:06:39.485 | F25: 00:13:40.717 | G25: 00:26:21.131 | H25: 00:00:40.716 | I25: 00:01:30.436 | J25: 00:03:22.420 | K25: 00:00:42.510 | L25: 00:01:31.846 | M25: 00:03:17.908 | N25: 00:00:49.200 | O25: 00:01:47.860 | P25: 00:03:56.521 | Q25: 00:01:35.627 | R25: 00:02:43.720 | S25: 00:03:26.940 | T25: 00:07:22.634 | U25: S3
A26: S4 | B26: 00:00:37.850 | C26: 00:01:22.850 | D26: 00:02:56.230 | E26: 00:06:29.086 | F26: 00:13:19.353 | G26: 00:25:39.973 | H26: 00:00:38.873 | I26: 00:01:26.342 | J26: 00:03:13.256 | K26: 00:00:42.510 | L26: 00:01:31.846 | M26: 00:03:17.908 | N26: 00:00:42.089 | O26: 00:01:32.270 | P26: 00:03:22.334 | Q26: 00:01:31.298 | R26: 00:02:25.980 | S26: 00:03:17.571 | T26: 00:07:02.594 | U26: S4
A27: S5 | B27: 00:00:31.940 | C27: 00:01:08.850 | D27: 00:02:26.720 | E27: 00:05:25.237 | F27: 00:11:08.178 | G27: 00:21:27.261 | H27: 00:00:33.980 | I27: 00:01:15.474 | J27: 00:02:48.930 | K27: 00:00:34.990 | L27: 00:01:15.598 | M27: 00:02:42.899 | N27: 00:00:42.089 | O27: 00:01:32.270 | P27: 00:03:22.334 | Q27: 00:01:18.994 | S27: 00:02:50.945 | T27: 00:06:05.643 | U27: S5
A28: S6 | B28: 00:00:28.570 | C28: 00:01:04.600 | D28: 00:02:18.940 | E28: 00:04:55.560 | F28: 00:10:15.857 | G28: 00:19:46.464 | H28: 00:00:29.900 | I28: 00:01:06.412 | J28: 00:02:28.647 | K28: 00:00:33.760 | L28: 00:01:12.940 | M28: 00:02:37.171 | N28: 00:00:36.569 | O28: 00:01:20.170 | P28: 00:02:55.801 | Q28: 00:01:13.298 | S28: 00:02:38.620 | T28: 00:05:39.280 | U28: S6
A29: S7 | B29: 00:00:27.840 | C29: 00:01:00.570 | D29: 00:02:12.295 | E29: 00:04:39.140 | F29: 00:09:46.404 | G29: 00:18:49.722 | H29: 00:00:29.490 | I29: 00:01:05.501 | J29: 00:02:26.609 | K29: 00:00:32.177 | L29: 00:01:09.520 | M29: 00:02:29.801 | N29: 00:00:34.977 | O29: 00:01:16.680 | P29: 00:02:48.148 | Q29: 00:01:10.761 | S29: 00:02:33.130 | T29: 00:05:27.537 | U29: S7
A30: S8 | B30: 00:00:25.320 | C30: 00:00:55.840 | D30: 00:02:02.480 | E30: 00:04:24.320 | F30: 00:09:02.897 | G30: 00:17:25.904 | H30: 00:00:27.283 | I30: 00:01:00.600 | J30: 00:02:15.638 | K30: 00:00:29.307 | L30: 00:01:03.320 | M30: 00:02:16.442 | N30: 00:00:30.585 | O30: 00:01:07.050 | P30: 00:02:27.031 | Q30: 00:01:05.803 | S30: 00:02:22.400 | T30: 00:05:04.586 | U30: S8
A31: S9 | B31: 00:00:25.130 | C31: 00:00:54.180 | D31: 00:01:58.744 | E31: 00:04:09.930 | F31: 00:08:46.340 | G31: 00:16:54.006 | H31: 00:00:26.523 | I31: 00:00:58.910 | J31: 00:02:11.856 | K31: 00:00:28.877 | L31: 00:01:02.390 | M31: 00:02:14.438 | N31: 00:00:29.202 | O31: 00:01:04.020 | P31: 00:02:20.386 | Q31: 00:01:02.273 | S31: 00:02:14.760 | T31: 00:04:48.245 | U31: S9
A32: S10 | B32: 00:00:23.160 | C32: 00:00:51.070 | D32: 00:01:52.304 | E32: 00:04:03.570 | F32: 00:08:17.794 | G32: 00:15:59.013 | H32: 00:00:25.370 | I32: 00:00:56.350 | J32: 00:02:06.126 | K32: 00:00:27.567 | L32: 00:00:59.560 | M32: 00:02:08.340 | Q32: 00:01:00.078 | S32: 00:02:10.010 | T32: 00:04:38.085 | U32: S10
A33: S11 | B33: 00:00:25.270 | C33: 00:00:56.780 | D33: 00:02:04.329 | E33: 00:04:32.410 | F33: 00:09:11.096 | G33: 00:17:41.701 | H33: 00:00:28.355 | I33: 00:01:02.980 | J33: 00:02:20.965 | K33: 00:00:31.385 | L33: 00:01:07.810 | M33: 00:02:26.117 | N33: 00:00:31.980 | O33: 00:01:10.110 | P33: 00:02:33.741 | Q33: 00:01:05.803 | S33: 00:02:22.400 | T33: 00:05:04.586 | U33: S11
A34: S12 | B34: 00:00:23.360 | C34: 00:00:51.400 | D34: 00:01:53.236 | E34: 00:04:05.950 | F34: 00:08:21.926 | G34: 00:16:06.972 | H34: 00:00:25.591 | I34: 00:00:56.840 | J34: 00:02:07.223 | K34: 00:00:27.470 | L34: 00:00:59.350 | M34: 00:02:07.887 | N34: 00:00:29.225 | O34: 00:01:04.070 | P34: 00:02:20.496 | Q34: 00:01:00.475 | S34: 00:02:10.870 | T34: 00:04:39.924 | U34: S12
A35: S13 | B35: 00:00:23.200 | C35: 00:00:50.850 | D35: 00:01:50.972 | E35: 00:03:55.560 | F35: 00:08:11.891 | G35: 00:15:47.639 | H35: 00:00:24.510 | I35: 00:00:54.440 | J35: 00:02:01.851 | K35: 00:00:26.262 | L35: 00:00:56.740 | M35: 00:02:02.263 | N35: 00:00:29.193 | O35: 00:01:04 | P35: 00:02:20.343 | Q35: 00:00:57.203 | S35: 00:02:03.790 | T35: 00:04:24.780 | U35: S13
A36: S14 | B36: 00:00:23.835 | C36: 00:00:53.473 | D36: 00:01:56.270 | E36: 00:04:10.858 | F36: 00:08:35.372 | G36: 00:16:32.877 | H36: 00:00:25.662 | I36: 00:00:56.998 | J36: 00:02:07.577 | K36: 00:00:27.428 | L36: 00:00:59.260 | M36: 00:02:07.693 | N36: 00:00:30.420 | O36: 00:01:06.690 | P36: 00:02:26.241 | Q36: 00:01:00.270 | S36: 00:02:10.425 | T36: 00:04:38.973 | U36: S14
A37: S16 | B37: 00:00:28.499 | C37: 00:01:04.137 | D37: 00:02:25.460 | E37: 00:05:15.846 | F37: 00:10:27.361 | G37: 00:21:33.186 | H37: 00:00:30.180 | I37: 00:01:12.255 | J37: 00:02:45.048 | K37: 00:00:33.625 | L37: 00:01:16.346 | M37: 00:02:48.105 | N37: 00:00:37.272 | O37: 00:01:25.128 | P37: 00:03:05.522 | Q37: 00:01:15.296 | S37: 00:02:42.942 | T37: 00:06:05.706 | U37: S16
A38: S18 | B38: 00:00:23.340 | C38: 00:00:51.220 | D38: 00:01:53.120 | E38: 00:03:53.420 | F38: 00:08:16.406 | G38: 00:16:08.560 | H38: 00:00:24.820 | I38: 00:00:53.900 | J38: 00:02:01.710 | K38: 00:00:27.060 | L38: 00:00:58.120 | M38: 00:02:05.640 | N38: 00:00:27.790 | O38: 00:01:00 | P38: 00:02:12.500 | Q38: 00:00:56.991 | S38: 00:02:03.330 | T38: 00:04:16.920 | U38: S18
A39: S20 | B39: 00:00:20.910 | C39: 00:00:46.910 | D39: 00:01:42 | E39: 00:03:40.070 | F39: 00:07:32.120 | G39: 00:14:31.020 | H39: 00:00:22.430 | I39: 00:00:49.820 | J39: 00:01:51.510 | K39: 00:00:24.040 | L39: 00:00:51.940 | M39: 00:01:51.920 | N39: 00:00:26.420 | O39: 00:00:57.920 | P39: 00:02:07.010 | Q39: 00:00:52.679 | S39: 00:01:54 | T39: 00:04:03.840 | U39: S20

Sheet Met25
A1: Íslandsment 25m Braut - KVK
B2: 50 skrið | C2: 100 skrið | D2: 200 skrið | E2: 400 skrið | F2: 800 skrið | G2: 1500 skrið | H2: 50 flug | I2: 100 flug | J2: 200 flug | K2: 50 bak | L2: 100 bak | M2: 200 bak | N2: 50 bringa | O2: 100 bringa | P2: 200 bringa | Q2: 100 fjór | R2: 150 þrísund | S2: 200 fjór | T2: 400 fjór
A3: S1 | U3: S1
A4: S2 | B4: 00:01:54.420 | C4: 00:04:08 | K4: 00:02:00.730 | N4: 00:02:25.750 | U4: S2
A5: S3 | B5: 00:01:44.470 | C5: 00:03:48 | H5: 00:01:52 | K5: 00:01:30.200 | N5: 00:02:16.020 | U5: S3
A6: S4 | B6: 00:01:01.270 | C6: 00:02:15.980 | D6: 00:04:20 | E6: 00:09:00 | H6: 00:01:41 | K6: 00:01:10.500 | N6: 00:01:43.700 | O6: 00:03:59 | U6: S4
A7: S5 | B7: 00:00:50.160 | C7: 00:01:51.840 | D7: 00:03:59 | E7: 00:08:53 | H7: 00:01:21 | K7: 00:00:57.630 | L7: 00:02:08.020 | N7: 00:01:06.700 | O7: 00:02:23.800 | P7: 00:05:03.190 | Q7: 00:02:32.440 | U7: S5
A8: S6 | B8: 00:00:39.490 | C8: 00:01:24.090 | D8: 00:03:17 | E8: 00:06:46 | F8: 00:13:37 | H8: 00:00:59 | I8: 00:02:07 | K8: 00:00:56.350 | L8: 00:02:04.260 | M8: 00:04:15.770 | N8: 00:01:06.700 | O8: 00:02:23.800 | P8: 00:03:35.060 | Q8: 00:02:06.870 | S8: 00:04:29.560 | U8: S6
A9: S7 | B9: 00:00:35.310 | C9: 00:01:16.810 | D9: 00:02:56 | E9: 00:06:18 | F9: 00:13:26 | H9: 00:00:45 | I9: 00:01:34 | K9: 00:00:40.200 | L9: 00:01:25.140 | M9: 00:03:06.850 | N9: 00:00:44.080 | O9: 00:01:36.290 | P9: 00:03:35.060 | Q9: 00:01:30.040 | S9: 00:03:14.830 | U9: S7
A10: S8 | B10: 00:00:35.310 | C10: 00:01:16.810 | D10: 00:02:56 | E10: 00:06:18 | F10: 00:13:26 | H10: 00:00:43 | I10: 00:01:34 | K10: 00:00:42.630 | L10: 00:01:25.140 | M10: 00:03:06.850 | N10: 00:00:49.760 | O10: 00:01:42.110 | P10: 00:03:35.060 | Q10: 00:01:30.040 | S10: 00:03:14.830 | U10: S8
A11: S9 | B11: 00:00:32.820 | C11: 00:01:10.960 | D11: 00:02:33 | E11: 00:05:20 | F11: 00:11:02 | H11: 00:00:41 | I11: 00:01:34 | K11: 00:00:42.690 | L11: 00:01:19.860 | M11: 00:03:06.850 | N11: 00:00:47.090 | O11: 00:01:45.160 | Q11: 00:01:32 | S11: 00:02:57.630 | U11: S9
A12: S10 | B12: 00:00:32.820 | C12: 00:01:10.960 | D12: 00:02:49 | E12: 00:05:42 | F12: 00:11:02 | H12: 00:00:40 | I12: 00:01:32 | K12: 00:00:42.380 | L12: 00:01:31.700 | M12: 00:03:06.850 | Q12: 00:01:33.440 | S12: 00:03:08.980 | U12: S10
A13: S11 | B13: 00:00:54 | C13: 00:02:26 | K13: 00:00:59.790 | L13: 00:02:23.870 | N13: 00:01:00.610 | O13: 00:02:16.050 | U13: S11
A14: S12 | U14: S12
A15: S13 | B15: 00:00:32 | C15: 00:01:10 | D15: 00:02:40 | E15: 00:05:52 | F15: 00:12:03 | H15: 00:00:35 | I15: 00:01:19 | J15: 00:02:57.330 | K15: 00:00:38.150 | L15: 00:01:20.330 | M15: 00:02:59.660 | N15: 00:00:44 | O15: 00:01:32.200 | P15: 00:03:10 | Q15: 00:01:37.910 | S15: 00:02:55.500 | T15: 00:06:08.300 | U15: S13
A16: S14 | B16: 00:00:31 | C16: 00:01:07 | D16: 00:02:25 | E16: 00:05:08 | F16: 00:10:40 | H16: 00:00:36 | I16: 00:01:21 | J16: 00:02:58.600 | K16: 00:00:37.630 | L16: 00:01:20.610 | M16: 00:02:50.250 | N16: 00:00:39.770 | O16: 00:01:27.700 | P16: 00:03:07.400 | Q16: 00:01:19.440 | S16: 00:02:46.100 | T16: 00:06:21.820 | U16: S14
A17: S16 | U17: S16
A18: S18 | U18: S18
A19: S20 | U19: S20
A21: Íslandsment 25m Braut - KK
B22: 50 skrið | C22: 100 skrið | D22: 200 skrið | E22: 400 skrið | F22: 800 skrið | G22: 1500 skrið | H22: 50 flug | I22: 100 flug | J22: 200 flug | K22: 50 bak | L22: 100 bak | M22: 200 bak | N22: 50 bringa | O22: 100 bringa | P22: 200 bringa | Q22: 100 fjór | R22: 150 þrísund | S22: 200 fjór | T22: 400 fjór
A23: S1 | U23: S1
A24: S2 | U24: S2
A25: S3 | B25: 00:00:57.640 | C25: 00:02:07.100 | D25: 00:04:17.570 | E25: 00:09:09.750 | K25: 00:01:28.820 | N25: 00:01:46.360 | R25: 00:05:34.420 | U25: S3
A26: S4 | B26: 00:01:01.610 | C26: 00:02:40.380 | D26: 00:04:50.540 | E26: 00:09:09.750 | K26: 00:01:24.090 | L26: 00:03:43.390 | N26: 00:01:00.870 | O26: 00:02:19.140 | R26: 00:04:46.570 | U26: S4
A27: S5 | B27: 00:00:44.160 | C27: 00:01:32.200 | D27: 00:03:15.950 | E27: 00:07:09.130 | F27: 00:14:24.540 | H27: 00:00:58.140 | K27: 00:00:56.040 | L27: 00:01:49.530 | N27: 00:01:05.920 | O27: 00:02:33.220 | Q27: 00:01:57.480 | S27: 00:04:02.770 | U27: S5
A28: S6 | B28: 00:00:37.030 | C28: 00:01:23.890 | D28: 00:02:56.380 | E28: 00:06:20.020 | F28: 00:14:08.160 | G28: 00:26:38.810 | H28: 00:00:44.020 | I28: 00:01:37.710 | J28: 00:03:38.660 | K28: 00:00:49.350 | L28: 00:01:42.210 | M28: 00:03:27.160 | N28: 00:00:44.070 | O28: 00:01:35.370 | P28: 00:03:27.350 | Q28: 00:01:45.080 | S28: 00:03:32.190 | U28: S6
A29: S7 | B29: 00:00:35.070 | C29: 00:01:17.010 | D29: 00:02:49.040 | E29: 00:06:01 | F29: 00:12:28.520 | G29: 00:24:16.630 | H29: 00:00:38.860 | I29: 00:01:29.630 | J29: 00:03:20.110 | K29: 00:00:45.620 | L29: 00:01:34.910 | M29: 00:03:29.590 | N29: 00:00:54.540 | O29: 00:01:35.370 | P29: 00:03:27.350 | Q29: 00:01:29.170 | S29: 00:03:16.640 | U29: S7
A30: S8 | B30: 00:00:37.130 | C30: 00:01:13.210 | D30: 00:02:56.410 | E30: 00:06:14.910 | F30: 00:12:28.520 | G30: 00:24:03.610 | H30: 00:00:44.750 | I30: 00:01:36.140 | J30: 00:02:26.040 | K30: 00:00:40.900 | L30: 00:01:29.380 | M30: 00:03:03.620 | N30: 00:00:39.540 | O30: 00:01:30.610 | P30: 00:03:27.350 | Q30: 00:01:37.900 | S30: 00:03:16.640 | U30: S8
A31: S9 | B31: 00:00:27.700 | C31: 00:01:00.230 | D31: 00:02:09.850 | E31: 00:04:35.910 | F31: 00:09:51.620 | G31: 00:18:24.690 | H31: 00:00:29.700 | I31: 00:01:04.100 | J31: 00:02:26.040 | K31: 00:00:33.080 | L31: 00:01:09.650 | M31: 00:02:50.680 | N31: 00:00:35.700 | O31: 00:01:14.200 | P31: 00:02:39.260 | Q31: 00:01:14.410 | S31: 00:02:29.160 | U31: S9
A32: S10 | B32: 00:00:28.600 | C32: 00:01:04.650 | D32: 00:02:09.850 | E32: 00:04:35.910 | F32: 00:09:51.620 | G32: 00:18:24.690 | H32: 00:00:29.700 | I32: 00:01:04.100 | K32: 00:00:33.080 | L32: 00:01:09.650 | Q32: 00:02:14.750 | S32: 00:02:29.160 | U32: S10
A33: S11 | B33: 00:00:28.350 | C33: 00:01:06.860 | D33: 00:02:26.730 | E33: 00:05:08.590 | H33: 00:00:35.200 | I33: 00:01:15.310 | K33: 00:00:36.010 | L33: 00:01:19.140 | N33: 00:00:38.900 | O33: 00:01:23.520 | P33: 00:02:57.280 | Q33: 00:01:17.860 | S33: 00:02:41.170 | T33: 00:05:55.790 | U33: S11
A34: S12 | U34: S12
A35: S13 | B35: 00:00:29.300 | C35: 00:01:05.250 | D35: 00:02:21.830 | E35: 00:05:06.800 | H35: 00:00:36.790 | K35: 00:00:41.940 | L35: 00:01:21.780 | O35: 00:01:22.820 | Q35: 00:01:29.350 | S35: 00:02:45.700 | U35: S13
A36: S14 | B36: 00:00:25.600 | C36: 00:00:55.040 | D36: 00:02:00.310 | E36: 00:04:17.090 | F36: 00:08:55.890 | G36: 00:16:47.980 | H36: 00:00:27.980 | I36: 00:01:03.880 | J36: 00:02:35.700 | K36: 00:00:30.930 | L36: 00:01:05.330 | M36: 00:02:21.180 | N36: 00:00:33.100 | O36: 00:01:11.600 | P36: 00:02:49.490 | Q36: 00:01:04.800 | S36: 00:02:20.060 | T36: 00:05:13.160 | U36: S14
A37: S16 | U37: S16
A38: S18 | U38: S18
A39: S20 | U39: S20

Sheet Met50
A1: Íslandsment 50m Braut - KVK
B2: 50 skrið | C2: 100 skrið | D2: 200 skrið | E2: 400 skrið | F2: 800 skrið | G2: 1500 skrið | H2: 50 flug | I2: 100 flug | J2: 200 flug | K2: 50 bak | L2: 100 bak | M2: 200 bak | N2: 50 bringa | O2: 100 bringa | P2: 200 bringa | Q2: 100 fjór | R2: 150 þrísund | S2: 200 fjór | T2: 400 fjór
A3: S1 | U3: S1
A4: S2 | B4: 00:01:54 | C4: 00:04:08 | H4: 00:02:00.510 | J4: 00:01:52.150 | K4: 00:03:49.940 | N4: 00:02:20.550 | U4: S2
A5: S3 | B5: 00:01:44 | C5: 00:03:48 | D5: 00:05:00 | H5: 00:01:51.450 | J5: 00:01:18.570 | K5: 00:02:48.760 | N5: 00:01:59.700 | U5: S3
A6: S4 | B6: 00:01:01 | C6: 00:02:16 | D6: 00:04:36 | H6: 00:01:05.470 | J6: 00:01:02.840 | K6: 00:02:16.180 | N6: 00:01:52.920 | R6: 00:04:42.260 | U6: S4
A7: S5 | B7: 00:00:50 | C7: 00:01:52 | D7: 00:04:06 | H7: 00:01:02.640 | J7: 00:00:54.120 | K7: 00:02:00.560 | N7: 00:00:55.610 | O7: 00:01:59.320 | P7: 00:04:11.390 | S7: 00:06:06.760 | U7: S5
A8: S6 | B8: 00:00:39 | C8: 00:01:24 | D8: 00:02:59 | E8: 00:06:03.670 | F8: 00:14:01.510 | H8: 00:00:47.320 | I8: 00:02:10.260 | J8: 00:00:54.120 | K8: 00:01:53.850 | L8: 00:03:58.520 | N8: 00:00:56.160 | O8: 00:02:00.060 | P8: 00:04:11.390 | S8: 00:03:40.190 | U8: S6
A9: S7 | B9: 00:00:35 | C9: 00:01:17 | D9: 00:02:58 | E9: 00:06:03.670 | F9: 00:14:01.510 | H9: 00:00:45.950 | I9: 00:01:38.270 | J9: 00:00:40.050 | K9: 00:01:25.560 | L9: 00:03:08.230 | N9: 00:00:44.980 | O9: 00:01:35.640 | P9: 00:03:39.330 | S9: 00:03:14.130 | U9: S7
A10: S8 | B10: 00:00:35 | C10: 00:01:17 | D10: 00:02:58 | E10: 00:06:03.670 | F10: 00:14:01.510 | H10: 00:00:44.550 | I10: 00:01:38.270 | J10: 00:00:40.050 | K10: 00:01:25.560 | L10: 00:03:08.230 | N10: 00:00:44.980 | O10: 00:01:35.640 | P10: 00:03:39.330 | S10: 00:03:14.130 | U10: S8
A11: S9 | B11: 00:00:33 | C11: 00:01:11 | D11: 00:02:35 | E11: 00:05:19.900 | F11: 00:14:01.510 | H11: 00:00:37.960 | I11: 00:01:21.400 | J11: 00:00:40.050 | K11: 00:01:20.700 | L11: 00:03:08.230 | N11: 00:00:44.980 | O11: 00:01:35.640 | P11: 00:03:39.330 | S11: 00:03:00.180 | U11: S9
A12: S10 | B12: 00:00:33 | C12: 00:01:11 | D12: 00:02:35 | E12: 00:05:19.900 | F12: 00:14:01.510 | H12: 00:00:37.960 | I12: 00:01:21.400 | J12: 00:00:40.050 | K12: 00:01:20.700 | L12: 00:03:08.230 | S12: 00:03:00.180 | U12: S10
A13: S11 | B13: 00:00:52 | C13: 00:02:00 | D13: 00:03:40 | E13: 00:07:46.980 | F13: 00:16:02.510 | H13: 00:00:49.710 | I13: 00:01:50.990 | K13: 00:01:00.330 | L13: 00:02:05.630 | M13: 00:04:11.630 | N13: 00:01:00.090 | O13: 00:02:15.600 | P13: 00:04:43.310 | S13: 00:04:10.360 | U13: S11
A14: S12 | B14: 00:00:40 | C14: 00:01:28 | D14: 00:03:13 | E14: 00:06:56.830 | F14: 00:14:03.840 | H14: 00:00:43.930 | I14: 00:01:38.090 | K14: 00:00:47.480 | L14: 00:01:41.980 | M14: 00:03:37.690 | N14: 00:00:52.290 | O14: 00:01:54.150 | P14: 00:04:06.770 | S14: 00:03:42 | U14: S12
A15: S13 | B15: 00:00:32 | C15: 00:01:13 | D15: 00:03:06 | E15: 00:05:50.460 | F15: 00:12:03.430 | H15: 00:00:36.550 | I15: 00:01:19.430 | K15: 00:00:38.820 | L15: 00:01:19.230 | M15: 00:02:59.850 | N15: 00:00:45.630 | O15: 00:01:36.100 | P15: 00:03:29.310 | S15: 00:02:52.150 | U15: S13
A16: S14 | B16: 00:00:31 | C16: 00:01:06 | D16: 00:02:23 | E16: 00:05:09.740 | F16: 00:10:28.870 | G16: 00:20:16.460 | H16: 00:00:34.200 | I16: 00:01:19.710 | J16: 00:03:00.930 | K16: 00:00:37.670 | L16: 00:01:20.020 | M16: 00:02:47.860 | N16: 00:00:39.230 | O16: 00:01:24.140 | P16: 00:03:00.490 | S16: 00:02:44.260 | T16: 00:05:43.050 | U16: S14
A17: S16 | U17: S16
A18: S18 | U18: S18
A19: S20 | U19: S20
A21: Íslandsment 50m Braut - KK
B22: 50 skrið | C22: 100 skrið | D22: 200 skrið | E22: 400 skrið | F22: 800 skrið | G22: 1500 skrið | H22: 50 flug | I22: 100 flug | J22: 200 flug | K22: 50 bak | L22: 100 bak | M22: 200 bak | N22: 50 bringa | O22: 100 bringa | P22: 200 bringa | Q22: 100 fjór | R22: 150 þrísund | S22: 200 fjór | T22: 400 fjór
A23: S1 | B23: 00:01:23.880 | C23: 00:03:08.180 | K23: 00:01:36.440 | U23: S1
A24: S2 | B24: 00:01:31.570 | C24: 00:03:05.560 | K24: 00:01:29.130 | N24: 00:01:26.250 | U24: S2
A25: S3 | B25: 00:00:54.270 | C25: 00:01:55.540 | D25: 00:04:04.660 | K25: 00:01:40.100 | O25: 00:03:10.230 | R25: 00:04:05.580 | U25: S3
A26: S4 | B26: 00:00:54.270 | C26: 00:01:55.540 | D26: 00:04:04.660 | K26: 00:01:33.300 | N26: 00:00:58.110 | O26: 00:02:10.860 | R26: 00:03:38.970 | U26: S4
A27: S5 | B27: 00:00:43.740 | C27: 00:01:31.620 | D27: 00:03:10.840 | E27: 00:08:04.990 | H27: 00:00:53.960 | K27: 00:00:55.350 | L27: 00:01:56.100 | N27: 00:00:58.110 | O27: 00:02:10.860 | P27: 00:05:14.530 | S27: 00:03:55.060 | U27: S5
A28: S6 | B28: 00:00:37.150 | C28: 00:01:24.130 | D28: 00:03:03.260 | E28: 00:06:27.100 | F28: 00:13:10.400 | G28: 00:25:53.260 | H28: 00:00:43.720 | I28: 00:01:41.260 | K28: 00:00:50.010 | L28: 00:01:47.800 | M28: 00:03:42.770 | N28: 00:00:44.820 | O28: 00:01:34.430 | P28: 00:03:39.630 | S28: 00:03:37.590 | U28: S6
A29: S7 | B29: 00:00:35.060 | C29: 00:01:17.460 | D29: 00:02:52.120 | E29: 00:06:01 | F29: 00:13:10.400 | G29: 00:25:13.250 | H29: 00:00:36.690 | I29: 00:01:29.180 | J29: 00:03:26.320 | K29: 00:00:47.070 | L29: 00:01:39.210 | M29: 00:03:20.630 | N29: 00:00:44.820 | O29: 00:01:34.430 | P29: 00:03:39.630 | S29: 00:03:10.100 | T29: 00:07:19.830 | U29: S7
A30: S8 | B30: 00:00:35.060 | C30: 00:01:16.970 | D30: 00:02:49.260 | E30: 00:05:53.250 | F30: 00:12:46.490 | G30: 00:23:57.880 | H30: 00:00:36.690 | I30: 00:01:29.180 | K30: 00:00:39.770 | L30: 00:01:24.850 | M30: 00:03:01.220 | N30: 00:00:44.260 | O30: 00:01:34.430 | P30: 00:03:39.630 | S30: 00:03:10.100 | U30: S8
A31: S9 | B31: 00:00:28.340 | C31: 00:01:01.690 | D31: 00:02:19.430 | E31: 00:04:41.070 | F31: 00:09:41.990 | G31: 00:19:48.500 | H31: 00:00:29.750 | I31: 00:01:04.560 | J31: 00:02:31.790 | K31: 00:00:39.500 | L31: 00:01:13.740 | M31: 00:02:59.760 | N31: 00:00:34.860 | O31: 00:01:19.200 | P31: 00:02:58.240 | S31: 00:02:32.890 | U31: S9
A32: S10 | B32: 00:00:28.340 | C32: 00:01:01.690 | D32: 00:02:19.430 | E32: 00:04:41.070 | F32: 00:09:41.990 | G32: 00:19:48.500 | H32: 00:00:29.750 | I32: 00:01:04.560 | J32: 00:02:31.790 | K32: 00:00:39.500 | L32: 00:01:13.740 | S32: 00:02:32.890 | U32: S10
A33: S11 | B33: 00:00:30.620 | C33: 00:01:05.650 | D33: 00:02:24.080 | E33: 00:05:02.380 | F33: 00:10:32.160 | G33: 00:20:24.930 | H33: 00:00:34.780 | I33: 00:01:14.400 | J33: 00:02:52 | K33: 00:00:38.560 | L33: 00:01:17.530 | N33: 00:00:37.680 | O33: 00:01:21.730 | P33: 00:03:05.270 | S33: 00:02:39 | T33: 00:06:04.020 | U33: S11
A34: S12 | B34: 00:00:30.620 | C34: 00:01:05.650 | D34: 00:02:24.080 | E34: 00:05:02.380 | F34: 00:10:32.160 | G34: 00:20:24.930 | H34: 00:00:34.780 | I34: 00:01:14.400 | J34: 00:02:51 | K34: 00:00:38.560 | L34: 00:01:17.530 | N34: 00:00:37.680 | O34: 00:01:21.730 | P34: 00:03:05.270 | S34: 00:02:39 | T34: 00:06:04.020 | U34: S12
A35: S13 | B35: 00:00:29.690 | C35: 00:01:06.480 | D35: 00:02:34.680 | E35: 00:05:20.100 | F35: 00:10:32.160 | G35: 00:20:24.930 | H35: 00:00:32.300 | I35: 00:01:14.570 | J35: 00:02:50.370 | L35: 00:01:25.100 | N35: 00:00:39.080 | O35: 00:01:24.060 | P35: 00:03:03.740 | S35: 00:02:43.120 | T35: 00:05:51.940 | U35: S13
A36: S14 | B36: 00:00:25.130 | C36: 00:00:54.470 | D36: 00:01:56.940 | E36: 00:04:13.700 | F36: 00:08:53.130 | G36: 00:17:18.030 | H36: 00:00:27.240 | I36: 00:01:00.570 | J36: 00:02:42.580 | K36: 00:00:31.770 | L36: 00:01:08.140 | M36: 00:02:28.050 | N36: 00:00:33.300 | O36: 00:01:13.810 | P36: 00:02:46.800 | S36: 00:02:18.790 | T36: 00:05:01.320 | U36: S14
A37: S16 | U37: S16
A38: S18 | U38: S18
A39: S20 | U39: S20

Sheet Verðlaun
A1: 1. Grein: Drengir 50m Baksund
B3: Róbert Í Jónsson | C3: 14 | D3: Íþróttafélagið Fjörður | E3: S14 | F3: 00:00:36.540 | G3: 00:00:27.428 | H3: 00:00:33.060 | I3: 571.0497528
B4: Már Gunnarsson | C4: 16 | D4: NES | E4: S12 | F4: 00:00:37 | G4: 00:00:27.470 | H4: 00:00:36.780 | I4: 416.6050684
B5: Björn Axel Agnarsson | C5: 13 | D5: ÍFR | E5: S20 | F5: 00:00:39.020 | G5: 00:00:24.040 | H5: 00:00:34.160 | I5: 348.5377345
B6: Fannar Logi Jóhannesson | C6: 15 | D6: Sundfélagið Óðinn | E6: S | F6: 00:00:46.550 | H6: 00:00:44.170 | I6: 239
B7: Ingólfur M Bjarnason | C7: 15 | D7: NES | E7: S10 | F7: 00:00:46 | G7: 00:00:27.567 | H7: 00:00:58.450 | I7: 104.9078713
B8: Snævar Örn Kristmannsson | C8: 9 | D8: ÍFR | E8: S14 | F8: 00:01:11.080 | G8: 00:00:27.428 | H8: 00:01:00.080 | I8: 95.14647948
B9: Baldur M Kristinsson | C9: 10 | D9: Íþróttafélagið Fjörður | E9: S14 | F9: 00:01:21.600 | G9: 00:00:27.428 | H9: 00:01:01.890 | I9: 87.04043393
B10: Hjalti G Guðmundsson | C10: 0 | D10: Íþróttafélagið Ösp | E10: S14 | F10: NT | G10: 00:00:27.428 | H10: 00:01:06.760 | I10: 69.3479315
B11: Leó Baldurrson | C11: 10 | D11: NES | E11: S14 | F11: 00:00:00 | G11: 00:00:27.428 | H11: 00:01:20.820 | I11: 39.08642565
B12: Jóhann Stígur Eiríksson | C12: 15 | D12: Íþróttafélagið Ösp | E12: S14 | F12: 00:01:29.560 | G12: 00:00:27.428 | H12: 00:01:22.040 | I12: 37.36848926
B13: Þorleifur Pálmi Páls | C13: 12 | D13: Íþróttafélagið Ösp | E13: S14 | F13: 00:01:24.660 | G13: 00:00:27.428 | H13: 00:01:37.990 | I13: 21.92992884
B14: Róbert Salvar Reynisson | C14: 16 | D14: NES | E14: S9 | F14: 00:00:52 | G14: 00:00:28.877
B15: Logi Ingólfsson | C15: 9 | D15: Sundfélagið Óðinn | E15: S | F15: 00:00:00 | H15: DQ
B16: Unnar I Ingason | C16: 14 | D16: Íþróttafélagið Fjörður | E16: S14 | F16: 00:01:03.390 | G16: 00:00:27.428 | H16: DQ
B17: Alexander Guðmundsson | C17: 12 | D17: NES | E17: S14 | F17: 00:00:48 | G17: 00:00:27.428 | H17: DQ
B18: Hallgrímur A Heimisson | C18: 14 | D18: Íþróttafélagið Fjörður | E18: S14 | F18: 00:01:00.910 | G18: 00:00:27.428
A21: 2. Grein: Stúlkur 50m Baksund
B23: Thórey Í Magnúsdóttir | C23: 16 | D23: ÍFR | E23: S14 | F23: 00:00:40.360 | G23: 00:00:30.124 | H23: 00:00:40.840 | I23: 401.2935706
B24: Sandra S Gunnarsdóttir | C24: 16 | D24: Sunddeild Fjölnis | E24: S12 | F24: 00:00:46.070 | G24: 00:00:30.799 | H24: 00:00:45.420 | I24: 311.7846399
B25: Tinna Rut Andrésdóttir | C25: 16 | D25: Sundfélagið Óðinn | E25: S14 | F25: 00:00:53.300 | G25: 00:00:30.124 | H25: 00:00:44.570 | I25: 308.7390046
B26: Ástrós M Bjarnadóttir | C26: 16 | D26: NES | E26: S18 | F26: 00:00:42 | G26: 00:00:30.600 | H26: 00:00:46.490 | I26: 285.1580531
B27: Katrín E Kristjánsdóttir | C27: 11 | D27: Íþróttafélagið Fjörður | E27: S14 | F27: 00:01:13.480 | G27: 00:00:30.124 | H27: 00:01:05.270 | I27: 98.30566918
B28: Anna R Þrastardóttir | C28: 10 | D28: Íþróttafélagið Fjörður | E28: S14 | F28: 00:01:04.560 | G28: 00:00:30.124 | H28: 00:01:05.560 | I28: 97.00688681
B29: Victoria L Karenardóttir | C29: 0 | D29: Íþróttafélagið Fjörður | E29: S14 | F29: 00:01:09.070 | G29: 00:00:30.124 | H29: 00:01:06.070 | I29: 94.777769
B30: Gunnhildur Brynja Be | C30: 14 | D30: Íþróttafélagið Ösp | E30: S14 | F30: 00:00:53.930 | G30: 00:00:30.124 | H30: 00:01:10.570 | I30: 77.778408
B31: Sigrún Kjartansdóttir | C31: 0 | D31: Íþróttafélagið Fjörður | E31: S14 | F31: 00:01:10.570 | G31: 00:00:30.124 | H31: 00:01:23.190 | I31: 47.47948822
B32: Arndís Atladóttir | C32: 15 | D32: Sundfélagið Óðinn | E32: S14 | F32: 00:02:00.530 | G32: 00:00:30.124 | H32: 00:01:32.560 | I32: 34.47064137
B33: Ingibjörg F Margeirsdóttir | C33: 16 | D33: NES | E33: S14 | F33: 00:00:44 | G33: 00:00:30.124
B34: Emelía Ý Gunnarsdóttir | C34: 9 | D34: Íþróttafélagið Fjörður | E34: S14 | F34: 00:02:02.700 | G34: 00:00:30.124 | H34: DQ
B35: Kristjana L Albertsdóttir | C35: 0 | D35: Íþróttafélagið Fjörður | E35: S14 | F35: 00:02:13.550 | G35: 00:00:30.124 | H35: DQ
B36: Guðbjörg S Sigfúsdóttir | C36: 15 | D36: Íþróttafélagið Fjörður | E36: S14 | F36: 00:01:37.980 | G36: 00:00:30.124
B37: Heiður B Egilsdóttir | C37: 11 | D37: ÍFR | E37: S8 | F37: 00:01:09.430 | G37: 00:00:36.046 | H37: DQ
B38: Nevena Cupovic | C38: 15 | D38: Íþróttafélagið Fjörður | E38: S14 | F38: 00:01:19.450 | G38: 00:00:30.124
B39: Sigríður Aníta Rögnvaldsóttir | C39: 13 | D39: Íþróttafélagið Fjörður | E39: S14 | F39: 00:00:44.330 | G39: 00:00:30.124
B40: Matthildur E Sigurðardóttir | C40: 10 | D40: NES | E40: S10 | F40: 00:00:52 | G40: 00:00:30.664
A43: 3. Grein: Drengir 50m Bringusund
B45: Róbert Í Jónsson | C45: 14 | D45: Íþróttafélagið Fjörður | E45: S14 | F45: 00:00:39.430 | G45: 00:00:30.420 | H45: 00:00:36.690 | I45: 569.9697372
B46: Fannar Logi Jóhannesson | C46: 15 | D46: Sundfélagið Óðinn | E46: S14 | F46: 00:00:43.690 | H46: 00:00:42.920 | I46: 356
B47: Björn Axel Agnarsson | C47: 13 | D47: ÍFR | E47: S20 | F47: 00:00:38.970 | G47: 00:00:26.420 | H47: 00:00:38.610 | I47: 320.4048157
B48: Már Gunnarsson | C48: 16 | D48: NES | E48: S12 | F48: 00:00:42 | G48: 00:00:29.225 | H48: 00:00:43.030 | I48: 313.3018173
B49: Reynir A Magnússon | C49: 14 | D49: ÍFR | E49: S14 | F49: 00:00:54.570 | G49: 00:00:30.420 | H49: 00:00:54.490 | I49: 173.9981011
B50: Alexander Guðmundsson | C50: 12 | D50: NES | E50: S14 | F50: 00:00:51 | G50: 00:00:30.420 | H50: 00:01:08.040 | I50: 89.3721113
B51: Snævar Örn Kristmannsson | C51: 9 | D51: ÍFR | E51: S14 | F51: 00:00:00 | G51: 00:00:30.420 | H51: 00:01:18.540 | I51: 58.10616884
B52: Leó Baldurrson | C52: 10 | D52: NES | E52: S14 | F52: 00:00:00 | G52: 00:00:30.420 | H52: 00:01:19.380 | I52: 56.28097971
B53: Jóhann Stígur Eiríksson | C53: 15 | D53: Íþróttafélagið Ösp | E53: S14 | F53: 00:01:40.560 | G53: 00:00:30.420 | H53: 00:01:49.990 | I53: 21.15608613
B54: Ingólfur M Bjarnason | C54: 15 | D54: NES | E54: S10 | F54: 00:00:50 | G54: 00:00:00 | H54: 00:01:02.240 | I54: 0
B55: Róbert Salvar Reynisson | C55: 16 | D55: NES | E55: S9 | F55: 00:00:53 | G55: 00:00:29.202
B56: Unnar I Ingason | C56: 14 | D56: Íþróttafélagið Fjörður | E56: S14 | F56: 00:00:00 | G56: 00:00:30.420 | H56: DQ
B57: Haukur H Loftsson | C57: 15 | D57: ÍFR | E57: S4 | F57: 00:02:36.020 | G57: 00:00:42.089 | H57: DQ
B58: Hjalti G Guðmundsson | C58: 0 | D58: Íþróttafélagið Ösp | E58: S14 | F58: NT | G58: 00:00:30.420 | H58: DQ
B59: Óskar F Björnsson | C59: 10 | D59: NES | E59: S14 | F59: 00:01:35 | G59: 00:00:30.420 | H59: DQ
B60: Hallgrímur A Heimisson | C60: 14 | D60: Íþróttafélagið Fjörður | E60: S14 | F60: 00:00:46.940 | G60: 00:00:30.420
A63: 4. Grein: Stúlkur 50m Bringusund
B65: Thórey Í Magnúsdóttir | C65: 16 | D65: ÍFR | E65: S14 | F65: 00:00:40.980 | G65: 00:00:34.084 | H65: 00:00:41.550 | I65: 552.0043576
B66: Tinna Rut Andrésdóttir | C66: 16 | D66: Sundfélagið Óðinn | E66: S14 | F66: 00:00:52.230 | G66: 00:00:34.084 | H66: 00:00:50.840 | I66: 301.3276363
B67: Sandra S Gunnarsdóttir | C67: 16 | D67: Sunddeild Fjölnis | E67: S12 | F67: 00:01:04.470 | G67: 00:00:34.863 | H67: 00:00:54.600 | I67: 260.3231712
B68: Ástrós M Bjarnadóttir | C68: 16 | D68: NES | E68: S18 | F68: 00:00:48 | G68: 00:00:32.850 | H68: 00:00:52.090 | I68: 250.8089612
B69: Birta Bjarnadóttir | C69: 12 | D69: NES | E69: S | F69: 00:01:01 | H69: 00:00:57.600 | I69: 207
B70: Anna R Þrastardóttir | C70: 10 | D70: Íþróttafélagið Fjörður | E70: S14 | F70: 00:01:13.080 | G70: 00:00:34.084 | H70: 00:01:15.620 | I70: 91.56838855
B71: Katrín E Kristjánsdóttir | C71: 11 | D71: Íþróttafélagið Fjörður | E71: S14 | F71: 00:01:10.600 | G71: 00:00:34.084 | H71: 00:01:18.320 | I71: 82.42093825
B72: Heiður B Egilsdóttir | C72: 11 | D72: ÍFR | E72: S8 | F72: 00:00:00 | G72: 00:00:35.353 | H72: 00:01:27.730 | I72: 78.48416403
B73: Emelía Ý Gunnarsdóttir | C73: 9 | D73: Íþróttafélagið Fjörður | E73: S14 | F73: 00:00:00 | G73: 00:00:34.084 | H73: 00:01:26.550 | I73: 61.07372002
B74: Ingibjörg F Margeirsdóttir | C74: 16 | D74: NES | E74: S14 | F74: 00:00:47 | G74: 00:00:34.084
B75: Guðbjörg S Sigfúsdóttir | C75: 15 | D75: Íþróttafélagið Fjörður | E75: S14 | F75: 00:00:00 | G75: 00:00:34.084
B76: Victoria L Karenardóttir | C76: 0 | D76: Íþróttafélagið Fjörður | E76: S14 | F76: 00:01:36.400 | G76: 00:00:34.084 | H76: DQ
B77: Nevena Cupovic | C77: 15 | D77: Íþróttafélagið Fjörður | E77: S14 | F77: 00:01:32.310 | G77: 00:00:34.084
B78: Arndís Atladóttir | C78: 15 | D78: Sundfélagið Óðinn | E78: S14 | F78: 00:01:33.600 | G78: 00:00:34.084 | H78: DQ
B79: Sigrún Kjartansdóttir | C79: 0 | D79: Íþróttafélagið Fjörður | E79: S14 | F79: 00:00:00 | G79: 00:00:34.084 | H79: DQ
B80: Sigríður Aníta Rögnvaldsóttir | C80: 13 | D80: Íþróttafélagið Fjörður | E80: S14 | F80: 00:00:58.150 | G80: 00:00:34.084
A83: 7. Grein: Drengir 50m Skriðsund
B85: Róbert Í Jónsson | C85: 14 | D85: Íþróttafélagið Fjörður | E85: S14 | F85: 00:00:28.480 | G85: 00:00:23.835 | H85: 00:00:28.750 | I85: 569.8375361
B86: Már Gunnarsson | C86: 16 | D86: NES | E86: S12 | F86: 00:00:31 | G86: 00:00:23.360 | H86: 00:00:31.940 | I86: 391.2134522
B87: Björn Axel Agnarsson | C87: 13 | D87: ÍFR | E87: S20 | F87: 00:00:30.520 | G87: 00:00:20.910 | H87: 00:00:29.720 | I87: 348.2696931
B88: Fannar Logi Jóhannesson | C88: 15 | D88: Sundfélagið Óðinn | E88: S14 | F88: 00:00:35.840 | G88: 00:00:23.835 | H88: 00:00:36.130 | I88: 287.1181955
B89: Ingólfur M Bjarnason | C89: 15 | D89: NES | E89: S10 | F89: 00:00:36 | G89: 00:00:23.160 | H89: 00:00:41.880 | I89: 169.1202633
B90: Alexander Guðmundsson | C90: 12 | D90: NES | E90: S14 | F90: 00:00:37 | G90: 00:00:23.835 | H90: 00:00:43.220 | I90: 167.7298324
B91: Unnar I Ingason | C91: 14 | D91: Íþróttafélagið Fjörður | E91: S14 | F91: 00:00:59.420 | G91: 00:00:23.835 | H91: 00:00:48.010 | I91: 122.3684567
B92: Snævar Örn Kristmannsson | C92: 9 | D92: ÍFR | E92: S14 | F92: 00:00:51.320 | G92: 00:00:23.835 | H92: 00:00:53.010 | I92: 90.90571518
B93: Hjalti G Guðmundsson | C93: 0 | D93: Íþróttafélagið Ösp | E93: S14 | F93: NT | G93: 00:00:23.835 | H93: 00:00:56.940 | I93: 73.35204263
B94: Reynir A Magnússon | C94: 14 | D94: ÍFR | E94: S14 | F94: 00:00:50.170 | G94: 00:00:23.835 | H94: 00:00:57.380 | I94: 71.67751971
B95: Baldur M Kristinsson | C95: 10 | D95: Íþróttafélagið Fjörður | E95: S14 | F95: 00:01:17.730 | G95: 00:00:23.835 | H95: 00:01:02.580 | I95: 55.25326219
B96: Leó Baldurrson | C96: 10 | D96: NES | E96: S14 | F96: 00:01:15 | G96: 00:00:23.835 | H96: 00:01:04.500 | I96: 50.46443981
B97: Jóhann Stígur Eiríksson | C97: 15 | D97: Íþróttafélagið Ösp | E97: S14 | F97: 00:00:51.320 | G97: 00:00:23.835 | H97: 00:01:12.170 | I97: 36.02421158
B98: Haukur H Loftsson | C98: 15 | D98: ÍFR | E98: S4 | F98: 00:02:12.360 | G98: 00:00:37.850 | H98: 00:02:40.810 | I98: 31.06038228
B99: Þorleifur Pálmi Páls | C99: 12 | D99: Íþróttafélagið Ösp | E99: S14 | F99: 00:01:17.250 | G99: 00:00:23.835 | H99: 00:01:23.690 | I99: 23.10169772
B100: Óskar F Björnsson | C100: 10 | D100: NES | E100: S14 | F100: 00:01:25 | G100: 00:00:23.835 | H100: 00:01:42.550 | I100: 12.55618213
B101: Logi Ingólfsson | C101: 9 | D101: Sundfélagið Óðinn | E101: S | F101: 00:00:00 | H101: 00:01:53.600 | I101: 6
B102: Róbert Salvar Reynisson | C102: 16 | D102: NES | E102: S9 | F102: 00:00:37 | G102: 00:00:25.130
B103: Guðmundur A Sigurðsson | C103: 10 | D103: Íþróttafélagið Fjörður | E103: S10 | F103: 00:01:43.750 | G103: 00:00:23.160
B104: Hallgrímur A Heimisson | C104: 14 | D104: Íþróttafélagið Fjörður | E104: S14 | F104: 00:00:47.530 | G104: 00:00:23.835
A107: 8. Grein: Stúlkur 50m Skriðsund
B109: Thórey Í Magnúsdóttir | C109: 16 | D109: ÍFR | E109: S14 | F109: 00:00:32.120 | G109: 00:00:26.250 | H109: 00:00:32.480 | I109: 527.9125697
B110: Sandra S Gunnarsdóttir | C110: 16 | D110: Sunddeild Fjölnis | E110: S12 | F110: 00:00:36.020 | G110: 00:00:26.900 | H110: 00:00:37.310 | I110: 374.7840439
B111: Ástrós M Bjarnadóttir | C111: 16 | D111: NES | E111: S18 | F111: 00:00:35 | G111: 00:00:26.150 | H111: 00:00:37.400 | I111: 341.8222063
B112: Tinna Rut Andrésdóttir | C112: 16 | D112: Sundfélagið Óðinn | E112: S14 | F112: 00:00:43.160 | G112: 00:00:26.250 | H112: 00:00:41.630 | I112: 250.7210696
B113: Heiður B Egilsdóttir | C113: 11 | D113: ÍFR | E113: S8 | F113: 00:00:58.800 | G113: 00:00:30.130 | H113: 00:00:53.550 | I113: 199.8347623
B114: Gunnhildur Brynja Be | C114: 14 | D114: Íþróttafélagið Ösp | E114: S14 | F114: 00:00:30.820 | G114: 00:00:26.250 | H114: 00:00:48.320 | I114: 160.3353513
B115: Birta Bjarnadóttir | C115: 12 | D115: NES | E115: S14 | F115: 00:00:51 | G115: 00:00:26.250 | H115: 00:00:52.160 | I115: 127.4668684
B116: Anna R Þrastardóttir | C116: 10 | D116: Íþróttafélagið Fjörður | E116: S14 | F116: 00:00:52.590 | G116: 00:00:26.250 | H116: 00:00:54.180 | I116: 113.7347199
B117: Katrín E Kristjánsdóttir | C117: 11 | D117: Íþróttafélagið Fjörður | E117: S14 | F117: 00:00:54.590 | G117: 00:00:26.250 | H117: 00:00:58.730 | I117: 89.29560044
B118: Arndís Atladóttir | C118: 15 | D118: Sundfélagið Óðinn | E118: S14 | F118: 00:01:27.880 | G118: 00:00:26.250 | H118: 00:01:10.840 | I118: 50.88319894
B119: Sigrún Kjartansdóttir | C119: 0 | D119: Íþróttafélagið Fjörður | E119: S14 | F119: 00:01:21.370 | G119: 00:00:26.250 | H119: 00:01:11.400 | I119: 49.69531286
B120: Kristjana L Albertsdóttir | C120: 0 | D120: Íþróttafélagið Fjörður | E120: S14 | F120: 00:01:57.270 | G120: 00:00:26.250 | H120: 00:01:57.770 | I120: 11.07403876
B121: Ingibjörg F Margeirsdóttir | C121: 16 | D121: NES | E121: S14 | F121: 00:00:36 | G121: 00:00:26.250
B122: Guðbjörg S Sigfúsdóttir | C122: 15 | D122: Íþróttafélagið Fjörður | E122: S14 | F122: 00:01:20.230 | G122: 00:00:26.250
B123: Victoria L Karenardóttir | C123: 0 | D123: Íþróttafélagið Fjörður | E123: S14 | F123: 00:01:10.330 | G123: 00:00:26.250
B124: Nevena Cupovic | C124: 15 | D124: Íþróttafélagið Fjörður | E124: S14 | F124: 00:01:09.460 | G124: 00:00:26.250
B125: Emelía Ý Gunnarsdóttir | C125: 9 | D125: Íþróttafélagið Fjörður | E125: S14 | F125: 00:01:20.160 | G125: 00:00:26.250 | H125: DQ
B126: Sigríður Aníta Rögnvaldsóttir | C126: 13 | D126: Íþróttafélagið Fjörður | E126: S14 | F126: 00:00:39.600 | G126: 00:00:26.250
B127: Matthildur E Sigurðardóttir | C127: 10 | D127: NES | E127: S10 | F127: 00:00:46 | G127: 00:00:27.780
A130: 9. Grein: Drengir 50m Flugsund
B132: Róbert Í Jónsson | C132: 14 | D132: Íþróttafélagið Fjörður | E132: S14 | F132: 00:00:31.290 | G132: 00:00:25.662 | H132: 00:00:30.600 | I132: 589.7885647
B133: Már Gunnarsson | C133: 16 | D133: NES | E133: S12 | F133: 00:00:36 | G133: 00:00:25.591 | H133: 00:00:35.270 | I133: 381.9640415
B134: Björn Axel Agnarsson | C134: 13 | D134: ÍFR | E134: S20 | F134: 00:00:30.340 | G134: 00:00:22.430 | H134: 00:00:31.080 | I134: 375.8761678
B135: Fannar Logi Jóhannesson | C135: 15 | D135: Sundfélagið Óðinn | E135: S14 | F135: 00:00:42.080 | G135: 00:00:25.662 | H135: 00:00:45.380 | I135: 180.8286136
B136: Ingólfur M Bjarnason | C136: 15 | D136: NES | E136: S10 | F136: 00:00:47 | G136: 00:00:25.370 | H136: 00:01:08.860 | I136: 50.01005788
B137: Róbert Salvar Reynisson | C137: 16 | D137: NES | E137: S9 | F137: 00:00:47 | G137: 00:00:26.523
B138: Alexander Guðmundsson | C138: 12 | D138: NES | E138: S14 | F138: 00:00:45 | G138: 00:00:25.662
A141: 10. Grein: Stúlkur 50m Flugsund
B143: Thórey Í Magnúsdóttir | C143: 16 | D143: ÍFR | E143: S14 | F143: 00:00:36.100 | G143: 00:00:27.489 | H143: 00:00:37.350 | I143: 398.647974
B144: Sandra S Gunnarsdóttir | C144: 16 | D144: Sunddeild Fjölnis | E144: S12 | F144: 00:00:42.210 | G144: 00:00:28.158 | H144: 00:00:44.610 | I144: 251.4757355
B145: Ástrós M Bjarnadóttir | C145: 16 | D145: NES | E145: S18 | F145: 00:00:42 | G145: 00:00:28.280 | H145: 00:00:51.310 | I145: 167.4295737
B146: Ingibjörg F Margeirsdóttir | C146: 16 | D146: NES | E146: S14 | F146: 00:00:41 | G146: 00:00:27.489
B147: Sigríður Aníta Rögnvaldsóttir | C147: 13 | D147: Íþróttafélagið Fjörður | E147: S14 | F147: 00:00:55.200 | G147: 00:00:27.489
